{"text_format":"3","workbook":"xlsx","n_sheets":5,"sheets":["INICIO","GASTOS PLANIFICADOS","GASTOS REALES","DESVIACIONES DE GASTOS","ANÁLISIS DE GASTOS"],"not_rendered":{"charts":3,"images":3,"defined_names":1},"read":"whole","date_system":"1900"}

{"sheet":"INICIO","index":0,"n_rows":8,"n_cols":2,"rows_kept":8}
[null,"ACERCA DE ESTA PLANTILLA"]
[null,"Use el libro Presupuesto de gastos empresariales para realizar un seguimiento de los gastos planificados, los gastos reales y las desviaciones."]
[null,"Introduzca el nombre de la empresa y agregue el logotipo."]
[null,"Escriba la información en las tablas de las hojas de cálculo Gastos planificados y Gastos reales."]
[null,"Las tablas de la hoja de cálculo Desviaciones de gastos y los gráficos de Análisis de gastos se actualizan automáticamente."]
[null,"Nota: "]
[null,"Se facilitan instrucciones adicionales en la columna A de cada hoja de cálculo. Este texto se ha ocultado a propósito. Para eliminar el texto, seleccione la columna A y, a continuación, ELIMINAR. Para mostrar el texto, seleccione la columna A y, a continuación, cambie el color de fuente."]
[null,"Para obtener más información sobre las tablas, presione las teclas MAYÚS y F10 dentro de una tabla, seleccione la opción TABLA y, a continuación, TEXTO ALTERNATIVO."]

{"sheet":"GASTOS PLANIFICADOS","index":1,"n_rows":37,"n_cols":18,"rows_kept":37,"merged":[[1,1,2,3],[1,10,1,12],[1,13,2,14],[2,10,2,12],[3,17,12,19],[8,1,8,2],[19,1,19,2],[28,1,28,2],[33,1,33,2]]}
["Escriba los costos planificados por empleado, de la oficina, de marketing y de aprendizaje o viajes en las tablas correspondientes de esta hoja de cálculo. Los totales se calcularán automáticamente. Encontrará instrucciones útiles sobre cómo usar esta hoja de cálculo en las celdas de esta columna. Presione la flecha abajo para empezar.",{"$nulls":14}," "]
["Escriba el nombre de la empresa en la celda de la derecha y agregue el logotipo en la celda N2. El título de esta hoja de cálculo está en la celda K2.","Nombre de la empresa",{"$nulls":8},"Estimaciones detalladas de gastos",null,null,"El marcador de posición del logotipo se encuentra en esta celda."]
["Hay una sugerencia en la celda K3.",{"$nulls":9},"Las celdas sombreadas son cálculos."]
["La etiqueta Gastos planificados está en la celda de la derecha; los meses, en las celdas C4 a N4; la etiqueta Año, en la celda O4; y las instrucciones Cómo usar esta plantilla, en la celda R4.","GASTOS PLANIFICADOS","ENE","FEB","MAR","ABR","MAY","JUN","JUL","AGO","SEP","OCT","NOV","DIC","AÑO",null,null,"Sugerencia: CÓMO USAR ESTA PLANTILLA\nIntroduzca los datos en las celdas en blanco de las hojas de cálculo GASTOS PLANIFICADOS y GASTOS REALES, y las DESVIACIONES DE GASTOS y el ANÁLISIS DE GASTOS se calcularán automáticamente. Si agrega una fila en una hoja, las otras hojas deben coincidir."]
["Escriba los costos por empleado en la tabla Planificados por empleado, empezando por la celda de la derecha. La instrucción siguiente se encuentra en la celda A10.","Costos por empleado","Ene","Feb","Mar","Abr","May","Jun","Jul","Ago","Sep","Oct","Nov","Dic","AÑO"]
[null,"Salarios",{"v":85000,"d":"85,000.00 €"},{"v":85000,"d":"85,000.00 €"},{"v":85000,"d":"85,000.00 €"},{"v":87500,"d":"87,500.00 €"},{"v":87500,"d":"87,500.00 €"},{"v":87500,"d":"87,500.00 €"},{"v":87500,"d":"87,500.00 €"},{"v":92400,"d":"92,400.00 €"},{"v":92400,"d":"92,400.00 €"},{"v":92400,"d":"92,400.00 €"},{"v":92400,"d":"92,400.00 €"},{"v":92400,"d":"92,400.00 €"},{"$f":"SUM(C6:N6)","v":{"v":1067000,"d":"1,067,000.00 €"}}]
[null,"Beneficios",{"$f":"C6*0.27","v":{"v":22950,"d":"22,950.00 €"}},{"v":22950,"d":"22,950.00 €"},{"v":22950,"d":"22,950.00 €"},{"v":23625,"d":"23,625.00 €"},{"v":23625,"d":"23,625.00 €"},{"v":23625,"d":"23,625.00 €"},{"v":23625,"d":"23,625.00 €"},{"v":24948,"d":"24,948.00 €"},{"v":24948,"d":"24,948.00 €"},{"v":24948,"d":"24,948.00 €"},{"v":24948,"d":"24,948.00 €"},{"v":24948,"d":"24,948.00 €"},{"$f":"SUM(C7:N7)","v":{"v":288090,"d":"288,090.00 €"}}]
[null,"Subtotal",{"$f":"SUBTOTAL(109,Planificados_por_empleado[Ene])","v":{"v":107950,"d":"107,950.00 €"}},{"$f":"SUBTOTAL(109,Planificados_por_empleado[Feb])","v":{"v":107950,"d":"107,950.00 €"}},{"$f":"SUBTOTAL(109,Planificados_por_empleado[Mar])","v":{"v":107950,"d":"107,950.00 €"}},{"$f":"SUBTOTAL(109,Planificados_por_empleado[Abr])","v":{"v":111125,"d":"111,125.00 €"}},{"$f":"SUBTOTAL(109,Planificados_por_empleado[May])","v":{"v":111125,"d":"111,125.00 €"}},{"$f":"SUBTOTAL(109,Planificados_por_empleado[Jun])","v":{"v":111125,"d":"111,125.00 €"}},{"$f":"SUBTOTAL(109,Planificados_por_empleado[Jul])","v":{"v":111125,"d":"111,125.00 €"}},{"$f":"SUBTOTAL(109,Planificados_por_empleado[Ago])","v":{"v":117348,"d":"117,348.00 €"}},{"$f":"SUBTOTAL(109,Planificados_por_empleado[Sep])","v":{"v":117348,"d":"117,348.00 €"}},{"$f":"SUBTOTAL(109,Planificados_por_empleado[Oct])","v":{"v":117348,"d":"117,348.00 €"}},{"$f":"SUBTOTAL(109,Planificados_por_empleado[Nov])","v":{"v":117348,"d":"117,348.00 €"}},{"$f":"SUBTOTAL(109,Planificados_por_empleado[Dic])","v":{"v":117348,"d":"117,348.00 €"}},{"$f":"SUBTOTAL(109,Planificados_por_empleado[AÑO])","v":{"v":1355090,"d":"1,355,090.00 €"}}]
[]
["Escriba los costos de la oficina en la tabla Planificados de la oficina, empezando por la celda de la derecha. La instrucción siguiente se encuentra en la celda A21.","Costos de la oficina","Ene","Feb","Mar","Abr","May","Jun","Jul","Ago","Sep","Oct","Nov","Dic","AÑO"]
[null,"Alquiler de la oficina",{"v":9800,"d":"9,800.00 €"},{"v":9800,"d":"9,800.00 €"},{"v":9800,"d":"9,800.00 €"},{"v":9800,"d":"9,800.00 €"},{"v":9800,"d":"9,800.00 €"},{"v":9800,"d":"9,800.00 €"},{"v":9800,"d":"9,800.00 €"},{"v":9800,"d":"9,800.00 €"},{"v":9800,"d":"9,800.00 €"},{"v":9800,"d":"9,800.00 €"},{"v":9800,"d":"9,800.00 €"},{"v":9800,"d":"9,800.00 €"},{"$f":"SUM(C11:N11)","v":{"v":117600,"d":"117,600.00 €"}}]
[null,"Gas",null,{"v":400,"d":"400.00 €"},{"v":400,"d":"400.00 €"},{"v":100,"d":"100.00 €"},{"v":100,"d":"100.00 €"},{"v":100,"d":"100.00 €"},{"v":100,"d":"100.00 €"},{"v":100,"d":"100.00 €"},{"v":100,"d":"100.00 €"},{"v":100,"d":"100.00 €"},{"v":400,"d":"400.00 €"},{"v":400,"d":"400.00 €"},{"v":2300,"d":"2,300.00 €"}]
[null,"Electricidad",{"v":300,"d":"300.00 €"},{"v":300,"d":"300.00 €"},{"v":300,"d":"300.00 €"},{"v":300,"d":"300.00 €"},{"v":300,"d":"300.00 €"},{"v":300,"d":"300.00 €"},{"v":300,"d":"300.00 €"},{"v":300,"d":"300.00 €"},{"v":300,"d":"300.00 €"},{"v":300,"d":"300.00 €"},{"v":300,"d":"300.00 €"},{"v":300,"d":"300.00 €"},{"v":3600,"d":"3,600.00 €"}]
[null,"Agua",{"v":40,"d":"40.00 €"},{"v":40,"d":"40.00 €"},{"v":40,"d":"40.00 €"},{"v":40,"d":"40.00 €"},{"v":40,"d":"40.00 €"},{"v":40,"d":"40.00 €"},{"v":40,"d":"40.00 €"},{"v":40,"d":"40.00 €"},{"v":40,"d":"40.00 €"},{"v":40,"d":"40.00 €"},{"v":40,"d":"40.00 €"},{"v":40,"d":"40.00 €"},{"v":480,"d":"480.00 €"}]
[null,"Teléfono",{"v":250,"d":"250.00 €"},{"v":250,"d":"250.00 €"},{"v":250,"d":"250.00 €"},{"v":250,"d":"250.00 €"},{"v":250,"d":"250.00 €"},{"v":250,"d":"250.00 €"},{"v":250,"d":"250.00 €"},{"v":250,"d":"250.00 €"},{"v":250,"d":"250.00 €"},{"v":250,"d":"250.00 €"},{"v":250,"d":"250.00 €"},{"v":250,"d":"250.00 €"},{"v":3000,"d":"3,000.00 €"}]
[null,"Acceso a Internet",{"v":180,"d":"180.00 €"},{"v":180,"d":"180.00 €"},{"v":180,"d":"180.00 €"},{"v":180,"d":"180.00 €"},{"v":180,"d":"180.00 €"},{"v":180,"d":"180.00 €"},{"v":180,"d":"180.00 €"},{"v":180,"d":"180.00 €"},{"v":180,"d":"180.00 €"},{"v":180,"d":"180.00 €"},{"v":180,"d":"180.00 €"},{"v":180,"d":"180.00 €"},{"v":2160,"d":"2,160.00 €"}]
[null,"Material de oficina",{"v":200,"d":"200.00 €"},{"v":200,"d":"200.00 €"},{"v":200,"d":"200.00 €"},{"v":200,"d":"200.00 €"},{"v":200,"d":"200.00 €"},{"v":200,"d":"200.00 €"},{"v":200,"d":"200.00 €"},{"v":200,"d":"200.00 €"},{"v":200,"d":"200.00 €"},{"v":200,"d":"200.00 €"},{"v":200,"d":"200.00 €"},{"v":200,"d":"200.00 €"},{"v":2400,"d":"2,400.00 €"}]
[null,"Seguridad",{"v":600,"d":"600.00 €"},{"v":600,"d":"600.00 €"},{"v":600,"d":"600.00 €"},{"v":600,"d":"600.00 €"},{"v":600,"d":"600.00 €"},{"v":600,"d":"600.00 €"},{"v":600,"d":"600.00 €"},{"v":600,"d":"600.00 €"},{"v":600,"d":"600.00 €"},{"v":600,"d":"600.00 €"},{"v":600,"d":"600.00 €"},{"v":600,"d":"600.00 €"},{"v":7200,"d":"7,200.00 €"}]
[null,"Subtotal",{"$f":"SUBTOTAL(109,Planificados_de_la_oficina[Ene])","v":{"v":11370,"d":"11,370.00 €"}},{"$f":"SUBTOTAL(109,Planificados_de_la_oficina[Feb])","v":{"v":11770,"d":"11,770.00 €"}},{"$f":"SUBTOTAL(109,Planificados_de_la_oficina[Mar])","v":{"v":11770,"d":"11,770.00 €"}},{"$f":"SUBTOTAL(109,Planificados_de_la_oficina[Abr])","v":{"v":11470,"d":"11,470.00 €"}},{"$f":"SUBTOTAL(109,Planificados_de_la_oficina[May])","v":{"v":11470,"d":"11,470.00 €"}},{"$f":"SUBTOTAL(109,Planificados_de_la_oficina[Jun])","v":{"v":11470,"d":"11,470.00 €"}},{"$f":"SUBTOTAL(109,Planificados_de_la_oficina[Jul])","v":{"v":11470,"d":"11,470.00 €"}},{"$f":"SUBTOTAL(109,Planificados_de_la_oficina[Ago])","v":{"v":11470,"d":"11,470.00 €"}},{"$f":"SUBTOTAL(109,Planificados_de_la_oficina[Sep])","v":{"v":11470,"d":"11,470.00 €"}},{"$f":"SUBTOTAL(109,Planificados_de_la_oficina[Oct])","v":{"v":11470,"d":"11,470.00 €"}},{"$f":"SUBTOTAL(109,Planificados_de_la_oficina[Nov])","v":{"v":11770,"d":"11,770.00 €"}},{"$f":"SUBTOTAL(109,Planificados_de_la_oficina[Dic])","v":{"v":11770,"d":"11,770.00 €"}},{"$f":"SUBTOTAL(109,Planificados_de_la_oficina[AÑO])","v":{"v":138740,"d":"138,740.00 €"}}]
[]
["Escriba los costos de marketing en la tabla Planificados de marketing, empezando por la celda de la derecha. La instrucción siguiente se encuentra en la celda A30.","Costos de marketing","Ene","Feb","Mar","Abr","May","Jun","Jul","Ago","Sep","Oct","Nov","Dic","AÑO"]
[null,"Hospedaje del sitio web",{"v":500,"d":"500.00 €"},{"v":500,"d":"500.00 €"},{"v":500,"d":"500.00 €"},{"v":500,"d":"500.00 €"},{"v":500,"d":"500.00 €"},{"v":500,"d":"500.00 €"},{"v":500,"d":"500.00 €"},{"v":500,"d":"500.00 €"},{"v":500,"d":"500.00 €"},{"v":500,"d":"500.00 €"},{"v":500,"d":"500.00 €"},{"v":500,"d":"500.00 €"},{"$f":"SUM(C22:N22)","v":{"v":6000,"d":"6,000.00 €"}}]
[null,"Actualizaciones del sitio web",{"v":200,"d":"200.00 €"},{"v":200,"d":"200.00 €"},{"v":200,"d":"200.00 €"},{"v":200,"d":"200.00 €"},{"v":200,"d":"200.00 €"},{"v":1000,"d":"1,000.00 €"},{"v":200,"d":"200.00 €"},{"v":200,"d":"200.00 €"},{"v":200,"d":"200.00 €"},{"v":200,"d":"200.00 €"},{"v":200,"d":"200.00 €"},{"v":1000,"d":"1,000.00 €"},{"v":4000,"d":"4,000.00 €"}]
[null,"Preparación de material",{"v":5000,"d":"5,000.00 €"},{"v":0,"d":"0.00 €"},{"v":0,"d":"0.00 €"},{"v":5000,"d":"5,000.00 €"},{"v":0,"d":"0.00 €"},{"v":0,"d":"0.00 €"},{"v":5000,"d":"5,000.00 €"},{"v":0,"d":"0.00 €"},{"v":0,"d":"0.00 €"},{"v":5000,"d":"5,000.00 €"},{"v":0,"d":"0.00 €"},{"v":0,"d":"0.00 €"},{"v":20000,"d":"20,000.00 €"}]
[null,"Impresión de material",{"v":200,"d":"200.00 €"},{"v":200,"d":"200.00 €"},{"v":200,"d":"200.00 €"},{"v":200,"d":"200.00 €"},{"v":200,"d":"200.00 €"},{"v":200,"d":"200.00 €"},{"v":200,"d":"200.00 €"},{"v":200,"d":"200.00 €"},{"v":200,"d":"200.00 €"},{"v":200,"d":"200.00 €"},{"v":200,"d":"200.00 €"},{"v":200,"d":"200.00 €"},{"v":2400,"d":"2,400.00 €"}]
[null,"Eventos de marketing",{"v":2000,"d":"2,000.00 €"},{"v":2000,"d":"2,000.00 €"},{"v":2000,"d":"2,000.00 €"},{"v":5000,"d":"5,000.00 €"},{"v":2000,"d":"2,000.00 €"},{"v":2000,"d":"2,000.00 €"},{"v":2000,"d":"2,000.00 €"},{"v":5000,"d":"5,000.00 €"},{"v":2000,"d":"2,000.00 €"},{"v":2000,"d":"2,000.00 €"},{"v":2000,"d":"2,000.00 €"},{"v":5000,"d":"5,000.00 €"},{"v":33000,"d":"33,000.00 €"}]
[null,"Gastos varios",{"v":200,"d":"200.00 €"},{"v":200,"d":"200.00 €"},{"v":200,"d":"200.00 €"},{"v":200,"d":"200.00 €"},{"v":200,"d":"200.00 €"},{"v":200,"d":"200.00 €"},{"v":200,"d":"200.00 €"},{"v":200,"d":"200.00 €"},{"v":200,"d":"200.00 €"},{"v":200,"d":"200.00 €"},{"v":200,"d":"200.00 €"},{"v":200,"d":"200.00 €"},{"v":2400,"d":"2,400.00 €"}]
[null,"Subtotal",{"$f":"SUBTOTAL(109,Planificados_de_marketing[Ene])","v":{"v":8100,"d":"8,100.00 €"}},{"$f":"SUBTOTAL(109,Planificados_de_marketing[Feb])","v":{"v":3100,"d":"3,100.00 €"}},{"$f":"SUBTOTAL(109,Planificados_de_marketing[Mar])","v":{"v":3100,"d":"3,100.00 €"}},{"$f":"SUBTOTAL(109,Planificados_de_marketing[Abr])","v":{"v":11100,"d":"11,100.00 €"}},{"$f":"SUBTOTAL(109,Planificados_de_marketing[May])","v":{"v":3100,"d":"3,100.00 €"}},{"$f":"SUBTOTAL(109,Planificados_de_marketing[Jun])","v":{"v":3900,"d":"3,900.00 €"}},{"$f":"SUBTOTAL(109,Planificados_de_marketing[Jul])","v":{"v":8100,"d":"8,100.00 €"}},{"$f":"SUBTOTAL(109,Planificados_de_marketing[Ago])","v":{"v":6100,"d":"6,100.00 €"}},{"$f":"SUBTOTAL(109,Planificados_de_marketing[Sep])","v":{"v":3100,"d":"3,100.00 €"}},{"$f":"SUBTOTAL(109,Planificados_de_marketing[Oct])","v":{"v":8100,"d":"8,100.00 €"}},{"$f":"SUBTOTAL(109,Planificados_de_marketing[Nov])","v":{"v":3100,"d":"3,100.00 €"}},{"$f":"SUBTOTAL(109,Planificados_de_marketing[Dic])","v":{"v":6900,"d":"6,900.00 €"}},{"$f":"SUBTOTAL(109,Planificados_de_marketing[AÑO])","v":{"v":67800,"d":"67,800.00 €"}}]
[]
["Escriba los costos de aprendizaje y viajes en la tabla Planificados de aprendizaje y viajes, empezando por la celda de la derecha. La instrucción siguiente se encuentra en la celda A35.","Aprendizaje y viajes","Ene","Feb","Mar","Abr","May","Jun","Jul","Ago","Sep","Oct","Nov","Dic","AÑO"]
[null,"Cursos de aprendizaje",{"v":2000,"d":"2,000.00 €"},{"v":2000,"d":"2,000.00 €"},{"v":2000,"d":"2,000.00 €"},{"v":2000,"d":"2,000.00 €"},{"v":2000,"d":"2,000.00 €"},{"v":2000,"d":"2,000.00 €"},{"v":2000,"d":"2,000.00 €"},{"v":2000,"d":"2,000.00 €"},{"v":2000,"d":"2,000.00 €"},{"v":2000,"d":"2,000.00 €"},{"v":2000,"d":"2,000.00 €"},{"v":2000,"d":"2,000.00 €"},{"$f":"SUM(C31:N31)","v":{"v":24000,"d":"24,000.00 €"}}]
[null,"Costos de viajes de aprendizaje",{"v":2000,"d":"2,000.00 €"},{"v":2000,"d":"2,000.00 €"},{"v":2000,"d":"2,000.00 €"},{"v":2000,"d":"2,000.00 €"},{"v":2000,"d":"2,000.00 €"},{"v":2000,"d":"2,000.00 €"},{"v":2000,"d":"2,000.00 €"},{"v":2000,"d":"2,000.00 €"},{"v":2000,"d":"2,000.00 €"},{"v":2000,"d":"2,000.00 €"},{"v":2000,"d":"2,000.00 €"},{"v":2000,"d":"2,000.00 €"},{"$f":"SUM(C32:N32)","v":{"v":24000,"d":"24,000.00 €"}}]
[null,"Subtotal",{"$f":"SUBTOTAL(109,Planificados_de_aprendizaje_y_viajes[Ene])","v":{"v":4000,"d":"4,000.00 €"}},{"$f":"SUBTOTAL(109,Planificados_de_aprendizaje_y_viajes[Feb])","v":{"v":4000,"d":"4,000.00 €"}},{"$f":"SUBTOTAL(109,Planificados_de_aprendizaje_y_viajes[Mar])","v":{"v":4000,"d":"4,000.00 €"}},{"$f":"SUBTOTAL(109,Planificados_de_aprendizaje_y_viajes[Abr])","v":{"v":4000,"d":"4,000.00 €"}},{"$f":"SUBTOTAL(109,Planificados_de_aprendizaje_y_viajes[May])","v":{"v":4000,"d":"4,000.00 €"}},{"$f":"SUBTOTAL(109,Planificados_de_aprendizaje_y_viajes[Jun])","v":{"v":4000,"d":"4,000.00 €"}},{"$f":"SUBTOTAL(109,Planificados_de_aprendizaje_y_viajes[Jul])","v":{"v":4000,"d":"4,000.00 €"}},{"$f":"SUBTOTAL(109,Planificados_de_aprendizaje_y_viajes[Ago])","v":{"v":4000,"d":"4,000.00 €"}},{"$f":"SUBTOTAL(109,Planificados_de_aprendizaje_y_viajes[Sep])","v":{"v":4000,"d":"4,000.00 €"}},{"$f":"SUBTOTAL(109,Planificados_de_aprendizaje_y_viajes[Oct])","v":{"v":4000,"d":"4,000.00 €"}},{"$f":"SUBTOTAL(109,Planificados_de_aprendizaje_y_viajes[Nov])","v":{"v":4000,"d":"4,000.00 €"}},{"$f":"SUBTOTAL(109,Planificados_de_aprendizaje_y_viajes[Dic])","v":{"v":4000,"d":"4,000.00 €"}},{"$f":"SUBTOTAL(109,Planificados_de_aprendizaje_y_viajes[AÑO])","v":{"v":48000,"d":"48,000.00 €"}}]
[]
["Los totales se calculan automáticamente en la tabla Total planificado, empezando por la celda de la derecha.","TOTALES","Ene","Feb","Mar","Abr","May","Jun","Jul","Ago","Sep","Oct","Nov","Dic","Año"]
[null,"Gastos planificados mensuales",{"$f":"Planificados_de_aprendizaje_y_viajes[[#Totals],[Ene]]+Planificados_de_marketing[[#Totals],[Ene]]+Planificados_de_la_oficina[[#Totals],[Ene]]+Planificados_por_empleado[[#Totals],[Ene]]","v":{"v":131420,"d":"131,420.00 €"}},{"$f":"Planificados_de_aprendizaje_y_viajes[[#Totals],[Feb]]+Planificados_de_marketing[[#Totals],[Feb]]+Planificados_de_la_oficina[[#Totals],[Feb]]+Planificados_por_empleado[[#Totals],[Feb]]","v":{"v":126820,"d":"126,820.00 €"}},{"$f":"Planificados_de_aprendizaje_y_viajes[[#Totals],[Mar]]+Planificados_de_marketing[[#Totals],[Mar]]+Planificados_de_la_oficina[[#Totals],[Mar]]+Planificados_por_empleado[[#Totals],[Mar]]","v":{"v":126820,"d":"126,820.00 €"}},{"$f":"Planificados_de_aprendizaje_y_viajes[[#Totals],[Abr]]+Planificados_de_marketing[[#Totals],[Abr]]+Planificados_de_la_oficina[[#Totals],[Abr]]+Planificados_por_empleado[[#Totals],[Abr]]","v":{"v":137695,"d":"137,695.00 €"}},{"$f":"Planificados_de_aprendizaje_y_viajes[[#Totals],[May]]+Planificados_de_marketing[[#Totals],[May]]+Planificados_de_la_oficina[[#Totals],[May]]+Planificados_por_empleado[[#Totals],[May]]","v":{"v":129695,"d":"129,695.00 €"}},{"$f":"Planificados_de_aprendizaje_y_viajes[[#Totals],[Jun]]+Planificados_de_marketing[[#Totals],[Jun]]+Planificados_de_la_oficina[[#Totals],[Jun]]+Planificados_por_empleado[[#Totals],[Jun]]","v":{"v":130495,"d":"130,495.00 €"}},{"$f":"Planificados_de_aprendizaje_y_viajes[[#Totals],[Jul]]+Planificados_de_marketing[[#Totals],[Jul]]+Planificados_de_la_oficina[[#Totals],[Jul]]+Planificados_por_empleado[[#Totals],[Jul]]","v":{"v":134695,"d":"134,695.00 €"}},{"$f":"Planificados_de_aprendizaje_y_viajes[[#Totals],[Ago]]+Planificados_de_marketing[[#Totals],[Ago]]+Planificados_de_la_oficina[[#Totals],[Ago]]+Planificados_por_empleado[[#Totals],[Ago]]","v":{"v":138918,"d":"138,918.00 €"}},{"$f":"Planificados_de_aprendizaje_y_viajes[[#Totals],[Sep]]+Planificados_de_marketing[[#Totals],[Sep]]+Planificados_de_la_oficina[[#Totals],[Sep]]+Planificados_por_empleado[[#Totals],[Sep]]","v":{"v":135918,"d":"135,918.00 €"}},{"$f":"Planificados_de_aprendizaje_y_viajes[[#Totals],[Oct]]+Planificados_de_marketing[[#Totals],[Oct]]+Planificados_de_la_oficina[[#Totals],[Oct]]+Planificados_por_empleado[[#Totals],[Oct]]","v":{"v":140918,"d":"140,918.00 €"}},{"$f":"Planificados_de_aprendizaje_y_viajes[[#Totals],[Nov]]+Planificados_de_marketing[[#Totals],[Nov]]+Planificados_de_la_oficina[[#Totals],[Nov]]+Planificados_por_empleado[[#Totals],[Nov]]","v":{"v":136218,"d":"136,218.00 €"}},{"$f":"Planificados_de_aprendizaje_y_viajes[[#Totals],[Dic]]+Planificados_de_marketing[[#Totals],[Dic]]+Planificados_de_la_oficina[[#Totals],[Dic]]+Planificados_por_empleado[[#Totals],[Dic]]","v":{"v":140018,"d":"140,018.00 €"}},{"$f":"Planificados_de_aprendizaje_y_viajes[[#Totals],[AÑO]]+Planificados_de_marketing[[#Totals],[AÑO]]+Planificados_de_la_oficina[[#Totals],[AÑO]]+Planificados_por_empleado[[#Totals],[AÑO]]","v":{"v":1609630,"d":"1,609,630.00 €"}}]
[null,"Gastos planificados TOTALES",{"$f":"SUM($C$36:C36)","v":{"v":131420,"d":"131,420.00 €"}},{"$f":"SUM($C$36:D36)","v":{"v":258240,"d":"258,240.00 €"}},{"$f":"SUM($C$36:E36)","v":{"v":385060,"d":"385,060.00 €"}},{"$f":"SUM($C$36:F36)","v":{"v":522755,"d":"522,755.00 €"}},{"$f":"SUM($C$36:G36)","v":{"v":652450,"d":"652,450.00 €"}},{"$f":"SUM($C$36:H36)","v":{"v":782945,"d":"782,945.00 €"}},{"$f":"SUM($C$36:I36)","v":{"v":917640,"d":"917,640.00 €"}},{"$f":"SUM($C$36:J36)","v":{"v":1056558,"d":"1,056,558.00 €"}},{"$f":"SUM($C$36:K36)","v":{"v":1192476,"d":"1,192,476.00 €"}},{"$f":"SUM($C$36:L36)","v":{"v":1333394,"d":"1,333,394.00 €"}},{"$f":"SUM($C$36:M36)","v":{"v":1469612,"d":"1,469,612.00 €"}},{"$f":"SUM($C$36:N36)","v":{"v":1609630,"d":"1,609,630.00 €"}}]

{"sheet":"GASTOS REALES","index":2,"n_rows":37,"n_cols":16,"rows_kept":37,"merged":[[1,1,2,3],[1,10,1,12],[1,13,2,14],[2,10,2,12],[8,1,8,2],[19,1,19,2],[28,1,28,2],[33,1,33,2]]}
["Escriba los costos reales por empleado, de la oficina, de marketing y de aprendizaje o viajes en las tablas correspondientes de esta hoja de cálculo. Los totales se calcularán automáticamente. Encontrará instrucciones útiles sobre cómo usar esta hoja de cálculo en las celdas de esta columna. Presione la flecha abajo para empezar.",{"$nulls":14}," "]
["El nombre de la empresa se actualiza automáticamente en celda de la derecha. El título de esta hoja de cálculo está en la celda K2. Agregue el logotipo en la celda N2.",{"$f":"'GASTOS PLANIFICADOS'!B2:D3","v":"Nombre de la empresa"},{"$nulls":8},{"$f":"titulo_hoja_calculo","v":"Estimaciones detalladas de gastos"},null,null,"El marcador de posición del logotipo se encuentra en esta celda."]
["Hay una sugerencia en la celda K3.",{"$nulls":9},"Las celdas sombreadas son cálculos."]
["La etiqueta Gastos reales está en la celda de la derecha; los meses, en las celdas C4 a N4; y la etiqueta Año, en la celda O4.","GASTOS REALES","ENE","FEB","MAR","ABR","MAY","JUN","JUL","AGO","SEP","OCT","NOV","DIC","AÑO"]
["Escriba los costos por empleado en la tabla Reales por empleado, empezando por la celda de la derecha. La instrucción siguiente se encuentra en la celda A10.","Costos por empleado","Ene","Feb","Mar","Abr","May","Jun","Jul","Ago","Sep","Oct","Nov","Dic","AÑO"]
[null,"Salarios",{"v":85000,"d":"85,000.00 €"},{"v":85000,"d":"85,000.00 €"},{"v":85000,"d":"85,000.00 €"},{"v":88000,"d":"88,000.00 €"},{"v":88000,"d":"88,000.00 €"},{"v":88000,"d":"88,000.00 €"},{"$nulls":6},{"$f":"SUM(C6:N6)","v":{"v":519000,"d":"519,000.00 €"}}]
[null,"Beneficios",{"$f":"C6*0.27","v":{"v":22950,"d":"22,950.00 €"}},{"v":22950,"d":"22,950.00 €"},{"v":22950,"d":"22,950.00 €"},{"v":23760,"d":"23,760.00 €"},{"v":23760,"d":"23,760.00 €"},{"v":23760,"d":"23,760.00 €"},{"v":0,"d":"0.00 €"},{"v":0,"d":"0.00 €"},{"v":0,"d":"0.00 €"},{"v":0,"d":"0.00 €"},{"v":0,"d":"0.00 €"},{"v":0,"d":"0.00 €"},{"$f":"SUM(C7:N7)","v":{"v":140130,"d":"140,130.00 €"}}]
[null,"Subtotal",{"$f":"SUBTOTAL(109,Reales_por_empleado[Ene])","v":{"v":107950,"d":"107,950.00 €"}},{"$f":"SUBTOTAL(109,Reales_por_empleado[Feb])","v":{"v":107950,"d":"107,950.00 €"}},{"$f":"SUBTOTAL(109,Reales_por_empleado[Mar])","v":{"v":107950,"d":"107,950.00 €"}},{"$f":"SUBTOTAL(109,Reales_por_empleado[Abr])","v":{"v":111760,"d":"111,760.00 €"}},{"$f":"SUBTOTAL(109,Reales_por_empleado[May])","v":{"v":111760,"d":"111,760.00 €"}},{"$f":"SUBTOTAL(109,Reales_por_empleado[Jun])","v":{"v":111760,"d":"111,760.00 €"}},{"$f":"SUBTOTAL(109,Reales_por_empleado[Jul])","v":{"v":0,"d":"0.00 €"}},{"$f":"SUBTOTAL(109,Reales_por_empleado[Ago])","v":{"v":0,"d":"0.00 €"}},{"$f":"SUBTOTAL(109,Reales_por_empleado[Sep])","v":{"v":0,"d":"0.00 €"}},{"$f":"SUBTOTAL(109,Reales_por_empleado[Oct])","v":{"v":0,"d":"0.00 €"}},{"$f":"SUBTOTAL(109,Reales_por_empleado[Nov])","v":{"v":0,"d":"0.00 €"}},{"$f":"SUBTOTAL(109,Reales_por_empleado[Dic])","v":{"v":0,"d":"0.00 €"}},{"$f":"SUBTOTAL(109,Reales_por_empleado[AÑO])","v":{"v":659130,"d":"659,130.00 €"}}]
[]
["Escriba los costos de la oficina en la tabla Reales de la oficina, empezando por la celda de la derecha. La instrucción siguiente se encuentra en la celda A21.","Costos de la oficina","Ene","Feb","Mar","Abr","May","Jun","Jul","Ago","Sep","Oct","Nov","Dic","AÑO"]
[null,"Alquiler de la oficina",{"v":9800,"d":"9,800.00 €"},{"v":9800,"d":"9,800.00 €"},{"v":9800,"d":"9,800.00 €"},{"v":9800,"d":"9,800.00 €"},{"v":9800,"d":"9,800.00 €"},{"v":9800,"d":"9,800.00 €"},{"$nulls":6},{"$f":"SUM(C11:N11)","v":{"v":58800,"d":"58,800.00 €"}}]
[null,"Gas",{"v":4,"d":"4.00 €"},{"v":430,"d":"430.00 €"},{"v":385,"d":"385.00 €"},{"v":230,"d":"230.00 €"},{"v":87,"d":"87.00 €"},{"v":88,"d":"88.00 €"},{"$nulls":6},{"v":1224,"d":"1,224.00 €"}]
[null,"Electricidad",{"v":288,"d":"288.00 €"},{"v":278,"d":"278.00 €"},{"v":268,"d":"268.00 €"},{"v":299,"d":"299.00 €"},{"v":306,"d":"306.00 €"},{"v":290,"d":"290.00 €"},{"$nulls":6},{"v":1729,"d":"1,729.00 €"}]
[null,"Agua",{"v":35,"d":"35.00 €"},{"v":33,"d":"33.00 €"},{"v":34,"d":"34.00 €"},{"v":36,"d":"36.00 €"},{"v":34,"d":"34.00 €"},{"v":36,"d":"36.00 €"},{"$nulls":6},{"v":208,"d":"208.00 €"}]
[null,"Teléfono",{"v":224,"d":"224.00 €"},{"v":235,"d":"235.00 €"},{"v":265,"d":"265.00 €"},{"v":245,"d":"245.00 €"},{"v":245,"d":"245.00 €"},{"v":220,"d":"220.00 €"},{"$nulls":6},{"v":1434,"d":"1,434.00 €"}]
[null,"Acceso a Internet",{"v":180,"d":"180.00 €"},{"v":180,"d":"180.00 €"},{"v":180,"d":"180.00 €"},{"v":180,"d":"180.00 €"},{"v":180,"d":"180.00 €"},{"v":180,"d":"180.00 €"},{"$nulls":6},{"v":1080,"d":"1,080.00 €"}]
[null,"Material de oficina",{"v":256,"d":"256.00 €"},{"v":142,"d":"142.00 €"},{"v":160,"d":"160.00 €"},{"v":221,"d":"221.00 €"},{"v":256,"d":"256.00 €"},{"v":240,"d":"240.00 €"},{"$nulls":6},{"v":1275,"d":"1,275.00 €"}]
[null,"Seguridad",{"v":600,"d":"600.00 €"},{"v":600,"d":"600.00 €"},{"v":600,"d":"600.00 €"},{"v":600,"d":"600.00 €"},{"v":600,"d":"600.00 €"},{"v":600,"d":"600.00 €"},{"$nulls":6},{"v":3600,"d":"3,600.00 €"}]
[null,"Subtotal",{"$f":"SUBTOTAL(109,Reales_de_la_oficina[Ene])","v":{"v":11387,"d":"11,387.00 €"}},{"$f":"SUBTOTAL(109,Reales_de_la_oficina[Feb])","v":{"v":11698,"d":"11,698.00 €"}},{"$f":"SUBTOTAL(109,Reales_de_la_oficina[Mar])","v":{"v":11692,"d":"11,692.00 €"}},{"$f":"SUBTOTAL(109,Reales_de_la_oficina[Abr])","v":{"v":11611,"d":"11,611.00 €"}},{"$f":"SUBTOTAL(109,Reales_de_la_oficina[May])","v":{"v":11508,"d":"11,508.00 €"}},{"$f":"SUBTOTAL(109,Reales_de_la_oficina[Jun])","v":{"v":11454,"d":"11,454.00 €"}},{"$f":"SUBTOTAL(109,Reales_de_la_oficina[Jul])","v":{"v":0,"d":"0.00 €"}},{"$f":"SUBTOTAL(109,Reales_de_la_oficina[Ago])","v":{"v":0,"d":"0.00 €"}},{"$f":"SUBTOTAL(109,Reales_de_la_oficina[Sep])","v":{"v":0,"d":"0.00 €"}},{"$f":"SUBTOTAL(109,Reales_de_la_oficina[Oct])","v":{"v":0,"d":"0.00 €"}},{"$f":"SUBTOTAL(109,Reales_de_la_oficina[Nov])","v":{"v":0,"d":"0.00 €"}},{"$f":"SUBTOTAL(109,Reales_de_la_oficina[Dic])","v":{"v":0,"d":"0.00 €"}},{"$f":"SUBTOTAL(109,Reales_de_la_oficina[AÑO])","v":{"v":69350,"d":"69,350.00 €"}}]
[]
["Escriba los costos de marketing en la tabla Reales de marketing, empezando por la celda de la derecha. La instrucción siguiente se encuentra en la celda A30.","Costos de marketing","Ene","Feb","Mar","Abr","May","Jun","Jul","Ago","Sep","Oct","Nov","Dic","AÑO"]
[null,"Hospedaje del sitio web",{"v":500,"d":"500.00 €"},{"v":500,"d":"500.00 €"},{"v":500,"d":"500.00 €"},{"v":500,"d":"500.00 €"},{"v":500,"d":"500.00 €"},{"v":500,"d":"500.00 €"},{"$nulls":6},{"$f":"SUM(C22:N22)","v":{"v":3000,"d":"3,000.00 €"}}]
[null,"Actualizaciones del sitio web",{"v":200,"d":"200.00 €"},{"v":200,"d":"200.00 €"},{"v":200,"d":"200.00 €"},{"v":200,"d":"200.00 €"},{"v":200,"d":"200.00 €"},{"v":1500,"d":"1,500.00 €"},{"$nulls":6},{"v":2500,"d":"2,500.00 €"}]
[null,"Preparación de material",{"v":4800,"d":"4,800.00 €"},{"v":0,"d":"0.00 €"},{"v":0,"d":"0.00 €"},{"v":5500,"d":"5,500.00 €"},{"v":0,"d":"0.00 €"},{"v":0,"d":"0.00 €"},{"$nulls":6},{"v":10300,"d":"10,300.00 €"}]
[null,"Impresión de material",{"v":100,"d":"100.00 €"},{"v":500,"d":"500.00 €"},{"v":100,"d":"100.00 €"},{"v":100,"d":"100.00 €"},{"v":600,"d":"600.00 €"},{"v":180,"d":"180.00 €"},{"$nulls":6},{"v":1580,"d":"1,580.00 €"}]
[null,"Eventos de marketing",{"v":1800,"d":"1,800.00 €"},{"v":2200,"d":"2,200.00 €"},{"v":2200,"d":"2,200.00 €"},{"v":4700,"d":"4,700.00 €"},{"v":1500,"d":"1,500.00 €"},{"v":2300,"d":"2,300.00 €"},{"$nulls":6},{"v":14700,"d":"14,700.00 €"}]
[null,"Gastos varios",{"v":145,"d":"145.00 €"},{"v":156,"d":"156.00 €"},{"v":123,"d":"123.00 €"},{"v":223,"d":"223.00 €"},{"v":187,"d":"187.00 €"},{"v":245,"d":"245.00 €"},{"$nulls":6},{"v":1079,"d":"1,079.00 €"}]
[null,"Subtotal",{"$f":"SUBTOTAL(109,Reales_de_marketing[Ene])","v":{"v":7545,"d":"7,545.00 €"}},{"$f":"SUBTOTAL(109,Reales_de_marketing[Feb])","v":{"v":3556,"d":"3,556.00 €"}},{"$f":"SUBTOTAL(109,Reales_de_marketing[Mar])","v":{"v":3123,"d":"3,123.00 €"}},{"$f":"SUBTOTAL(109,Reales_de_marketing[Abr])","v":{"v":11223,"d":"11,223.00 €"}},{"$f":"SUBTOTAL(109,Reales_de_marketing[May])","v":{"v":2987,"d":"2,987.00 €"}},{"$f":"SUBTOTAL(109,Reales_de_marketing[Jun])","v":{"v":4725,"d":"4,725.00 €"}},{"$f":"SUBTOTAL(109,Reales_de_marketing[Jul])","v":{"v":0,"d":"0.00 €"}},{"$f":"SUBTOTAL(109,Reales_de_marketing[Ago])","v":{"v":0,"d":"0.00 €"}},{"$f":"SUBTOTAL(109,Reales_de_marketing[Sep])","v":{"v":0,"d":"0.00 €"}},{"$f":"SUBTOTAL(109,Reales_de_marketing[Oct])","v":{"v":0,"d":"0.00 €"}},{"$f":"SUBTOTAL(109,Reales_de_marketing[Nov])","v":{"v":0,"d":"0.00 €"}},{"$f":"SUBTOTAL(109,Reales_de_marketing[Dic])","v":{"v":0,"d":"0.00 €"}},{"$f":"SUBTOTAL(109,Reales_de_marketing[AÑO])","v":{"v":33159,"d":"33,159.00 €"}}]
[]
["Escriba los costos de aprendizaje y viajes en la tabla Reales de aprendizaje y viajes, empezando por la celda de la derecha. La instrucción siguiente se encuentra en la celda A35.","Aprendizaje y viajes","Ene","Feb","Mar","Abr","May","Jun","Jul","Ago","Sep","Oct","Nov","Dic","AÑO"]
[null,"Cursos de aprendizaje",{"v":1600,"d":"1,600.00 €"},{"v":2400,"d":"2,400.00 €"},{"v":1400,"d":"1,400.00 €"},{"v":1600,"d":"1,600.00 €"},{"v":1200,"d":"1,200.00 €"},{"v":2800,"d":"2,800.00 €"},{"$nulls":6},{"$f":"SUM(C31:N31)","v":{"v":11000,"d":"11,000.00 €"}}]
[null,"Costos de viajes de aprendizaje",{"v":1200,"d":"1,200.00 €"},{"v":2200,"d":"2,200.00 €"},{"v":1400,"d":"1,400.00 €"},{"v":1200,"d":"1,200.00 €"},{"v":800,"d":"800.00 €"},{"v":3500,"d":"3,500.00 €"},{"$nulls":6},{"$f":"SUM(C32:N32)","v":{"v":10300,"d":"10,300.00 €"}}]
[null,"Subtotal",{"$f":"SUBTOTAL(109,Reales_de_aprendizaje_y_viajes[Ene])","v":{"v":2800,"d":"2,800.00 €"}},{"$f":"SUBTOTAL(109,Reales_de_aprendizaje_y_viajes[Feb])","v":{"v":4600,"d":"4,600.00 €"}},{"$f":"SUBTOTAL(109,Reales_de_aprendizaje_y_viajes[Mar])","v":{"v":2800,"d":"2,800.00 €"}},{"$f":"SUBTOTAL(109,Reales_de_aprendizaje_y_viajes[Abr])","v":{"v":2800,"d":"2,800.00 €"}},{"$f":"SUBTOTAL(109,Reales_de_aprendizaje_y_viajes[May])","v":{"v":2000,"d":"2,000.00 €"}},{"$f":"SUBTOTAL(109,Reales_de_aprendizaje_y_viajes[Jun])","v":{"v":6300,"d":"6,300.00 €"}},{"$f":"SUBTOTAL(109,Reales_de_aprendizaje_y_viajes[Jul])","v":{"v":0,"d":"0.00 €"}},{"$f":"SUBTOTAL(109,Reales_de_aprendizaje_y_viajes[Ago])","v":{"v":0,"d":"0.00 €"}},{"$f":"SUBTOTAL(109,Reales_de_aprendizaje_y_viajes[Sep])","v":{"v":0,"d":"0.00 €"}},{"$f":"SUBTOTAL(109,Reales_de_aprendizaje_y_viajes[Oct])","v":{"v":0,"d":"0.00 €"}},{"$f":"SUBTOTAL(109,Reales_de_aprendizaje_y_viajes[Nov])","v":{"v":0,"d":"0.00 €"}},{"$f":"SUBTOTAL(109,Reales_de_aprendizaje_y_viajes[Dic])","v":{"v":0,"d":"0.00 €"}},{"$f":"SUBTOTAL(109,Reales_de_aprendizaje_y_viajes[AÑO])","v":{"v":21300,"d":"21,300.00 €"}}]
[]
["Los gastos reales totales se calculan automáticamente en la tabla Total real, empezando por la celda de la derecha.","Gastos planificados TOTALES","Ene","Feb","Mar","Abr","May","Jun","Jul","Ago","Sep","Oct","Nov","Dic","Año"]
[null,"Gastos reales mensuales",{"$f":"Reales_de_aprendizaje_y_viajes[[#Totals],[Ene]]+Reales_de_marketing[[#Totals],[Ene]]+Reales_de_la_oficina[[#Totals],[Ene]]+Reales_por_empleado[[#Totals],[Ene]]","v":{"v":129682,"d":"129,682.00 €"}},{"$f":"Reales_de_aprendizaje_y_viajes[[#Totals],[Feb]]+Reales_de_marketing[[#Totals],[Feb]]+Reales_de_la_oficina[[#Totals],[Feb]]+Reales_por_empleado[[#Totals],[Feb]]","v":{"v":127804,"d":"127,804.00 €"}},{"$f":"Reales_de_aprendizaje_y_viajes[[#Totals],[Mar]]+Reales_de_marketing[[#Totals],[Mar]]+Reales_de_la_oficina[[#Totals],[Mar]]+Reales_por_empleado[[#Totals],[Mar]]","v":{"v":125565,"d":"125,565.00 €"}},{"$f":"Reales_de_aprendizaje_y_viajes[[#Totals],[Abr]]+Reales_de_marketing[[#Totals],[Abr]]+Reales_de_la_oficina[[#Totals],[Abr]]+Reales_por_empleado[[#Totals],[Abr]]","v":{"v":137394,"d":"137,394.00 €"}},{"$f":"Reales_de_aprendizaje_y_viajes[[#Totals],[May]]+Reales_de_marketing[[#Totals],[May]]+Reales_de_la_oficina[[#Totals],[May]]+Reales_por_empleado[[#Totals],[May]]","v":{"v":128255,"d":"128,255.00 €"}},{"$f":"Reales_de_aprendizaje_y_viajes[[#Totals],[Jun]]+Reales_de_marketing[[#Totals],[Jun]]+Reales_de_la_oficina[[#Totals],[Jun]]+Reales_por_empleado[[#Totals],[Jun]]","v":{"v":134239,"d":"134,239.00 €"}},{"$f":"Reales_de_aprendizaje_y_viajes[[#Totals],[Jul]]+Reales_de_marketing[[#Totals],[Jul]]+Reales_de_la_oficina[[#Totals],[Jul]]+Reales_por_empleado[[#Totals],[Jul]]","v":{"v":0,"d":"0.00 €"}},{"$f":"Reales_de_aprendizaje_y_viajes[[#Totals],[Ago]]+Reales_de_marketing[[#Totals],[Ago]]+Reales_de_la_oficina[[#Totals],[Ago]]+Reales_por_empleado[[#Totals],[Ago]]","v":{"v":0,"d":"0.00 €"}},{"$f":"Reales_de_aprendizaje_y_viajes[[#Totals],[Sep]]+Reales_de_marketing[[#Totals],[Sep]]+Reales_de_la_oficina[[#Totals],[Sep]]+Reales_por_empleado[[#Totals],[Sep]]","v":{"v":0,"d":"0.00 €"}},{"$f":"Reales_de_aprendizaje_y_viajes[[#Totals],[Oct]]+Reales_de_marketing[[#Totals],[Oct]]+Reales_de_la_oficina[[#Totals],[Oct]]+Reales_por_empleado[[#Totals],[Oct]]","v":{"v":0,"d":"0.00 €"}},{"$f":"Reales_de_aprendizaje_y_viajes[[#Totals],[Nov]]+Reales_de_marketing[[#Totals],[Nov]]+Reales_de_la_oficina[[#Totals],[Nov]]+Reales_por_empleado[[#Totals],[Nov]]","v":{"v":0,"d":"0.00 €"}},{"$f":"Reales_de_aprendizaje_y_viajes[[#Totals],[Dic]]+Reales_de_marketing[[#Totals],[Dic]]+Reales_de_la_oficina[[#Totals],[Dic]]+Reales_por_empleado[[#Totals],[Dic]]","v":{"v":0,"d":"0.00 €"}},{"$f":"Reales_de_aprendizaje_y_viajes[[#Totals],[AÑO]]+Reales_de_marketing[[#Totals],[AÑO]]+Reales_de_la_oficina[[#Totals],[AÑO]]+Reales_por_empleado[[#Totals],[AÑO]]","v":{"v":782939,"d":"782,939.00 €"}}]
[null,"Gastos reales TOTALES",{"$f":"SUM($C$36:C36)","v":{"v":129682,"d":"129,682.00 €"}},{"$f":"SUM($C$36:D36)","v":{"v":257486,"d":"257,486.00 €"}},{"$f":"SUM($C$36:E36)","v":{"v":383051,"d":"383,051.00 €"}},{"$f":"SUM($C$36:F36)","v":{"v":520445,"d":"520,445.00 €"}},{"$f":"SUM($C$36:G36)","v":{"v":648700,"d":"648,700.00 €"}},{"$f":"SUM($C$36:H36)","v":{"v":782939,"d":"782,939.00 €"}},{"$f":"SUM($C$36:I36)","v":{"v":782939,"d":"782,939.00 €"}},{"$f":"SUM($C$36:J36)","v":{"v":782939,"d":"782,939.00 €"}},{"$f":"SUM($C$36:K36)","v":{"v":782939,"d":"782,939.00 €"}},{"$f":"SUM($C$36:L36)","v":{"v":782939,"d":"782,939.00 €"}},{"$f":"SUM($C$36:M36)","v":{"v":782939,"d":"782,939.00 €"}},{"$f":"SUM($C$36:N36)","v":{"v":782939,"d":"782,939.00 €"}}]

{"sheet":"DESVIACIONES DE GASTOS","index":3,"n_rows":37,"n_cols":16,"rows_kept":37,"merged":[[1,1,2,3],[1,10,1,12],[1,13,2,14],[2,10,2,12],[8,1,8,2],[19,1,19,2],[28,1,28,2],[33,1,33,2]]}
["La desviación de gastos se calcula automáticamente en esta hoja de cálculo para los costos reales por empleado, de la oficina, de marketing y de aprendizaje o viajes en las tablas correspondientes de esta hoja de cálculo. Encontrará instrucciones útiles sobre cómo usar esta hoja de cálculo en las celdas de esta columna. Presione la flecha abajo para empezar.",{"$nulls":14}," "]
["El nombre de la empresa se actualiza automáticamente en celda de la derecha. El título de esta hoja de cálculo está en la celda K2. Agregue el logotipo en la celda N2.",{"$f":"'GASTOS PLANIFICADOS'!B2:D3","v":"Nombre de la empresa"},{"$nulls":8},{"$f":"titulo_hoja_calculo","v":"Estimaciones detalladas de gastos"},null,null,"El marcador de posición del logotipo se encuentra en esta celda."]
["Hay una sugerencia en la celda K3.",{"$nulls":9},"Las celdas sombreadas son cálculos."]
["La etiqueta Desviaciones de gastos está en la celda de la derecha; los meses, en las celdas C4 a N4; y la etiqueta Año, en la celda O4.","DESVIACIONES DE GASTOS","ENE","FEB","MAR","ABR","MAY","JUN","JUL","AGO","SEP","OCT","NOV","DIC","AÑO"]
["La desviación en Costos por empleado se calcula automáticamente en la tabla Desviaciones por empleado, empezando por la celda de la derecha. La instrucción siguiente se encuentra en la celda A10.","Costos por empleado","Ene","Feb","Mar","Abr","May","Jun","Jul","Ago","Sep","Oct","Nov","Dic","AÑO"]
[null,"Salarios",{"$f":"INDEX(Planificados_por_empleado[],MATCH(INDEX(Desviaciones_por_empleado[],ROW()-ROW(Desviaciones_por_empleado[[#Headers],[Ene]]),1),INDEX(Planificados_por_empleado[],,1),0),MATCH(Desviaciones_por_empleado[[#Headers],[Ene]],Planificados_por_empleado[#Headers],0))-INDEX(Reales_por_empleado[],MATCH(INDEX(Desviaciones_por_empleado[],ROW()-ROW(Desviaciones_por_empleado[[#Headers],[Ene]]),1),INDEX(Planificados_por_empleado[],,1),0),MATCH(Desviaciones_por_empleado[[#Headers],[Ene]],Reales_por_empleado[#Headers],0))","v":{"v":0,"d":"0.00 €"}},{"$f":"INDEX(Planificados_por_empleado[],MATCH(INDEX(Desviaciones_por_empleado[],ROW()-ROW(Desviaciones_por_empleado[[#Headers],[Feb]]),1),INDEX(Planificados_por_empleado[],,1),0),MATCH(Desviaciones_por_empleado[[#Headers],[Feb]],Planificados_por_empleado[#Headers],0))-INDEX(Reales_por_empleado[],MATCH(INDEX(Desviaciones_por_empleado[],ROW()-ROW(Desviaciones_por_empleado[[#Headers],[Feb]]),1),INDEX(Planificados_por_empleado[],,1),0),MATCH(Desviaciones_por_empleado[[#Headers],[Feb]],Reales_por_empleado[#Headers],0))","v":{"v":0,"d":"0.00 €"}},{"$f":"INDEX(Planificados_por_empleado[],MATCH(INDEX(Desviaciones_por_empleado[],ROW()-ROW(Desviaciones_por_empleado[[#Headers],[Mar]]),1),INDEX(Planificados_por_empleado[],,1),0),MATCH(Desviaciones_por_empleado[[#Headers],[Mar]],Planificados_por_empleado[#Headers],0))-INDEX(Reales_por_empleado[],MATCH(INDEX(Desviaciones_por_empleado[],ROW()-ROW(Desviaciones_por_empleado[[#Headers],[Mar]]),1),INDEX(Planificados_por_empleado[],,1),0),MATCH(Desviaciones_por_empleado[[#Headers],[Mar]],Reales_por_empleado[#Headers],0))","v":{"v":0,"d":"0.00 €"}},{"$f":"INDEX(Planificados_por_empleado[],MATCH(INDEX(Desviaciones_por_empleado[],ROW()-ROW(Desviaciones_por_empleado[[#Headers],[Abr]]),1),INDEX(Planificados_por_empleado[],,1),0),MATCH(Desviaciones_por_empleado[[#Headers],[Abr]],Planificados_por_empleado[#Headers],0))-INDEX(Reales_por_empleado[],MATCH(INDEX(Desviaciones_por_empleado[],ROW()-ROW(Desviaciones_por_empleado[[#Headers],[Abr]]),1),INDEX(Planificados_por_empleado[],,1),0),MATCH(Desviaciones_por_empleado[[#Headers],[Abr]],Reales_por_empleado[#Headers],0))","v":{"v":-500,"d":"-500.00 €"}},{"$f":"INDEX(Planificados_por_empleado[],MATCH(INDEX(Desviaciones_por_empleado[],ROW()-ROW(Desviaciones_por_empleado[[#Headers],[May]]),1),INDEX(Planificados_por_empleado[],,1),0),MATCH(Desviaciones_por_empleado[[#Headers],[May]],Planificados_por_empleado[#Headers],0))-INDEX(Reales_por_empleado[],MATCH(INDEX(Desviaciones_por_empleado[],ROW()-ROW(Desviaciones_por_empleado[[#Headers],[May]]),1),INDEX(Planificados_por_empleado[],,1),0),MATCH(Desviaciones_por_empleado[[#Headers],[May]],Reales_por_empleado[#Headers],0))","v":{"v":-500,"d":"-500.00 €"}},{"$f":"INDEX(Planificados_por_empleado[],MATCH(INDEX(Desviaciones_por_empleado[],ROW()-ROW(Desviaciones_por_empleado[[#Headers],[Jun]]),1),INDEX(Planificados_por_empleado[],,1),0),MATCH(Desviaciones_por_empleado[[#Headers],[Jun]],Planificados_por_empleado[#Headers],0))-INDEX(Reales_por_empleado[],MATCH(INDEX(Desviaciones_por_empleado[],ROW()-ROW(Desviaciones_por_empleado[[#Headers],[Jun]]),1),INDEX(Planificados_por_empleado[],,1),0),MATCH(Desviaciones_por_empleado[[#Headers],[Jun]],Reales_por_empleado[#Headers],0))","v":{"v":-500,"d":"-500.00 €"}},{"$f":"INDEX(Planificados_por_empleado[],MATCH(INDEX(Desviaciones_por_empleado[],ROW()-ROW(Desviaciones_por_empleado[[#Headers],[Jul]]),1),INDEX(Planificados_por_empleado[],,1),0),MATCH(Desviaciones_por_empleado[[#Headers],[Jul]],Planificados_por_empleado[#Headers],0))-INDEX(Reales_por_empleado[],MATCH(INDEX(Desviaciones_por_empleado[],ROW()-ROW(Desviaciones_por_empleado[[#Headers],[Jul]]),1),INDEX(Planificados_por_empleado[],,1),0),MATCH(Desviaciones_por_empleado[[#Headers],[Jul]],Reales_por_empleado[#Headers],0))","v":{"v":87500,"d":"87,500.00 €"}},{"$f":"INDEX(Planificados_por_empleado[],MATCH(INDEX(Desviaciones_por_empleado[],ROW()-ROW(Desviaciones_por_empleado[[#Headers],[Ago]]),1),INDEX(Planificados_por_empleado[],,1),0),MATCH(Desviaciones_por_empleado[[#Headers],[Ago]],Planificados_por_empleado[#Headers],0))-INDEX(Reales_por_empleado[],MATCH(INDEX(Desviaciones_por_empleado[],ROW()-ROW(Desviaciones_por_empleado[[#Headers],[Ago]]),1),INDEX(Planificados_por_empleado[],,1),0),MATCH(Desviaciones_por_empleado[[#Headers],[Ago]],Reales_por_empleado[#Headers],0))","v":{"v":92400,"d":"92,400.00 €"}},{"$f":"INDEX(Planificados_por_empleado[],MATCH(INDEX(Desviaciones_por_empleado[],ROW()-ROW(Desviaciones_por_empleado[[#Headers],[Sep]]),1),INDEX(Planificados_por_empleado[],,1),0),MATCH(Desviaciones_por_empleado[[#Headers],[Sep]],Planificados_por_empleado[#Headers],0))-INDEX(Reales_por_empleado[],MATCH(INDEX(Desviaciones_por_empleado[],ROW()-ROW(Desviaciones_por_empleado[[#Headers],[Sep]]),1),INDEX(Planificados_por_empleado[],,1),0),MATCH(Desviaciones_por_empleado[[#Headers],[Sep]],Reales_por_empleado[#Headers],0))","v":{"v":92400,"d":"92,400.00 €"}},{"$f":"INDEX(Planificados_por_empleado[],MATCH(INDEX(Desviaciones_por_empleado[],ROW()-ROW(Desviaciones_por_empleado[[#Headers],[Oct]]),1),INDEX(Planificados_por_empleado[],,1),0),MATCH(Desviaciones_por_empleado[[#Headers],[Oct]],Planificados_por_empleado[#Headers],0))-INDEX(Reales_por_empleado[],MATCH(INDEX(Desviaciones_por_empleado[],ROW()-ROW(Desviaciones_por_empleado[[#Headers],[Oct]]),1),INDEX(Planificados_por_empleado[],,1),0),MATCH(Desviaciones_por_empleado[[#Headers],[Oct]],Reales_por_empleado[#Headers],0))","v":{"v":92400,"d":"92,400.00 €"}},{"$f":"INDEX(Planificados_por_empleado[],MATCH(INDEX(Desviaciones_por_empleado[],ROW()-ROW(Desviaciones_por_empleado[[#Headers],[Nov]]),1),INDEX(Planificados_por_empleado[],,1),0),MATCH(Desviaciones_por_empleado[[#Headers],[Nov]],Planificados_por_empleado[#Headers],0))-INDEX(Reales_por_empleado[],MATCH(INDEX(Desviaciones_por_empleado[],ROW()-ROW(Desviaciones_por_empleado[[#Headers],[Nov]]),1),INDEX(Planificados_por_empleado[],,1),0),MATCH(Desviaciones_por_empleado[[#Headers],[Nov]],Reales_por_empleado[#Headers],0))","v":{"v":92400,"d":"92,400.00 €"}},{"$f":"INDEX(Planificados_por_empleado[],MATCH(INDEX(Desviaciones_por_empleado[],ROW()-ROW(Desviaciones_por_empleado[[#Headers],[Dic]]),1),INDEX(Planificados_por_empleado[],,1),0),MATCH(Desviaciones_por_empleado[[#Headers],[Dic]],Planificados_por_empleado[#Headers],0))-INDEX(Reales_por_empleado[],MATCH(INDEX(Desviaciones_por_empleado[],ROW()-ROW(Desviaciones_por_empleado[[#Headers],[Dic]]),1),INDEX(Planificados_por_empleado[],,1),0),MATCH(Desviaciones_por_empleado[[#Headers],[Dic]],Reales_por_empleado[#Headers],0))","v":{"v":92400,"d":"92,400.00 €"}},{"$f":"SUM(Desviaciones_por_empleado[[#This Row],[Ene]:[Dic]])","v":{"v":548000,"d":"548,000.00 €"}}]
[null,"Beneficios",{"$f":"INDEX(Planificados_por_empleado[],MATCH(INDEX(Desviaciones_por_empleado[],ROW()-ROW(Desviaciones_por_empleado[[#Headers],[Ene]]),1),INDEX(Planificados_por_empleado[],,1),0),MATCH(Desviaciones_por_empleado[[#Headers],[Ene]],Planificados_por_empleado[#Headers],0))-INDEX(Reales_por_empleado[],MATCH(INDEX(Desviaciones_por_empleado[],ROW()-ROW(Desviaciones_por_empleado[[#Headers],[Ene]]),1),INDEX(Planificados_por_empleado[],,1),0),MATCH(Desviaciones_por_empleado[[#Headers],[Ene]],Reales_por_empleado[#Headers],0))","v":{"v":0,"d":"0.00 €"}},{"$f":"INDEX(Planificados_por_empleado[],MATCH(INDEX(Desviaciones_por_empleado[],ROW()-ROW(Desviaciones_por_empleado[[#Headers],[Feb]]),1),INDEX(Planificados_por_empleado[],,1),0),MATCH(Desviaciones_por_empleado[[#Headers],[Feb]],Planificados_por_empleado[#Headers],0))-INDEX(Reales_por_empleado[],MATCH(INDEX(Desviaciones_por_empleado[],ROW()-ROW(Desviaciones_por_empleado[[#Headers],[Feb]]),1),INDEX(Planificados_por_empleado[],,1),0),MATCH(Desviaciones_por_empleado[[#Headers],[Feb]],Reales_por_empleado[#Headers],0))","v":{"v":0,"d":"0.00 €"}},{"$f":"INDEX(Planificados_por_empleado[],MATCH(INDEX(Desviaciones_por_empleado[],ROW()-ROW(Desviaciones_por_empleado[[#Headers],[Mar]]),1),INDEX(Planificados_por_empleado[],,1),0),MATCH(Desviaciones_por_empleado[[#Headers],[Mar]],Planificados_por_empleado[#Headers],0))-INDEX(Reales_por_empleado[],MATCH(INDEX(Desviaciones_por_empleado[],ROW()-ROW(Desviaciones_por_empleado[[#Headers],[Mar]]),1),INDEX(Planificados_por_empleado[],,1),0),MATCH(Desviaciones_por_empleado[[#Headers],[Mar]],Reales_por_empleado[#Headers],0))","v":{"v":0,"d":"0.00 €"}},{"$f":"INDEX(Planificados_por_empleado[],MATCH(INDEX(Desviaciones_por_empleado[],ROW()-ROW(Desviaciones_por_empleado[[#Headers],[Abr]]),1),INDEX(Planificados_por_empleado[],,1),0),MATCH(Desviaciones_por_empleado[[#Headers],[Abr]],Planificados_por_empleado[#Headers],0))-INDEX(Reales_por_empleado[],MATCH(INDEX(Desviaciones_por_empleado[],ROW()-ROW(Desviaciones_por_empleado[[#Headers],[Abr]]),1),INDEX(Planificados_por_empleado[],,1),0),MATCH(Desviaciones_por_empleado[[#Headers],[Abr]],Reales_por_empleado[#Headers],0))","v":{"v":-135,"d":"-135.00 €"}},{"$f":"INDEX(Planificados_por_empleado[],MATCH(INDEX(Desviaciones_por_empleado[],ROW()-ROW(Desviaciones_por_empleado[[#Headers],[May]]),1),INDEX(Planificados_por_empleado[],,1),0),MATCH(Desviaciones_por_empleado[[#Headers],[May]],Planificados_por_empleado[#Headers],0))-INDEX(Reales_por_empleado[],MATCH(INDEX(Desviaciones_por_empleado[],ROW()-ROW(Desviaciones_por_empleado[[#Headers],[May]]),1),INDEX(Planificados_por_empleado[],,1),0),MATCH(Desviaciones_por_empleado[[#Headers],[May]],Reales_por_empleado[#Headers],0))","v":{"v":-135,"d":"-135.00 €"}},{"$f":"INDEX(Planificados_por_empleado[],MATCH(INDEX(Desviaciones_por_empleado[],ROW()-ROW(Desviaciones_por_empleado[[#Headers],[Jun]]),1),INDEX(Planificados_por_empleado[],,1),0),MATCH(Desviaciones_por_empleado[[#Headers],[Jun]],Planificados_por_empleado[#Headers],0))-INDEX(Reales_por_empleado[],MATCH(INDEX(Desviaciones_por_empleado[],ROW()-ROW(Desviaciones_por_empleado[[#Headers],[Jun]]),1),INDEX(Planificados_por_empleado[],,1),0),MATCH(Desviaciones_por_empleado[[#Headers],[Jun]],Reales_por_empleado[#Headers],0))","v":{"v":-135,"d":"-135.00 €"}},{"$f":"INDEX(Planificados_por_empleado[],MATCH(INDEX(Desviaciones_por_empleado[],ROW()-ROW(Desviaciones_por_empleado[[#Headers],[Jul]]),1),INDEX(Planificados_por_empleado[],,1),0),MATCH(Desviaciones_por_empleado[[#Headers],[Jul]],Planificados_por_empleado[#Headers],0))-INDEX(Reales_por_empleado[],MATCH(INDEX(Desviaciones_por_empleado[],ROW()-ROW(Desviaciones_por_empleado[[#Headers],[Jul]]),1),INDEX(Planificados_por_empleado[],,1),0),MATCH(Desviaciones_por_empleado[[#Headers],[Jul]],Reales_por_empleado[#Headers],0))","v":{"v":23625,"d":"23,625.00 €"}},{"$f":"INDEX(Planificados_por_empleado[],MATCH(INDEX(Desviaciones_por_empleado[],ROW()-ROW(Desviaciones_por_empleado[[#Headers],[Ago]]),1),INDEX(Planificados_por_empleado[],,1),0),MATCH(Desviaciones_por_empleado[[#Headers],[Ago]],Planificados_por_empleado[#Headers],0))-INDEX(Reales_por_empleado[],MATCH(INDEX(Desviaciones_por_empleado[],ROW()-ROW(Desviaciones_por_empleado[[#Headers],[Ago]]),1),INDEX(Planificados_por_empleado[],,1),0),MATCH(Desviaciones_por_empleado[[#Headers],[Ago]],Reales_por_empleado[#Headers],0))","v":{"v":24948,"d":"24,948.00 €"}},{"$f":"INDEX(Planificados_por_empleado[],MATCH(INDEX(Desviaciones_por_empleado[],ROW()-ROW(Desviaciones_por_empleado[[#Headers],[Sep]]),1),INDEX(Planificados_por_empleado[],,1),0),MATCH(Desviaciones_por_empleado[[#Headers],[Sep]],Planificados_por_empleado[#Headers],0))-INDEX(Reales_por_empleado[],MATCH(INDEX(Desviaciones_por_empleado[],ROW()-ROW(Desviaciones_por_empleado[[#Headers],[Sep]]),1),INDEX(Planificados_por_empleado[],,1),0),MATCH(Desviaciones_por_empleado[[#Headers],[Sep]],Reales_por_empleado[#Headers],0))","v":{"v":24948,"d":"24,948.00 €"}},{"$f":"INDEX(Planificados_por_empleado[],MATCH(INDEX(Desviaciones_por_empleado[],ROW()-ROW(Desviaciones_por_empleado[[#Headers],[Oct]]),1),INDEX(Planificados_por_empleado[],,1),0),MATCH(Desviaciones_por_empleado[[#Headers],[Oct]],Planificados_por_empleado[#Headers],0))-INDEX(Reales_por_empleado[],MATCH(INDEX(Desviaciones_por_empleado[],ROW()-ROW(Desviaciones_por_empleado[[#Headers],[Oct]]),1),INDEX(Planificados_por_empleado[],,1),0),MATCH(Desviaciones_por_empleado[[#Headers],[Oct]],Reales_por_empleado[#Headers],0))","v":{"v":24948,"d":"24,948.00 €"}},{"$f":"INDEX(Planificados_por_empleado[],MATCH(INDEX(Desviaciones_por_empleado[],ROW()-ROW(Desviaciones_por_empleado[[#Headers],[Nov]]),1),INDEX(Planificados_por_empleado[],,1),0),MATCH(Desviaciones_por_empleado[[#Headers],[Nov]],Planificados_por_empleado[#Headers],0))-INDEX(Reales_por_empleado[],MATCH(INDEX(Desviaciones_por_empleado[],ROW()-ROW(Desviaciones_por_empleado[[#Headers],[Nov]]),1),INDEX(Planificados_por_empleado[],,1),0),MATCH(Desviaciones_por_empleado[[#Headers],[Nov]],Reales_por_empleado[#Headers],0))","v":{"v":24948,"d":"24,948.00 €"}},{"$f":"INDEX(Planificados_por_empleado[],MATCH(INDEX(Desviaciones_por_empleado[],ROW()-ROW(Desviaciones_por_empleado[[#Headers],[Dic]]),1),INDEX(Planificados_por_empleado[],,1),0),MATCH(Desviaciones_por_empleado[[#Headers],[Dic]],Planificados_por_empleado[#Headers],0))-INDEX(Reales_por_empleado[],MATCH(INDEX(Desviaciones_por_empleado[],ROW()-ROW(Desviaciones_por_empleado[[#Headers],[Dic]]),1),INDEX(Planificados_por_empleado[],,1),0),MATCH(Desviaciones_por_empleado[[#Headers],[Dic]],Reales_por_empleado[#Headers],0))","v":{"v":24948,"d":"24,948.00 €"}},{"$f":"SUM(Desviaciones_por_empleado[[#This Row],[Ene]:[Dic]])","v":{"v":147960,"d":"147,960.00 €"}}]
[null,"Subtotal",{"$f":"SUBTOTAL(109,Desviaciones_por_empleado[Ene])","v":{"v":0,"d":"0.00 €"}},{"$f":"SUBTOTAL(109,Desviaciones_por_empleado[Feb])","v":{"v":0,"d":"0.00 €"}},{"$f":"SUBTOTAL(109,Desviaciones_por_empleado[Mar])","v":{"v":0,"d":"0.00 €"}},{"$f":"SUBTOTAL(109,Desviaciones_por_empleado[Abr])","v":{"v":-635,"d":"-635.00 €"}},{"$f":"SUBTOTAL(109,Desviaciones_por_empleado[May])","v":{"v":-635,"d":"-635.00 €"}},{"$f":"SUBTOTAL(109,Desviaciones_por_empleado[Jun])","v":{"v":-635,"d":"-635.00 €"}},{"$f":"SUBTOTAL(109,Desviaciones_por_empleado[Jul])","v":{"v":111125,"d":"111,125.00 €"}},{"$f":"SUBTOTAL(109,Desviaciones_por_empleado[Ago])","v":{"v":117348,"d":"117,348.00 €"}},{"$f":"SUBTOTAL(109,Desviaciones_por_empleado[Sep])","v":{"v":117348,"d":"117,348.00 €"}},{"$f":"SUBTOTAL(109,Desviaciones_por_empleado[Oct])","v":{"v":117348,"d":"117,348.00 €"}},{"$f":"SUBTOTAL(109,Desviaciones_por_empleado[Nov])","v":{"v":117348,"d":"117,348.00 €"}},{"$f":"SUBTOTAL(109,Desviaciones_por_empleado[Dic])","v":{"v":117348,"d":"117,348.00 €"}},{"$f":"SUBTOTAL(109,Desviaciones_por_empleado[AÑO])","v":{"v":695960,"d":"695,960.00 €"}}]
[]
["La desviación en Costos de la oficina se calcula automáticamente en la tabla Desviaciones de la oficina, empezando por la celda de la derecha. La instrucción siguiente se encuentra en la celda A21.","Costos de la oficina","Ene","Feb","Mar","Abr","May","Jun","Jul","Ago","Sep","Oct","Nov","Dic","AÑO"]
[null,"Alquiler de la oficina",{"$f":"INDEX(Planificados_de_la_oficina[],MATCH(INDEX(Desviaciones_de_la_oficina[],ROW()-ROW(Desviaciones_de_la_oficina[[#Headers],[Ene]]),1),INDEX(Planificados_de_la_oficina[],,1),0),MATCH(Desviaciones_de_la_oficina[[#Headers],[Ene]],Planificados_de_la_oficina[#Headers],0))-INDEX(Reales_de_la_oficina[],MATCH(INDEX(Desviaciones_de_la_oficina[],ROW()-ROW(Desviaciones_de_la_oficina[[#Headers],[Ene]]),1),INDEX(Planificados_de_la_oficina[],,1),0),MATCH(Desviaciones_de_la_oficina[[#Headers],[Ene]],Reales_de_la_oficina[#Headers],0))","v":{"v":0,"d":"0.00 €"}},{"$f":"INDEX(Planificados_de_la_oficina[],MATCH(INDEX(Desviaciones_de_la_oficina[],ROW()-ROW(Desviaciones_de_la_oficina[[#Headers],[Feb]]),1),INDEX(Planificados_de_la_oficina[],,1),0),MATCH(Desviaciones_de_la_oficina[[#Headers],[Feb]],Planificados_de_la_oficina[#Headers],0))-INDEX(Reales_de_la_oficina[],MATCH(INDEX(Desviaciones_de_la_oficina[],ROW()-ROW(Desviaciones_de_la_oficina[[#Headers],[Feb]]),1),INDEX(Planificados_de_la_oficina[],,1),0),MATCH(Desviaciones_de_la_oficina[[#Headers],[Feb]],Reales_de_la_oficina[#Headers],0))","v":{"v":0,"d":"0.00 €"}},{"$f":"INDEX(Planificados_de_la_oficina[],MATCH(INDEX(Desviaciones_de_la_oficina[],ROW()-ROW(Desviaciones_de_la_oficina[[#Headers],[Mar]]),1),INDEX(Planificados_de_la_oficina[],,1),0),MATCH(Desviaciones_de_la_oficina[[#Headers],[Mar]],Planificados_de_la_oficina[#Headers],0))-INDEX(Reales_de_la_oficina[],MATCH(INDEX(Desviaciones_de_la_oficina[],ROW()-ROW(Desviaciones_de_la_oficina[[#Headers],[Mar]]),1),INDEX(Planificados_de_la_oficina[],,1),0),MATCH(Desviaciones_de_la_oficina[[#Headers],[Mar]],Reales_de_la_oficina[#Headers],0))","v":{"v":0,"d":"0.00 €"}},{"$f":"INDEX(Planificados_de_la_oficina[],MATCH(INDEX(Desviaciones_de_la_oficina[],ROW()-ROW(Desviaciones_de_la_oficina[[#Headers],[Abr]]),1),INDEX(Planificados_de_la_oficina[],,1),0),MATCH(Desviaciones_de_la_oficina[[#Headers],[Abr]],Planificados_de_la_oficina[#Headers],0))-INDEX(Reales_de_la_oficina[],MATCH(INDEX(Desviaciones_de_la_oficina[],ROW()-ROW(Desviaciones_de_la_oficina[[#Headers],[Abr]]),1),INDEX(Planificados_de_la_oficina[],,1),0),MATCH(Desviaciones_de_la_oficina[[#Headers],[Abr]],Reales_de_la_oficina[#Headers],0))","v":{"v":0,"d":"0.00 €"}},{"$f":"INDEX(Planificados_de_la_oficina[],MATCH(INDEX(Desviaciones_de_la_oficina[],ROW()-ROW(Desviaciones_de_la_oficina[[#Headers],[May]]),1),INDEX(Planificados_de_la_oficina[],,1),0),MATCH(Desviaciones_de_la_oficina[[#Headers],[May]],Planificados_de_la_oficina[#Headers],0))-INDEX(Reales_de_la_oficina[],MATCH(INDEX(Desviaciones_de_la_oficina[],ROW()-ROW(Desviaciones_de_la_oficina[[#Headers],[May]]),1),INDEX(Planificados_de_la_oficina[],,1),0),MATCH(Desviaciones_de_la_oficina[[#Headers],[May]],Reales_de_la_oficina[#Headers],0))","v":{"v":0,"d":"0.00 €"}},{"$f":"INDEX(Planificados_de_la_oficina[],MATCH(INDEX(Desviaciones_de_la_oficina[],ROW()-ROW(Desviaciones_de_la_oficina[[#Headers],[Jun]]),1),INDEX(Planificados_de_la_oficina[],,1),0),MATCH(Desviaciones_de_la_oficina[[#Headers],[Jun]],Planificados_de_la_oficina[#Headers],0))-INDEX(Reales_de_la_oficina[],MATCH(INDEX(Desviaciones_de_la_oficina[],ROW()-ROW(Desviaciones_de_la_oficina[[#Headers],[Jun]]),1),INDEX(Planificados_de_la_oficina[],,1),0),MATCH(Desviaciones_de_la_oficina[[#Headers],[Jun]],Reales_de_la_oficina[#Headers],0))","v":{"v":0,"d":"0.00 €"}},{"$f":"INDEX(Planificados_de_la_oficina[],MATCH(INDEX(Desviaciones_de_la_oficina[],ROW()-ROW(Desviaciones_de_la_oficina[[#Headers],[Jul]]),1),INDEX(Planificados_de_la_oficina[],,1),0),MATCH(Desviaciones_de_la_oficina[[#Headers],[Jul]],Planificados_de_la_oficina[#Headers],0))-INDEX(Reales_de_la_oficina[],MATCH(INDEX(Desviaciones_de_la_oficina[],ROW()-ROW(Desviaciones_de_la_oficina[[#Headers],[Jul]]),1),INDEX(Planificados_de_la_oficina[],,1),0),MATCH(Desviaciones_de_la_oficina[[#Headers],[Jul]],Reales_de_la_oficina[#Headers],0))","v":{"v":9800,"d":"9,800.00 €"}},{"$f":"INDEX(Planificados_de_la_oficina[],MATCH(INDEX(Desviaciones_de_la_oficina[],ROW()-ROW(Desviaciones_de_la_oficina[[#Headers],[Ago]]),1),INDEX(Planificados_de_la_oficina[],,1),0),MATCH(Desviaciones_de_la_oficina[[#Headers],[Ago]],Planificados_de_la_oficina[#Headers],0))-INDEX(Reales_de_la_oficina[],MATCH(INDEX(Desviaciones_de_la_oficina[],ROW()-ROW(Desviaciones_de_la_oficina[[#Headers],[Ago]]),1),INDEX(Planificados_de_la_oficina[],,1),0),MATCH(Desviaciones_de_la_oficina[[#Headers],[Ago]],Reales_de_la_oficina[#Headers],0))","v":{"v":9800,"d":"9,800.00 €"}},{"$f":"INDEX(Planificados_de_la_oficina[],MATCH(INDEX(Desviaciones_de_la_oficina[],ROW()-ROW(Desviaciones_de_la_oficina[[#Headers],[Sep]]),1),INDEX(Planificados_de_la_oficina[],,1),0),MATCH(Desviaciones_de_la_oficina[[#Headers],[Sep]],Planificados_de_la_oficina[#Headers],0))-INDEX(Reales_de_la_oficina[],MATCH(INDEX(Desviaciones_de_la_oficina[],ROW()-ROW(Desviaciones_de_la_oficina[[#Headers],[Sep]]),1),INDEX(Planificados_de_la_oficina[],,1),0),MATCH(Desviaciones_de_la_oficina[[#Headers],[Sep]],Reales_de_la_oficina[#Headers],0))","v":{"v":9800,"d":"9,800.00 €"}},{"$f":"INDEX(Planificados_de_la_oficina[],MATCH(INDEX(Desviaciones_de_la_oficina[],ROW()-ROW(Desviaciones_de_la_oficina[[#Headers],[Oct]]),1),INDEX(Planificados_de_la_oficina[],,1),0),MATCH(Desviaciones_de_la_oficina[[#Headers],[Oct]],Planificados_de_la_oficina[#Headers],0))-INDEX(Reales_de_la_oficina[],MATCH(INDEX(Desviaciones_de_la_oficina[],ROW()-ROW(Desviaciones_de_la_oficina[[#Headers],[Oct]]),1),INDEX(Planificados_de_la_oficina[],,1),0),MATCH(Desviaciones_de_la_oficina[[#Headers],[Oct]],Reales_de_la_oficina[#Headers],0))","v":{"v":9800,"d":"9,800.00 €"}},{"$f":"INDEX(Planificados_de_la_oficina[],MATCH(INDEX(Desviaciones_de_la_oficina[],ROW()-ROW(Desviaciones_de_la_oficina[[#Headers],[Nov]]),1),INDEX(Planificados_de_la_oficina[],,1),0),MATCH(Desviaciones_de_la_oficina[[#Headers],[Nov]],Planificados_de_la_oficina[#Headers],0))-INDEX(Reales_de_la_oficina[],MATCH(INDEX(Desviaciones_de_la_oficina[],ROW()-ROW(Desviaciones_de_la_oficina[[#Headers],[Nov]]),1),INDEX(Planificados_de_la_oficina[],,1),0),MATCH(Desviaciones_de_la_oficina[[#Headers],[Nov]],Reales_de_la_oficina[#Headers],0))","v":{"v":9800,"d":"9,800.00 €"}},{"$f":"INDEX(Planificados_de_la_oficina[],MATCH(INDEX(Desviaciones_de_la_oficina[],ROW()-ROW(Desviaciones_de_la_oficina[[#Headers],[Dic]]),1),INDEX(Planificados_de_la_oficina[],,1),0),MATCH(Desviaciones_de_la_oficina[[#Headers],[Dic]],Planificados_de_la_oficina[#Headers],0))-INDEX(Reales_de_la_oficina[],MATCH(INDEX(Desviaciones_de_la_oficina[],ROW()-ROW(Desviaciones_de_la_oficina[[#Headers],[Dic]]),1),INDEX(Planificados_de_la_oficina[],,1),0),MATCH(Desviaciones_de_la_oficina[[#Headers],[Dic]],Reales_de_la_oficina[#Headers],0))","v":{"v":9800,"d":"9,800.00 €"}},{"$f":"SUM(Desviaciones_de_la_oficina[[#This Row],[Ene]:[Dic]])","v":{"v":58800,"d":"58,800.00 €"}}]
[null,"Gas",{"$f":"INDEX(Planificados_de_la_oficina[],MATCH(INDEX(Desviaciones_de_la_oficina[],ROW()-ROW(Desviaciones_de_la_oficina[[#Headers],[Ene]]),1),INDEX(Planificados_de_la_oficina[],,1),0),MATCH(Desviaciones_de_la_oficina[[#Headers],[Ene]],Planificados_de_la_oficina[#Headers],0))-INDEX(Reales_de_la_oficina[],MATCH(INDEX(Desviaciones_de_la_oficina[],ROW()-ROW(Desviaciones_de_la_oficina[[#Headers],[Ene]]),1),INDEX(Planificados_de_la_oficina[],,1),0),MATCH(Desviaciones_de_la_oficina[[#Headers],[Ene]],Reales_de_la_oficina[#Headers],0))","v":{"v":-4,"d":"-4.00 €"}},{"$f":"INDEX(Planificados_de_la_oficina[],MATCH(INDEX(Desviaciones_de_la_oficina[],ROW()-ROW(Desviaciones_de_la_oficina[[#Headers],[Feb]]),1),INDEX(Planificados_de_la_oficina[],,1),0),MATCH(Desviaciones_de_la_oficina[[#Headers],[Feb]],Planificados_de_la_oficina[#Headers],0))-INDEX(Reales_de_la_oficina[],MATCH(INDEX(Desviaciones_de_la_oficina[],ROW()-ROW(Desviaciones_de_la_oficina[[#Headers],[Feb]]),1),INDEX(Planificados_de_la_oficina[],,1),0),MATCH(Desviaciones_de_la_oficina[[#Headers],[Feb]],Reales_de_la_oficina[#Headers],0))","v":{"v":-30,"d":"-30.00 €"}},{"$f":"INDEX(Planificados_de_la_oficina[],MATCH(INDEX(Desviaciones_de_la_oficina[],ROW()-ROW(Desviaciones_de_la_oficina[[#Headers],[Mar]]),1),INDEX(Planificados_de_la_oficina[],,1),0),MATCH(Desviaciones_de_la_oficina[[#Headers],[Mar]],Planificados_de_la_oficina[#Headers],0))-INDEX(Reales_de_la_oficina[],MATCH(INDEX(Desviaciones_de_la_oficina[],ROW()-ROW(Desviaciones_de_la_oficina[[#Headers],[Mar]]),1),INDEX(Planificados_de_la_oficina[],,1),0),MATCH(Desviaciones_de_la_oficina[[#Headers],[Mar]],Reales_de_la_oficina[#Headers],0))","v":{"v":15,"d":"15.00 €"}},{"$f":"INDEX(Planificados_de_la_oficina[],MATCH(INDEX(Desviaciones_de_la_oficina[],ROW()-ROW(Desviaciones_de_la_oficina[[#Headers],[Abr]]),1),INDEX(Planificados_de_la_oficina[],,1),0),MATCH(Desviaciones_de_la_oficina[[#Headers],[Abr]],Planificados_de_la_oficina[#Headers],0))-INDEX(Reales_de_la_oficina[],MATCH(INDEX(Desviaciones_de_la_oficina[],ROW()-ROW(Desviaciones_de_la_oficina[[#Headers],[Abr]]),1),INDEX(Planificados_de_la_oficina[],,1),0),MATCH(Desviaciones_de_la_oficina[[#Headers],[Abr]],Reales_de_la_oficina[#Headers],0))","v":{"v":-130,"d":"-130.00 €"}},{"$f":"INDEX(Planificados_de_la_oficina[],MATCH(INDEX(Desviaciones_de_la_oficina[],ROW()-ROW(Desviaciones_de_la_oficina[[#Headers],[May]]),1),INDEX(Planificados_de_la_oficina[],,1),0),MATCH(Desviaciones_de_la_oficina[[#Headers],[May]],Planificados_de_la_oficina[#Headers],0))-INDEX(Reales_de_la_oficina[],MATCH(INDEX(Desviaciones_de_la_oficina[],ROW()-ROW(Desviaciones_de_la_oficina[[#Headers],[May]]),1),INDEX(Planificados_de_la_oficina[],,1),0),MATCH(Desviaciones_de_la_oficina[[#Headers],[May]],Reales_de_la_oficina[#Headers],0))","v":{"v":13,"d":"13.00 €"}},{"$f":"INDEX(Planificados_de_la_oficina[],MATCH(INDEX(Desviaciones_de_la_oficina[],ROW()-ROW(Desviaciones_de_la_oficina[[#Headers],[Jun]]),1),INDEX(Planificados_de_la_oficina[],,1),0),MATCH(Desviaciones_de_la_oficina[[#Headers],[Jun]],Planificados_de_la_oficina[#Headers],0))-INDEX(Reales_de_la_oficina[],MATCH(INDEX(Desviaciones_de_la_oficina[],ROW()-ROW(Desviaciones_de_la_oficina[[#Headers],[Jun]]),1),INDEX(Planificados_de_la_oficina[],,1),0),MATCH(Desviaciones_de_la_oficina[[#Headers],[Jun]],Reales_de_la_oficina[#Headers],0))","v":{"v":12,"d":"12.00 €"}},{"$f":"INDEX(Planificados_de_la_oficina[],MATCH(INDEX(Desviaciones_de_la_oficina[],ROW()-ROW(Desviaciones_de_la_oficina[[#Headers],[Jul]]),1),INDEX(Planificados_de_la_oficina[],,1),0),MATCH(Desviaciones_de_la_oficina[[#Headers],[Jul]],Planificados_de_la_oficina[#Headers],0))-INDEX(Reales_de_la_oficina[],MATCH(INDEX(Desviaciones_de_la_oficina[],ROW()-ROW(Desviaciones_de_la_oficina[[#Headers],[Jul]]),1),INDEX(Planificados_de_la_oficina[],,1),0),MATCH(Desviaciones_de_la_oficina[[#Headers],[Jul]],Reales_de_la_oficina[#Headers],0))","v":{"v":100,"d":"100.00 €"}},{"$f":"INDEX(Planificados_de_la_oficina[],MATCH(INDEX(Desviaciones_de_la_oficina[],ROW()-ROW(Desviaciones_de_la_oficina[[#Headers],[Ago]]),1),INDEX(Planificados_de_la_oficina[],,1),0),MATCH(Desviaciones_de_la_oficina[[#Headers],[Ago]],Planificados_de_la_oficina[#Headers],0))-INDEX(Reales_de_la_oficina[],MATCH(INDEX(Desviaciones_de_la_oficina[],ROW()-ROW(Desviaciones_de_la_oficina[[#Headers],[Ago]]),1),INDEX(Planificados_de_la_oficina[],,1),0),MATCH(Desviaciones_de_la_oficina[[#Headers],[Ago]],Reales_de_la_oficina[#Headers],0))","v":{"v":100,"d":"100.00 €"}},{"$f":"INDEX(Planificados_de_la_oficina[],MATCH(INDEX(Desviaciones_de_la_oficina[],ROW()-ROW(Desviaciones_de_la_oficina[[#Headers],[Sep]]),1),INDEX(Planificados_de_la_oficina[],,1),0),MATCH(Desviaciones_de_la_oficina[[#Headers],[Sep]],Planificados_de_la_oficina[#Headers],0))-INDEX(Reales_de_la_oficina[],MATCH(INDEX(Desviaciones_de_la_oficina[],ROW()-ROW(Desviaciones_de_la_oficina[[#Headers],[Sep]]),1),INDEX(Planificados_de_la_oficina[],,1),0),MATCH(Desviaciones_de_la_oficina[[#Headers],[Sep]],Reales_de_la_oficina[#Headers],0))","v":{"v":100,"d":"100.00 €"}},{"$f":"INDEX(Planificados_de_la_oficina[],MATCH(INDEX(Desviaciones_de_la_oficina[],ROW()-ROW(Desviaciones_de_la_oficina[[#Headers],[Oct]]),1),INDEX(Planificados_de_la_oficina[],,1),0),MATCH(Desviaciones_de_la_oficina[[#Headers],[Oct]],Planificados_de_la_oficina[#Headers],0))-INDEX(Reales_de_la_oficina[],MATCH(INDEX(Desviaciones_de_la_oficina[],ROW()-ROW(Desviaciones_de_la_oficina[[#Headers],[Oct]]),1),INDEX(Planificados_de_la_oficina[],,1),0),MATCH(Desviaciones_de_la_oficina[[#Headers],[Oct]],Reales_de_la_oficina[#Headers],0))","v":{"v":100,"d":"100.00 €"}},{"$f":"INDEX(Planificados_de_la_oficina[],MATCH(INDEX(Desviaciones_de_la_oficina[],ROW()-ROW(Desviaciones_de_la_oficina[[#Headers],[Nov]]),1),INDEX(Planificados_de_la_oficina[],,1),0),MATCH(Desviaciones_de_la_oficina[[#Headers],[Nov]],Planificados_de_la_oficina[#Headers],0))-INDEX(Reales_de_la_oficina[],MATCH(INDEX(Desviaciones_de_la_oficina[],ROW()-ROW(Desviaciones_de_la_oficina[[#Headers],[Nov]]),1),INDEX(Planificados_de_la_oficina[],,1),0),MATCH(Desviaciones_de_la_oficina[[#Headers],[Nov]],Reales_de_la_oficina[#Headers],0))","v":{"v":400,"d":"400.00 €"}},{"$f":"INDEX(Planificados_de_la_oficina[],MATCH(INDEX(Desviaciones_de_la_oficina[],ROW()-ROW(Desviaciones_de_la_oficina[[#Headers],[Dic]]),1),INDEX(Planificados_de_la_oficina[],,1),0),MATCH(Desviaciones_de_la_oficina[[#Headers],[Dic]],Planificados_de_la_oficina[#Headers],0))-INDEX(Reales_de_la_oficina[],MATCH(INDEX(Desviaciones_de_la_oficina[],ROW()-ROW(Desviaciones_de_la_oficina[[#Headers],[Dic]]),1),INDEX(Planificados_de_la_oficina[],,1),0),MATCH(Desviaciones_de_la_oficina[[#Headers],[Dic]],Reales_de_la_oficina[#Headers],0))","v":{"v":400,"d":"400.00 €"}},{"$f":"SUM(Desviaciones_de_la_oficina[[#This Row],[Ene]:[Dic]])","v":{"v":1076,"d":"1,076.00 €"}}]
[null,"Electricidad",{"$f":"INDEX(Planificados_de_la_oficina[],MATCH(INDEX(Desviaciones_de_la_oficina[],ROW()-ROW(Desviaciones_de_la_oficina[[#Headers],[Ene]]),1),INDEX(Planificados_de_la_oficina[],,1),0),MATCH(Desviaciones_de_la_oficina[[#Headers],[Ene]],Planificados_de_la_oficina[#Headers],0))-INDEX(Reales_de_la_oficina[],MATCH(INDEX(Desviaciones_de_la_oficina[],ROW()-ROW(Desviaciones_de_la_oficina[[#Headers],[Ene]]),1),INDEX(Planificados_de_la_oficina[],,1),0),MATCH(Desviaciones_de_la_oficina[[#Headers],[Ene]],Reales_de_la_oficina[#Headers],0))","v":{"v":12,"d":"12.00 €"}},{"$f":"INDEX(Planificados_de_la_oficina[],MATCH(INDEX(Desviaciones_de_la_oficina[],ROW()-ROW(Desviaciones_de_la_oficina[[#Headers],[Feb]]),1),INDEX(Planificados_de_la_oficina[],,1),0),MATCH(Desviaciones_de_la_oficina[[#Headers],[Feb]],Planificados_de_la_oficina[#Headers],0))-INDEX(Reales_de_la_oficina[],MATCH(INDEX(Desviaciones_de_la_oficina[],ROW()-ROW(Desviaciones_de_la_oficina[[#Headers],[Feb]]),1),INDEX(Planificados_de_la_oficina[],,1),0),MATCH(Desviaciones_de_la_oficina[[#Headers],[Feb]],Reales_de_la_oficina[#Headers],0))","v":{"v":22,"d":"22.00 €"}},{"$f":"INDEX(Planificados_de_la_oficina[],MATCH(INDEX(Desviaciones_de_la_oficina[],ROW()-ROW(Desviaciones_de_la_oficina[[#Headers],[Mar]]),1),INDEX(Planificados_de_la_oficina[],,1),0),MATCH(Desviaciones_de_la_oficina[[#Headers],[Mar]],Planificados_de_la_oficina[#Headers],0))-INDEX(Reales_de_la_oficina[],MATCH(INDEX(Desviaciones_de_la_oficina[],ROW()-ROW(Desviaciones_de_la_oficina[[#Headers],[Mar]]),1),INDEX(Planificados_de_la_oficina[],,1),0),MATCH(Desviaciones_de_la_oficina[[#Headers],[Mar]],Reales_de_la_oficina[#Headers],0))","v":{"v":32,"d":"32.00 €"}},{"$f":"INDEX(Planificados_de_la_oficina[],MATCH(INDEX(Desviaciones_de_la_oficina[],ROW()-ROW(Desviaciones_de_la_oficina[[#Headers],[Abr]]),1),INDEX(Planificados_de_la_oficina[],,1),0),MATCH(Desviaciones_de_la_oficina[[#Headers],[Abr]],Planificados_de_la_oficina[#Headers],0))-INDEX(Reales_de_la_oficina[],MATCH(INDEX(Desviaciones_de_la_oficina[],ROW()-ROW(Desviaciones_de_la_oficina[[#Headers],[Abr]]),1),INDEX(Planificados_de_la_oficina[],,1),0),MATCH(Desviaciones_de_la_oficina[[#Headers],[Abr]],Reales_de_la_oficina[#Headers],0))","v":{"v":1,"d":"1.00 €"}},{"$f":"INDEX(Planificados_de_la_oficina[],MATCH(INDEX(Desviaciones_de_la_oficina[],ROW()-ROW(Desviaciones_de_la_oficina[[#Headers],[May]]),1),INDEX(Planificados_de_la_oficina[],,1),0),MATCH(Desviaciones_de_la_oficina[[#Headers],[May]],Planificados_de_la_oficina[#Headers],0))-INDEX(Reales_de_la_oficina[],MATCH(INDEX(Desviaciones_de_la_oficina[],ROW()-ROW(Desviaciones_de_la_oficina[[#Headers],[May]]),1),INDEX(Planificados_de_la_oficina[],,1),0),MATCH(Desviaciones_de_la_oficina[[#Headers],[May]],Reales_de_la_oficina[#Headers],0))","v":{"v":-6,"d":"-6.00 €"}},{"$f":"INDEX(Planificados_de_la_oficina[],MATCH(INDEX(Desviaciones_de_la_oficina[],ROW()-ROW(Desviaciones_de_la_oficina[[#Headers],[Jun]]),1),INDEX(Planificados_de_la_oficina[],,1),0),MATCH(Desviaciones_de_la_oficina[[#Headers],[Jun]],Planificados_de_la_oficina[#Headers],0))-INDEX(Reales_de_la_oficina[],MATCH(INDEX(Desviaciones_de_la_oficina[],ROW()-ROW(Desviaciones_de_la_oficina[[#Headers],[Jun]]),1),INDEX(Planificados_de_la_oficina[],,1),0),MATCH(Desviaciones_de_la_oficina[[#Headers],[Jun]],Reales_de_la_oficina[#Headers],0))","v":{"v":10,"d":"10.00 €"}},{"$f":"INDEX(Planificados_de_la_oficina[],MATCH(INDEX(Desviaciones_de_la_oficina[],ROW()-ROW(Desviaciones_de_la_oficina[[#Headers],[Jul]]),1),INDEX(Planificados_de_la_oficina[],,1),0),MATCH(Desviaciones_de_la_oficina[[#Headers],[Jul]],Planificados_de_la_oficina[#Headers],0))-INDEX(Reales_de_la_oficina[],MATCH(INDEX(Desviaciones_de_la_oficina[],ROW()-ROW(Desviaciones_de_la_oficina[[#Headers],[Jul]]),1),INDEX(Planificados_de_la_oficina[],,1),0),MATCH(Desviaciones_de_la_oficina[[#Headers],[Jul]],Reales_de_la_oficina[#Headers],0))","v":{"v":300,"d":"300.00 €"}},{"$f":"INDEX(Planificados_de_la_oficina[],MATCH(INDEX(Desviaciones_de_la_oficina[],ROW()-ROW(Desviaciones_de_la_oficina[[#Headers],[Ago]]),1),INDEX(Planificados_de_la_oficina[],,1),0),MATCH(Desviaciones_de_la_oficina[[#Headers],[Ago]],Planificados_de_la_oficina[#Headers],0))-INDEX(Reales_de_la_oficina[],MATCH(INDEX(Desviaciones_de_la_oficina[],ROW()-ROW(Desviaciones_de_la_oficina[[#Headers],[Ago]]),1),INDEX(Planificados_de_la_oficina[],,1),0),MATCH(Desviaciones_de_la_oficina[[#Headers],[Ago]],Reales_de_la_oficina[#Headers],0))","v":{"v":300,"d":"300.00 €"}},{"$f":"INDEX(Planificados_de_la_oficina[],MATCH(INDEX(Desviaciones_de_la_oficina[],ROW()-ROW(Desviaciones_de_la_oficina[[#Headers],[Sep]]),1),INDEX(Planificados_de_la_oficina[],,1),0),MATCH(Desviaciones_de_la_oficina[[#Headers],[Sep]],Planificados_de_la_oficina[#Headers],0))-INDEX(Reales_de_la_oficina[],MATCH(INDEX(Desviaciones_de_la_oficina[],ROW()-ROW(Desviaciones_de_la_oficina[[#Headers],[Sep]]),1),INDEX(Planificados_de_la_oficina[],,1),0),MATCH(Desviaciones_de_la_oficina[[#Headers],[Sep]],Reales_de_la_oficina[#Headers],0))","v":{"v":300,"d":"300.00 €"}},{"$f":"INDEX(Planificados_de_la_oficina[],MATCH(INDEX(Desviaciones_de_la_oficina[],ROW()-ROW(Desviaciones_de_la_oficina[[#Headers],[Oct]]),1),INDEX(Planificados_de_la_oficina[],,1),0),MATCH(Desviaciones_de_la_oficina[[#Headers],[Oct]],Planificados_de_la_oficina[#Headers],0))-INDEX(Reales_de_la_oficina[],MATCH(INDEX(Desviaciones_de_la_oficina[],ROW()-ROW(Desviaciones_de_la_oficina[[#Headers],[Oct]]),1),INDEX(Planificados_de_la_oficina[],,1),0),MATCH(Desviaciones_de_la_oficina[[#Headers],[Oct]],Reales_de_la_oficina[#Headers],0))","v":{"v":300,"d":"300.00 €"}},{"$f":"INDEX(Planificados_de_la_oficina[],MATCH(INDEX(Desviaciones_de_la_oficina[],ROW()-ROW(Desviaciones_de_la_oficina[[#Headers],[Nov]]),1),INDEX(Planificados_de_la_oficina[],,1),0),MATCH(Desviaciones_de_la_oficina[[#Headers],[Nov]],Planificados_de_la_oficina[#Headers],0))-INDEX(Reales_de_la_oficina[],MATCH(INDEX(Desviaciones_de_la_oficina[],ROW()-ROW(Desviaciones_de_la_oficina[[#Headers],[Nov]]),1),INDEX(Planificados_de_la_oficina[],,1),0),MATCH(Desviaciones_de_la_oficina[[#Headers],[Nov]],Reales_de_la_oficina[#Headers],0))","v":{"v":300,"d":"300.00 €"}},{"$f":"INDEX(Planificados_de_la_oficina[],MATCH(INDEX(Desviaciones_de_la_oficina[],ROW()-ROW(Desviaciones_de_la_oficina[[#Headers],[Dic]]),1),INDEX(Planificados_de_la_oficina[],,1),0),MATCH(Desviaciones_de_la_oficina[[#Headers],[Dic]],Planificados_de_la_oficina[#Headers],0))-INDEX(Reales_de_la_oficina[],MATCH(INDEX(Desviaciones_de_la_oficina[],ROW()-ROW(Desviaciones_de_la_oficina[[#Headers],[Dic]]),1),INDEX(Planificados_de_la_oficina[],,1),0),MATCH(Desviaciones_de_la_oficina[[#Headers],[Dic]],Reales_de_la_oficina[#Headers],0))","v":{"v":300,"d":"300.00 €"}},{"$f":"SUM(Desviaciones_de_la_oficina[[#This Row],[Ene]:[Dic]])","v":{"v":1871,"d":"1,871.00 €"}}]
[null,"Agua",{"$f":"INDEX(Planificados_de_la_oficina[],MATCH(INDEX(Desviaciones_de_la_oficina[],ROW()-ROW(Desviaciones_de_la_oficina[[#Headers],[Ene]]),1),INDEX(Planificados_de_la_oficina[],,1),0),MATCH(Desviaciones_de_la_oficina[[#Headers],[Ene]],Planificados_de_la_oficina[#Headers],0))-INDEX(Reales_de_la_oficina[],MATCH(INDEX(Desviaciones_de_la_oficina[],ROW()-ROW(Desviaciones_de_la_oficina[[#Headers],[Ene]]),1),INDEX(Planificados_de_la_oficina[],,1),0),MATCH(Desviaciones_de_la_oficina[[#Headers],[Ene]],Reales_de_la_oficina[#Headers],0))","v":{"v":5,"d":"5.00 €"}},{"$f":"INDEX(Planificados_de_la_oficina[],MATCH(INDEX(Desviaciones_de_la_oficina[],ROW()-ROW(Desviaciones_de_la_oficina[[#Headers],[Feb]]),1),INDEX(Planificados_de_la_oficina[],,1),0),MATCH(Desviaciones_de_la_oficina[[#Headers],[Feb]],Planificados_de_la_oficina[#Headers],0))-INDEX(Reales_de_la_oficina[],MATCH(INDEX(Desviaciones_de_la_oficina[],ROW()-ROW(Desviaciones_de_la_oficina[[#Headers],[Feb]]),1),INDEX(Planificados_de_la_oficina[],,1),0),MATCH(Desviaciones_de_la_oficina[[#Headers],[Feb]],Reales_de_la_oficina[#Headers],0))","v":{"v":7,"d":"7.00 €"}},{"$f":"INDEX(Planificados_de_la_oficina[],MATCH(INDEX(Desviaciones_de_la_oficina[],ROW()-ROW(Desviaciones_de_la_oficina[[#Headers],[Mar]]),1),INDEX(Planificados_de_la_oficina[],,1),0),MATCH(Desviaciones_de_la_oficina[[#Headers],[Mar]],Planificados_de_la_oficina[#Headers],0))-INDEX(Reales_de_la_oficina[],MATCH(INDEX(Desviaciones_de_la_oficina[],ROW()-ROW(Desviaciones_de_la_oficina[[#Headers],[Mar]]),1),INDEX(Planificados_de_la_oficina[],,1),0),MATCH(Desviaciones_de_la_oficina[[#Headers],[Mar]],Reales_de_la_oficina[#Headers],0))","v":{"v":6,"d":"6.00 €"}},{"$f":"INDEX(Planificados_de_la_oficina[],MATCH(INDEX(Desviaciones_de_la_oficina[],ROW()-ROW(Desviaciones_de_la_oficina[[#Headers],[Abr]]),1),INDEX(Planificados_de_la_oficina[],,1),0),MATCH(Desviaciones_de_la_oficina[[#Headers],[Abr]],Planificados_de_la_oficina[#Headers],0))-INDEX(Reales_de_la_oficina[],MATCH(INDEX(Desviaciones_de_la_oficina[],ROW()-ROW(Desviaciones_de_la_oficina[[#Headers],[Abr]]),1),INDEX(Planificados_de_la_oficina[],,1),0),MATCH(Desviaciones_de_la_oficina[[#Headers],[Abr]],Reales_de_la_oficina[#Headers],0))","v":{"v":4,"d":"4.00 €"}},{"$f":"INDEX(Planificados_de_la_oficina[],MATCH(INDEX(Desviaciones_de_la_oficina[],ROW()-ROW(Desviaciones_de_la_oficina[[#Headers],[May]]),1),INDEX(Planificados_de_la_oficina[],,1),0),MATCH(Desviaciones_de_la_oficina[[#Headers],[May]],Planificados_de_la_oficina[#Headers],0))-INDEX(Reales_de_la_oficina[],MATCH(INDEX(Desviaciones_de_la_oficina[],ROW()-ROW(Desviaciones_de_la_oficina[[#Headers],[May]]),1),INDEX(Planificados_de_la_oficina[],,1),0),MATCH(Desviaciones_de_la_oficina[[#Headers],[May]],Reales_de_la_oficina[#Headers],0))","v":{"v":6,"d":"6.00 €"}},{"$f":"INDEX(Planificados_de_la_oficina[],MATCH(INDEX(Desviaciones_de_la_oficina[],ROW()-ROW(Desviaciones_de_la_oficina[[#Headers],[Jun]]),1),INDEX(Planificados_de_la_oficina[],,1),0),MATCH(Desviaciones_de_la_oficina[[#Headers],[Jun]],Planificados_de_la_oficina[#Headers],0))-INDEX(Reales_de_la_oficina[],MATCH(INDEX(Desviaciones_de_la_oficina[],ROW()-ROW(Desviaciones_de_la_oficina[[#Headers],[Jun]]),1),INDEX(Planificados_de_la_oficina[],,1),0),MATCH(Desviaciones_de_la_oficina[[#Headers],[Jun]],Reales_de_la_oficina[#Headers],0))","v":{"v":4,"d":"4.00 €"}},{"$f":"INDEX(Planificados_de_la_oficina[],MATCH(INDEX(Desviaciones_de_la_oficina[],ROW()-ROW(Desviaciones_de_la_oficina[[#Headers],[Jul]]),1),INDEX(Planificados_de_la_oficina[],,1),0),MATCH(Desviaciones_de_la_oficina[[#Headers],[Jul]],Planificados_de_la_oficina[#Headers],0))-INDEX(Reales_de_la_oficina[],MATCH(INDEX(Desviaciones_de_la_oficina[],ROW()-ROW(Desviaciones_de_la_oficina[[#Headers],[Jul]]),1),INDEX(Planificados_de_la_oficina[],,1),0),MATCH(Desviaciones_de_la_oficina[[#Headers],[Jul]],Reales_de_la_oficina[#Headers],0))","v":{"v":40,"d":"40.00 €"}},{"$f":"INDEX(Planificados_de_la_oficina[],MATCH(INDEX(Desviaciones_de_la_oficina[],ROW()-ROW(Desviaciones_de_la_oficina[[#Headers],[Ago]]),1),INDEX(Planificados_de_la_oficina[],,1),0),MATCH(Desviaciones_de_la_oficina[[#Headers],[Ago]],Planificados_de_la_oficina[#Headers],0))-INDEX(Reales_de_la_oficina[],MATCH(INDEX(Desviaciones_de_la_oficina[],ROW()-ROW(Desviaciones_de_la_oficina[[#Headers],[Ago]]),1),INDEX(Planificados_de_la_oficina[],,1),0),MATCH(Desviaciones_de_la_oficina[[#Headers],[Ago]],Reales_de_la_oficina[#Headers],0))","v":{"v":40,"d":"40.00 €"}},{"$f":"INDEX(Planificados_de_la_oficina[],MATCH(INDEX(Desviaciones_de_la_oficina[],ROW()-ROW(Desviaciones_de_la_oficina[[#Headers],[Sep]]),1),INDEX(Planificados_de_la_oficina[],,1),0),MATCH(Desviaciones_de_la_oficina[[#Headers],[Sep]],Planificados_de_la_oficina[#Headers],0))-INDEX(Reales_de_la_oficina[],MATCH(INDEX(Desviaciones_de_la_oficina[],ROW()-ROW(Desviaciones_de_la_oficina[[#Headers],[Sep]]),1),INDEX(Planificados_de_la_oficina[],,1),0),MATCH(Desviaciones_de_la_oficina[[#Headers],[Sep]],Reales_de_la_oficina[#Headers],0))","v":{"v":40,"d":"40.00 €"}},{"$f":"INDEX(Planificados_de_la_oficina[],MATCH(INDEX(Desviaciones_de_la_oficina[],ROW()-ROW(Desviaciones_de_la_oficina[[#Headers],[Oct]]),1),INDEX(Planificados_de_la_oficina[],,1),0),MATCH(Desviaciones_de_la_oficina[[#Headers],[Oct]],Planificados_de_la_oficina[#Headers],0))-INDEX(Reales_de_la_oficina[],MATCH(INDEX(Desviaciones_de_la_oficina[],ROW()-ROW(Desviaciones_de_la_oficina[[#Headers],[Oct]]),1),INDEX(Planificados_de_la_oficina[],,1),0),MATCH(Desviaciones_de_la_oficina[[#Headers],[Oct]],Reales_de_la_oficina[#Headers],0))","v":{"v":40,"d":"40.00 €"}},{"$f":"INDEX(Planificados_de_la_oficina[],MATCH(INDEX(Desviaciones_de_la_oficina[],ROW()-ROW(Desviaciones_de_la_oficina[[#Headers],[Nov]]),1),INDEX(Planificados_de_la_oficina[],,1),0),MATCH(Desviaciones_de_la_oficina[[#Headers],[Nov]],Planificados_de_la_oficina[#Headers],0))-INDEX(Reales_de_la_oficina[],MATCH(INDEX(Desviaciones_de_la_oficina[],ROW()-ROW(Desviaciones_de_la_oficina[[#Headers],[Nov]]),1),INDEX(Planificados_de_la_oficina[],,1),0),MATCH(Desviaciones_de_la_oficina[[#Headers],[Nov]],Reales_de_la_oficina[#Headers],0))","v":{"v":40,"d":"40.00 €"}},{"$f":"INDEX(Planificados_de_la_oficina[],MATCH(INDEX(Desviaciones_de_la_oficina[],ROW()-ROW(Desviaciones_de_la_oficina[[#Headers],[Dic]]),1),INDEX(Planificados_de_la_oficina[],,1),0),MATCH(Desviaciones_de_la_oficina[[#Headers],[Dic]],Planificados_de_la_oficina[#Headers],0))-INDEX(Reales_de_la_oficina[],MATCH(INDEX(Desviaciones_de_la_oficina[],ROW()-ROW(Desviaciones_de_la_oficina[[#Headers],[Dic]]),1),INDEX(Planificados_de_la_oficina[],,1),0),MATCH(Desviaciones_de_la_oficina[[#Headers],[Dic]],Reales_de_la_oficina[#Headers],0))","v":{"v":40,"d":"40.00 €"}},{"$f":"SUM(Desviaciones_de_la_oficina[[#This Row],[Ene]:[Dic]])","v":{"v":272,"d":"272.00 €"}}]
[null,"Teléfono",{"$f":"INDEX(Planificados_de_la_oficina[],MATCH(INDEX(Desviaciones_de_la_oficina[],ROW()-ROW(Desviaciones_de_la_oficina[[#Headers],[Ene]]),1),INDEX(Planificados_de_la_oficina[],,1),0),MATCH(Desviaciones_de_la_oficina[[#Headers],[Ene]],Planificados_de_la_oficina[#Headers],0))-INDEX(Reales_de_la_oficina[],MATCH(INDEX(Desviaciones_de_la_oficina[],ROW()-ROW(Desviaciones_de_la_oficina[[#Headers],[Ene]]),1),INDEX(Planificados_de_la_oficina[],,1),0),MATCH(Desviaciones_de_la_oficina[[#Headers],[Ene]],Reales_de_la_oficina[#Headers],0))","v":{"v":26,"d":"26.00 €"}},{"$f":"INDEX(Planificados_de_la_oficina[],MATCH(INDEX(Desviaciones_de_la_oficina[],ROW()-ROW(Desviaciones_de_la_oficina[[#Headers],[Feb]]),1),INDEX(Planificados_de_la_oficina[],,1),0),MATCH(Desviaciones_de_la_oficina[[#Headers],[Feb]],Planificados_de_la_oficina[#Headers],0))-INDEX(Reales_de_la_oficina[],MATCH(INDEX(Desviaciones_de_la_oficina[],ROW()-ROW(Desviaciones_de_la_oficina[[#Headers],[Feb]]),1),INDEX(Planificados_de_la_oficina[],,1),0),MATCH(Desviaciones_de_la_oficina[[#Headers],[Feb]],Reales_de_la_oficina[#Headers],0))","v":{"v":15,"d":"15.00 €"}},{"$f":"INDEX(Planificados_de_la_oficina[],MATCH(INDEX(Desviaciones_de_la_oficina[],ROW()-ROW(Desviaciones_de_la_oficina[[#Headers],[Mar]]),1),INDEX(Planificados_de_la_oficina[],,1),0),MATCH(Desviaciones_de_la_oficina[[#Headers],[Mar]],Planificados_de_la_oficina[#Headers],0))-INDEX(Reales_de_la_oficina[],MATCH(INDEX(Desviaciones_de_la_oficina[],ROW()-ROW(Desviaciones_de_la_oficina[[#Headers],[Mar]]),1),INDEX(Planificados_de_la_oficina[],,1),0),MATCH(Desviaciones_de_la_oficina[[#Headers],[Mar]],Reales_de_la_oficina[#Headers],0))","v":{"v":-15,"d":"-15.00 €"}},{"$f":"INDEX(Planificados_de_la_oficina[],MATCH(INDEX(Desviaciones_de_la_oficina[],ROW()-ROW(Desviaciones_de_la_oficina[[#Headers],[Abr]]),1),INDEX(Planificados_de_la_oficina[],,1),0),MATCH(Desviaciones_de_la_oficina[[#Headers],[Abr]],Planificados_de_la_oficina[#Headers],0))-INDEX(Reales_de_la_oficina[],MATCH(INDEX(Desviaciones_de_la_oficina[],ROW()-ROW(Desviaciones_de_la_oficina[[#Headers],[Abr]]),1),INDEX(Planificados_de_la_oficina[],,1),0),MATCH(Desviaciones_de_la_oficina[[#Headers],[Abr]],Reales_de_la_oficina[#Headers],0))","v":{"v":5,"d":"5.00 €"}},{"$f":"INDEX(Planificados_de_la_oficina[],MATCH(INDEX(Desviaciones_de_la_oficina[],ROW()-ROW(Desviaciones_de_la_oficina[[#Headers],[May]]),1),INDEX(Planificados_de_la_oficina[],,1),0),MATCH(Desviaciones_de_la_oficina[[#Headers],[May]],Planificados_de_la_oficina[#Headers],0))-INDEX(Reales_de_la_oficina[],MATCH(INDEX(Desviaciones_de_la_oficina[],ROW()-ROW(Desviaciones_de_la_oficina[[#Headers],[May]]),1),INDEX(Planificados_de_la_oficina[],,1),0),MATCH(Desviaciones_de_la_oficina[[#Headers],[May]],Reales_de_la_oficina[#Headers],0))","v":{"v":5,"d":"5.00 €"}},{"$f":"INDEX(Planificados_de_la_oficina[],MATCH(INDEX(Desviaciones_de_la_oficina[],ROW()-ROW(Desviaciones_de_la_oficina[[#Headers],[Jun]]),1),INDEX(Planificados_de_la_oficina[],,1),0),MATCH(Desviaciones_de_la_oficina[[#Headers],[Jun]],Planificados_de_la_oficina[#Headers],0))-INDEX(Reales_de_la_oficina[],MATCH(INDEX(Desviaciones_de_la_oficina[],ROW()-ROW(Desviaciones_de_la_oficina[[#Headers],[Jun]]),1),INDEX(Planificados_de_la_oficina[],,1),0),MATCH(Desviaciones_de_la_oficina[[#Headers],[Jun]],Reales_de_la_oficina[#Headers],0))","v":{"v":30,"d":"30.00 €"}},{"$f":"INDEX(Planificados_de_la_oficina[],MATCH(INDEX(Desviaciones_de_la_oficina[],ROW()-ROW(Desviaciones_de_la_oficina[[#Headers],[Jul]]),1),INDEX(Planificados_de_la_oficina[],,1),0),MATCH(Desviaciones_de_la_oficina[[#Headers],[Jul]],Planificados_de_la_oficina[#Headers],0))-INDEX(Reales_de_la_oficina[],MATCH(INDEX(Desviaciones_de_la_oficina[],ROW()-ROW(Desviaciones_de_la_oficina[[#Headers],[Jul]]),1),INDEX(Planificados_de_la_oficina[],,1),0),MATCH(Desviaciones_de_la_oficina[[#Headers],[Jul]],Reales_de_la_oficina[#Headers],0))","v":{"v":250,"d":"250.00 €"}},{"$f":"INDEX(Planificados_de_la_oficina[],MATCH(INDEX(Desviaciones_de_la_oficina[],ROW()-ROW(Desviaciones_de_la_oficina[[#Headers],[Ago]]),1),INDEX(Planificados_de_la_oficina[],,1),0),MATCH(Desviaciones_de_la_oficina[[#Headers],[Ago]],Planificados_de_la_oficina[#Headers],0))-INDEX(Reales_de_la_oficina[],MATCH(INDEX(Desviaciones_de_la_oficina[],ROW()-ROW(Desviaciones_de_la_oficina[[#Headers],[Ago]]),1),INDEX(Planificados_de_la_oficina[],,1),0),MATCH(Desviaciones_de_la_oficina[[#Headers],[Ago]],Reales_de_la_oficina[#Headers],0))","v":{"v":250,"d":"250.00 €"}},{"$f":"INDEX(Planificados_de_la_oficina[],MATCH(INDEX(Desviaciones_de_la_oficina[],ROW()-ROW(Desviaciones_de_la_oficina[[#Headers],[Sep]]),1),INDEX(Planificados_de_la_oficina[],,1),0),MATCH(Desviaciones_de_la_oficina[[#Headers],[Sep]],Planificados_de_la_oficina[#Headers],0))-INDEX(Reales_de_la_oficina[],MATCH(INDEX(Desviaciones_de_la_oficina[],ROW()-ROW(Desviaciones_de_la_oficina[[#Headers],[Sep]]),1),INDEX(Planificados_de_la_oficina[],,1),0),MATCH(Desviaciones_de_la_oficina[[#Headers],[Sep]],Reales_de_la_oficina[#Headers],0))","v":{"v":250,"d":"250.00 €"}},{"$f":"INDEX(Planificados_de_la_oficina[],MATCH(INDEX(Desviaciones_de_la_oficina[],ROW()-ROW(Desviaciones_de_la_oficina[[#Headers],[Oct]]),1),INDEX(Planificados_de_la_oficina[],,1),0),MATCH(Desviaciones_de_la_oficina[[#Headers],[Oct]],Planificados_de_la_oficina[#Headers],0))-INDEX(Reales_de_la_oficina[],MATCH(INDEX(Desviaciones_de_la_oficina[],ROW()-ROW(Desviaciones_de_la_oficina[[#Headers],[Oct]]),1),INDEX(Planificados_de_la_oficina[],,1),0),MATCH(Desviaciones_de_la_oficina[[#Headers],[Oct]],Reales_de_la_oficina[#Headers],0))","v":{"v":250,"d":"250.00 €"}},{"$f":"INDEX(Planificados_de_la_oficina[],MATCH(INDEX(Desviaciones_de_la_oficina[],ROW()-ROW(Desviaciones_de_la_oficina[[#Headers],[Nov]]),1),INDEX(Planificados_de_la_oficina[],,1),0),MATCH(Desviaciones_de_la_oficina[[#Headers],[Nov]],Planificados_de_la_oficina[#Headers],0))-INDEX(Reales_de_la_oficina[],MATCH(INDEX(Desviaciones_de_la_oficina[],ROW()-ROW(Desviaciones_de_la_oficina[[#Headers],[Nov]]),1),INDEX(Planificados_de_la_oficina[],,1),0),MATCH(Desviaciones_de_la_oficina[[#Headers],[Nov]],Reales_de_la_oficina[#Headers],0))","v":{"v":250,"d":"250.00 €"}},{"$f":"INDEX(Planificados_de_la_oficina[],MATCH(INDEX(Desviaciones_de_la_oficina[],ROW()-ROW(Desviaciones_de_la_oficina[[#Headers],[Dic]]),1),INDEX(Planificados_de_la_oficina[],,1),0),MATCH(Desviaciones_de_la_oficina[[#Headers],[Dic]],Planificados_de_la_oficina[#Headers],0))-INDEX(Reales_de_la_oficina[],MATCH(INDEX(Desviaciones_de_la_oficina[],ROW()-ROW(Desviaciones_de_la_oficina[[#Headers],[Dic]]),1),INDEX(Planificados_de_la_oficina[],,1),0),MATCH(Desviaciones_de_la_oficina[[#Headers],[Dic]],Reales_de_la_oficina[#Headers],0))","v":{"v":250,"d":"250.00 €"}},{"$f":"SUM(Desviaciones_de_la_oficina[[#This Row],[Ene]:[Dic]])","v":{"v":1566,"d":"1,566.00 €"}}]
[null,"Acceso a Internet",{"$f":"INDEX(Planificados_de_la_oficina[],MATCH(INDEX(Desviaciones_de_la_oficina[],ROW()-ROW(Desviaciones_de_la_oficina[[#Headers],[Ene]]),1),INDEX(Planificados_de_la_oficina[],,1),0),MATCH(Desviaciones_de_la_oficina[[#Headers],[Ene]],Planificados_de_la_oficina[#Headers],0))-INDEX(Reales_de_la_oficina[],MATCH(INDEX(Desviaciones_de_la_oficina[],ROW()-ROW(Desviaciones_de_la_oficina[[#Headers],[Ene]]),1),INDEX(Planificados_de_la_oficina[],,1),0),MATCH(Desviaciones_de_la_oficina[[#Headers],[Ene]],Reales_de_la_oficina[#Headers],0))","v":{"v":0,"d":"0.00 €"}},{"$f":"INDEX(Planificados_de_la_oficina[],MATCH(INDEX(Desviaciones_de_la_oficina[],ROW()-ROW(Desviaciones_de_la_oficina[[#Headers],[Feb]]),1),INDEX(Planificados_de_la_oficina[],,1),0),MATCH(Desviaciones_de_la_oficina[[#Headers],[Feb]],Planificados_de_la_oficina[#Headers],0))-INDEX(Reales_de_la_oficina[],MATCH(INDEX(Desviaciones_de_la_oficina[],ROW()-ROW(Desviaciones_de_la_oficina[[#Headers],[Feb]]),1),INDEX(Planificados_de_la_oficina[],,1),0),MATCH(Desviaciones_de_la_oficina[[#Headers],[Feb]],Reales_de_la_oficina[#Headers],0))","v":{"v":0,"d":"0.00 €"}},{"$f":"INDEX(Planificados_de_la_oficina[],MATCH(INDEX(Desviaciones_de_la_oficina[],ROW()-ROW(Desviaciones_de_la_oficina[[#Headers],[Mar]]),1),INDEX(Planificados_de_la_oficina[],,1),0),MATCH(Desviaciones_de_la_oficina[[#Headers],[Mar]],Planificados_de_la_oficina[#Headers],0))-INDEX(Reales_de_la_oficina[],MATCH(INDEX(Desviaciones_de_la_oficina[],ROW()-ROW(Desviaciones_de_la_oficina[[#Headers],[Mar]]),1),INDEX(Planificados_de_la_oficina[],,1),0),MATCH(Desviaciones_de_la_oficina[[#Headers],[Mar]],Reales_de_la_oficina[#Headers],0))","v":{"v":0,"d":"0.00 €"}},{"$f":"INDEX(Planificados_de_la_oficina[],MATCH(INDEX(Desviaciones_de_la_oficina[],ROW()-ROW(Desviaciones_de_la_oficina[[#Headers],[Abr]]),1),INDEX(Planificados_de_la_oficina[],,1),0),MATCH(Desviaciones_de_la_oficina[[#Headers],[Abr]],Planificados_de_la_oficina[#Headers],0))-INDEX(Reales_de_la_oficina[],MATCH(INDEX(Desviaciones_de_la_oficina[],ROW()-ROW(Desviaciones_de_la_oficina[[#Headers],[Abr]]),1),INDEX(Planificados_de_la_oficina[],,1),0),MATCH(Desviaciones_de_la_oficina[[#Headers],[Abr]],Reales_de_la_oficina[#Headers],0))","v":{"v":0,"d":"0.00 €"}},{"$f":"INDEX(Planificados_de_la_oficina[],MATCH(INDEX(Desviaciones_de_la_oficina[],ROW()-ROW(Desviaciones_de_la_oficina[[#Headers],[May]]),1),INDEX(Planificados_de_la_oficina[],,1),0),MATCH(Desviaciones_de_la_oficina[[#Headers],[May]],Planificados_de_la_oficina[#Headers],0))-INDEX(Reales_de_la_oficina[],MATCH(INDEX(Desviaciones_de_la_oficina[],ROW()-ROW(Desviaciones_de_la_oficina[[#Headers],[May]]),1),INDEX(Planificados_de_la_oficina[],,1),0),MATCH(Desviaciones_de_la_oficina[[#Headers],[May]],Reales_de_la_oficina[#Headers],0))","v":{"v":0,"d":"0.00 €"}},{"$f":"INDEX(Planificados_de_la_oficina[],MATCH(INDEX(Desviaciones_de_la_oficina[],ROW()-ROW(Desviaciones_de_la_oficina[[#Headers],[Jun]]),1),INDEX(Planificados_de_la_oficina[],,1),0),MATCH(Desviaciones_de_la_oficina[[#Headers],[Jun]],Planificados_de_la_oficina[#Headers],0))-INDEX(Reales_de_la_oficina[],MATCH(INDEX(Desviaciones_de_la_oficina[],ROW()-ROW(Desviaciones_de_la_oficina[[#Headers],[Jun]]),1),INDEX(Planificados_de_la_oficina[],,1),0),MATCH(Desviaciones_de_la_oficina[[#Headers],[Jun]],Reales_de_la_oficina[#Headers],0))","v":{"v":0,"d":"0.00 €"}},{"$f":"INDEX(Planificados_de_la_oficina[],MATCH(INDEX(Desviaciones_de_la_oficina[],ROW()-ROW(Desviaciones_de_la_oficina[[#Headers],[Jul]]),1),INDEX(Planificados_de_la_oficina[],,1),0),MATCH(Desviaciones_de_la_oficina[[#Headers],[Jul]],Planificados_de_la_oficina[#Headers],0))-INDEX(Reales_de_la_oficina[],MATCH(INDEX(Desviaciones_de_la_oficina[],ROW()-ROW(Desviaciones_de_la_oficina[[#Headers],[Jul]]),1),INDEX(Planificados_de_la_oficina[],,1),0),MATCH(Desviaciones_de_la_oficina[[#Headers],[Jul]],Reales_de_la_oficina[#Headers],0))","v":{"v":180,"d":"180.00 €"}},{"$f":"INDEX(Planificados_de_la_oficina[],MATCH(INDEX(Desviaciones_de_la_oficina[],ROW()-ROW(Desviaciones_de_la_oficina[[#Headers],[Ago]]),1),INDEX(Planificados_de_la_oficina[],,1),0),MATCH(Desviaciones_de_la_oficina[[#Headers],[Ago]],Planificados_de_la_oficina[#Headers],0))-INDEX(Reales_de_la_oficina[],MATCH(INDEX(Desviaciones_de_la_oficina[],ROW()-ROW(Desviaciones_de_la_oficina[[#Headers],[Ago]]),1),INDEX(Planificados_de_la_oficina[],,1),0),MATCH(Desviaciones_de_la_oficina[[#Headers],[Ago]],Reales_de_la_oficina[#Headers],0))","v":{"v":180,"d":"180.00 €"}},{"$f":"INDEX(Planificados_de_la_oficina[],MATCH(INDEX(Desviaciones_de_la_oficina[],ROW()-ROW(Desviaciones_de_la_oficina[[#Headers],[Sep]]),1),INDEX(Planificados_de_la_oficina[],,1),0),MATCH(Desviaciones_de_la_oficina[[#Headers],[Sep]],Planificados_de_la_oficina[#Headers],0))-INDEX(Reales_de_la_oficina[],MATCH(INDEX(Desviaciones_de_la_oficina[],ROW()-ROW(Desviaciones_de_la_oficina[[#Headers],[Sep]]),1),INDEX(Planificados_de_la_oficina[],,1),0),MATCH(Desviaciones_de_la_oficina[[#Headers],[Sep]],Reales_de_la_oficina[#Headers],0))","v":{"v":180,"d":"180.00 €"}},{"$f":"INDEX(Planificados_de_la_oficina[],MATCH(INDEX(Desviaciones_de_la_oficina[],ROW()-ROW(Desviaciones_de_la_oficina[[#Headers],[Oct]]),1),INDEX(Planificados_de_la_oficina[],,1),0),MATCH(Desviaciones_de_la_oficina[[#Headers],[Oct]],Planificados_de_la_oficina[#Headers],0))-INDEX(Reales_de_la_oficina[],MATCH(INDEX(Desviaciones_de_la_oficina[],ROW()-ROW(Desviaciones_de_la_oficina[[#Headers],[Oct]]),1),INDEX(Planificados_de_la_oficina[],,1),0),MATCH(Desviaciones_de_la_oficina[[#Headers],[Oct]],Reales_de_la_oficina[#Headers],0))","v":{"v":180,"d":"180.00 €"}},{"$f":"INDEX(Planificados_de_la_oficina[],MATCH(INDEX(Desviaciones_de_la_oficina[],ROW()-ROW(Desviaciones_de_la_oficina[[#Headers],[Nov]]),1),INDEX(Planificados_de_la_oficina[],,1),0),MATCH(Desviaciones_de_la_oficina[[#Headers],[Nov]],Planificados_de_la_oficina[#Headers],0))-INDEX(Reales_de_la_oficina[],MATCH(INDEX(Desviaciones_de_la_oficina[],ROW()-ROW(Desviaciones_de_la_oficina[[#Headers],[Nov]]),1),INDEX(Planificados_de_la_oficina[],,1),0),MATCH(Desviaciones_de_la_oficina[[#Headers],[Nov]],Reales_de_la_oficina[#Headers],0))","v":{"v":180,"d":"180.00 €"}},{"$f":"INDEX(Planificados_de_la_oficina[],MATCH(INDEX(Desviaciones_de_la_oficina[],ROW()-ROW(Desviaciones_de_la_oficina[[#Headers],[Dic]]),1),INDEX(Planificados_de_la_oficina[],,1),0),MATCH(Desviaciones_de_la_oficina[[#Headers],[Dic]],Planificados_de_la_oficina[#Headers],0))-INDEX(Reales_de_la_oficina[],MATCH(INDEX(Desviaciones_de_la_oficina[],ROW()-ROW(Desviaciones_de_la_oficina[[#Headers],[Dic]]),1),INDEX(Planificados_de_la_oficina[],,1),0),MATCH(Desviaciones_de_la_oficina[[#Headers],[Dic]],Reales_de_la_oficina[#Headers],0))","v":{"v":180,"d":"180.00 €"}},{"$f":"SUM(Desviaciones_de_la_oficina[[#This Row],[Ene]:[Dic]])","v":{"v":1080,"d":"1,080.00 €"}}]
[null,"Material de oficina",{"$f":"INDEX(Planificados_de_la_oficina[],MATCH(INDEX(Desviaciones_de_la_oficina[],ROW()-ROW(Desviaciones_de_la_oficina[[#Headers],[Ene]]),1),INDEX(Planificados_de_la_oficina[],,1),0),MATCH(Desviaciones_de_la_oficina[[#Headers],[Ene]],Planificados_de_la_oficina[#Headers],0))-INDEX(Reales_de_la_oficina[],MATCH(INDEX(Desviaciones_de_la_oficina[],ROW()-ROW(Desviaciones_de_la_oficina[[#Headers],[Ene]]),1),INDEX(Planificados_de_la_oficina[],,1),0),MATCH(Desviaciones_de_la_oficina[[#Headers],[Ene]],Reales_de_la_oficina[#Headers],0))","v":{"v":-56,"d":"-56.00 €"}},{"$f":"INDEX(Planificados_de_la_oficina[],MATCH(INDEX(Desviaciones_de_la_oficina[],ROW()-ROW(Desviaciones_de_la_oficina[[#Headers],[Feb]]),1),INDEX(Planificados_de_la_oficina[],,1),0),MATCH(Desviaciones_de_la_oficina[[#Headers],[Feb]],Planificados_de_la_oficina[#Headers],0))-INDEX(Reales_de_la_oficina[],MATCH(INDEX(Desviaciones_de_la_oficina[],ROW()-ROW(Desviaciones_de_la_oficina[[#Headers],[Feb]]),1),INDEX(Planificados_de_la_oficina[],,1),0),MATCH(Desviaciones_de_la_oficina[[#Headers],[Feb]],Reales_de_la_oficina[#Headers],0))","v":{"v":58,"d":"58.00 €"}},{"$f":"INDEX(Planificados_de_la_oficina[],MATCH(INDEX(Desviaciones_de_la_oficina[],ROW()-ROW(Desviaciones_de_la_oficina[[#Headers],[Mar]]),1),INDEX(Planificados_de_la_oficina[],,1),0),MATCH(Desviaciones_de_la_oficina[[#Headers],[Mar]],Planificados_de_la_oficina[#Headers],0))-INDEX(Reales_de_la_oficina[],MATCH(INDEX(Desviaciones_de_la_oficina[],ROW()-ROW(Desviaciones_de_la_oficina[[#Headers],[Mar]]),1),INDEX(Planificados_de_la_oficina[],,1),0),MATCH(Desviaciones_de_la_oficina[[#Headers],[Mar]],Reales_de_la_oficina[#Headers],0))","v":{"v":40,"d":"40.00 €"}},{"$f":"INDEX(Planificados_de_la_oficina[],MATCH(INDEX(Desviaciones_de_la_oficina[],ROW()-ROW(Desviaciones_de_la_oficina[[#Headers],[Abr]]),1),INDEX(Planificados_de_la_oficina[],,1),0),MATCH(Desviaciones_de_la_oficina[[#Headers],[Abr]],Planificados_de_la_oficina[#Headers],0))-INDEX(Reales_de_la_oficina[],MATCH(INDEX(Desviaciones_de_la_oficina[],ROW()-ROW(Desviaciones_de_la_oficina[[#Headers],[Abr]]),1),INDEX(Planificados_de_la_oficina[],,1),0),MATCH(Desviaciones_de_la_oficina[[#Headers],[Abr]],Reales_de_la_oficina[#Headers],0))","v":{"v":-21,"d":"-21.00 €"}},{"$f":"INDEX(Planificados_de_la_oficina[],MATCH(INDEX(Desviaciones_de_la_oficina[],ROW()-ROW(Desviaciones_de_la_oficina[[#Headers],[May]]),1),INDEX(Planificados_de_la_oficina[],,1),0),MATCH(Desviaciones_de_la_oficina[[#Headers],[May]],Planificados_de_la_oficina[#Headers],0))-INDEX(Reales_de_la_oficina[],MATCH(INDEX(Desviaciones_de_la_oficina[],ROW()-ROW(Desviaciones_de_la_oficina[[#Headers],[May]]),1),INDEX(Planificados_de_la_oficina[],,1),0),MATCH(Desviaciones_de_la_oficina[[#Headers],[May]],Reales_de_la_oficina[#Headers],0))","v":{"v":-56,"d":"-56.00 €"}},{"$f":"INDEX(Planificados_de_la_oficina[],MATCH(INDEX(Desviaciones_de_la_oficina[],ROW()-ROW(Desviaciones_de_la_oficina[[#Headers],[Jun]]),1),INDEX(Planificados_de_la_oficina[],,1),0),MATCH(Desviaciones_de_la_oficina[[#Headers],[Jun]],Planificados_de_la_oficina[#Headers],0))-INDEX(Reales_de_la_oficina[],MATCH(INDEX(Desviaciones_de_la_oficina[],ROW()-ROW(Desviaciones_de_la_oficina[[#Headers],[Jun]]),1),INDEX(Planificados_de_la_oficina[],,1),0),MATCH(Desviaciones_de_la_oficina[[#Headers],[Jun]],Reales_de_la_oficina[#Headers],0))","v":{"v":-40,"d":"-40.00 €"}},{"$f":"INDEX(Planificados_de_la_oficina[],MATCH(INDEX(Desviaciones_de_la_oficina[],ROW()-ROW(Desviaciones_de_la_oficina[[#Headers],[Jul]]),1),INDEX(Planificados_de_la_oficina[],,1),0),MATCH(Desviaciones_de_la_oficina[[#Headers],[Jul]],Planificados_de_la_oficina[#Headers],0))-INDEX(Reales_de_la_oficina[],MATCH(INDEX(Desviaciones_de_la_oficina[],ROW()-ROW(Desviaciones_de_la_oficina[[#Headers],[Jul]]),1),INDEX(Planificados_de_la_oficina[],,1),0),MATCH(Desviaciones_de_la_oficina[[#Headers],[Jul]],Reales_de_la_oficina[#Headers],0))","v":{"v":200,"d":"200.00 €"}},{"$f":"INDEX(Planificados_de_la_oficina[],MATCH(INDEX(Desviaciones_de_la_oficina[],ROW()-ROW(Desviaciones_de_la_oficina[[#Headers],[Ago]]),1),INDEX(Planificados_de_la_oficina[],,1),0),MATCH(Desviaciones_de_la_oficina[[#Headers],[Ago]],Planificados_de_la_oficina[#Headers],0))-INDEX(Reales_de_la_oficina[],MATCH(INDEX(Desviaciones_de_la_oficina[],ROW()-ROW(Desviaciones_de_la_oficina[[#Headers],[Ago]]),1),INDEX(Planificados_de_la_oficina[],,1),0),MATCH(Desviaciones_de_la_oficina[[#Headers],[Ago]],Reales_de_la_oficina[#Headers],0))","v":{"v":200,"d":"200.00 €"}},{"$f":"INDEX(Planificados_de_la_oficina[],MATCH(INDEX(Desviaciones_de_la_oficina[],ROW()-ROW(Desviaciones_de_la_oficina[[#Headers],[Sep]]),1),INDEX(Planificados_de_la_oficina[],,1),0),MATCH(Desviaciones_de_la_oficina[[#Headers],[Sep]],Planificados_de_la_oficina[#Headers],0))-INDEX(Reales_de_la_oficina[],MATCH(INDEX(Desviaciones_de_la_oficina[],ROW()-ROW(Desviaciones_de_la_oficina[[#Headers],[Sep]]),1),INDEX(Planificados_de_la_oficina[],,1),0),MATCH(Desviaciones_de_la_oficina[[#Headers],[Sep]],Reales_de_la_oficina[#Headers],0))","v":{"v":200,"d":"200.00 €"}},{"$f":"INDEX(Planificados_de_la_oficina[],MATCH(INDEX(Desviaciones_de_la_oficina[],ROW()-ROW(Desviaciones_de_la_oficina[[#Headers],[Oct]]),1),INDEX(Planificados_de_la_oficina[],,1),0),MATCH(Desviaciones_de_la_oficina[[#Headers],[Oct]],Planificados_de_la_oficina[#Headers],0))-INDEX(Reales_de_la_oficina[],MATCH(INDEX(Desviaciones_de_la_oficina[],ROW()-ROW(Desviaciones_de_la_oficina[[#Headers],[Oct]]),1),INDEX(Planificados_de_la_oficina[],,1),0),MATCH(Desviaciones_de_la_oficina[[#Headers],[Oct]],Reales_de_la_oficina[#Headers],0))","v":{"v":200,"d":"200.00 €"}},{"$f":"INDEX(Planificados_de_la_oficina[],MATCH(INDEX(Desviaciones_de_la_oficina[],ROW()-ROW(Desviaciones_de_la_oficina[[#Headers],[Nov]]),1),INDEX(Planificados_de_la_oficina[],,1),0),MATCH(Desviaciones_de_la_oficina[[#Headers],[Nov]],Planificados_de_la_oficina[#Headers],0))-INDEX(Reales_de_la_oficina[],MATCH(INDEX(Desviaciones_de_la_oficina[],ROW()-ROW(Desviaciones_de_la_oficina[[#Headers],[Nov]]),1),INDEX(Planificados_de_la_oficina[],,1),0),MATCH(Desviaciones_de_la_oficina[[#Headers],[Nov]],Reales_de_la_oficina[#Headers],0))","v":{"v":200,"d":"200.00 €"}},{"$f":"INDEX(Planificados_de_la_oficina[],MATCH(INDEX(Desviaciones_de_la_oficina[],ROW()-ROW(Desviaciones_de_la_oficina[[#Headers],[Dic]]),1),INDEX(Planificados_de_la_oficina[],,1),0),MATCH(Desviaciones_de_la_oficina[[#Headers],[Dic]],Planificados_de_la_oficina[#Headers],0))-INDEX(Reales_de_la_oficina[],MATCH(INDEX(Desviaciones_de_la_oficina[],ROW()-ROW(Desviaciones_de_la_oficina[[#Headers],[Dic]]),1),INDEX(Planificados_de_la_oficina[],,1),0),MATCH(Desviaciones_de_la_oficina[[#Headers],[Dic]],Reales_de_la_oficina[#Headers],0))","v":{"v":200,"d":"200.00 €"}},{"$f":"SUM(Desviaciones_de_la_oficina[[#This Row],[Ene]:[Dic]])","v":{"v":1125,"d":"1,125.00 €"}}]
[null,"Seguridad",{"$f":"INDEX(Planificados_de_la_oficina[],MATCH(INDEX(Desviaciones_de_la_oficina[],ROW()-ROW(Desviaciones_de_la_oficina[[#Headers],[Ene]]),1),INDEX(Planificados_de_la_oficina[],,1),0),MATCH(Desviaciones_de_la_oficina[[#Headers],[Ene]],Planificados_de_la_oficina[#Headers],0))-INDEX(Reales_de_la_oficina[],MATCH(INDEX(Desviaciones_de_la_oficina[],ROW()-ROW(Desviaciones_de_la_oficina[[#Headers],[Ene]]),1),INDEX(Planificados_de_la_oficina[],,1),0),MATCH(Desviaciones_de_la_oficina[[#Headers],[Ene]],Reales_de_la_oficina[#Headers],0))","v":{"v":0,"d":"0.00 €"}},{"$f":"INDEX(Planificados_de_la_oficina[],MATCH(INDEX(Desviaciones_de_la_oficina[],ROW()-ROW(Desviaciones_de_la_oficina[[#Headers],[Feb]]),1),INDEX(Planificados_de_la_oficina[],,1),0),MATCH(Desviaciones_de_la_oficina[[#Headers],[Feb]],Planificados_de_la_oficina[#Headers],0))-INDEX(Reales_de_la_oficina[],MATCH(INDEX(Desviaciones_de_la_oficina[],ROW()-ROW(Desviaciones_de_la_oficina[[#Headers],[Feb]]),1),INDEX(Planificados_de_la_oficina[],,1),0),MATCH(Desviaciones_de_la_oficina[[#Headers],[Feb]],Reales_de_la_oficina[#Headers],0))","v":{"v":0,"d":"0.00 €"}},{"$f":"INDEX(Planificados_de_la_oficina[],MATCH(INDEX(Desviaciones_de_la_oficina[],ROW()-ROW(Desviaciones_de_la_oficina[[#Headers],[Mar]]),1),INDEX(Planificados_de_la_oficina[],,1),0),MATCH(Desviaciones_de_la_oficina[[#Headers],[Mar]],Planificados_de_la_oficina[#Headers],0))-INDEX(Reales_de_la_oficina[],MATCH(INDEX(Desviaciones_de_la_oficina[],ROW()-ROW(Desviaciones_de_la_oficina[[#Headers],[Mar]]),1),INDEX(Planificados_de_la_oficina[],,1),0),MATCH(Desviaciones_de_la_oficina[[#Headers],[Mar]],Reales_de_la_oficina[#Headers],0))","v":{"v":0,"d":"0.00 €"}},{"$f":"INDEX(Planificados_de_la_oficina[],MATCH(INDEX(Desviaciones_de_la_oficina[],ROW()-ROW(Desviaciones_de_la_oficina[[#Headers],[Abr]]),1),INDEX(Planificados_de_la_oficina[],,1),0),MATCH(Desviaciones_de_la_oficina[[#Headers],[Abr]],Planificados_de_la_oficina[#Headers],0))-INDEX(Reales_de_la_oficina[],MATCH(INDEX(Desviaciones_de_la_oficina[],ROW()-ROW(Desviaciones_de_la_oficina[[#Headers],[Abr]]),1),INDEX(Planificados_de_la_oficina[],,1),0),MATCH(Desviaciones_de_la_oficina[[#Headers],[Abr]],Reales_de_la_oficina[#Headers],0))","v":{"v":0,"d":"0.00 €"}},{"$f":"INDEX(Planificados_de_la_oficina[],MATCH(INDEX(Desviaciones_de_la_oficina[],ROW()-ROW(Desviaciones_de_la_oficina[[#Headers],[May]]),1),INDEX(Planificados_de_la_oficina[],,1),0),MATCH(Desviaciones_de_la_oficina[[#Headers],[May]],Planificados_de_la_oficina[#Headers],0))-INDEX(Reales_de_la_oficina[],MATCH(INDEX(Desviaciones_de_la_oficina[],ROW()-ROW(Desviaciones_de_la_oficina[[#Headers],[May]]),1),INDEX(Planificados_de_la_oficina[],,1),0),MATCH(Desviaciones_de_la_oficina[[#Headers],[May]],Reales_de_la_oficina[#Headers],0))","v":{"v":0,"d":"0.00 €"}},{"$f":"INDEX(Planificados_de_la_oficina[],MATCH(INDEX(Desviaciones_de_la_oficina[],ROW()-ROW(Desviaciones_de_la_oficina[[#Headers],[Jun]]),1),INDEX(Planificados_de_la_oficina[],,1),0),MATCH(Desviaciones_de_la_oficina[[#Headers],[Jun]],Planificados_de_la_oficina[#Headers],0))-INDEX(Reales_de_la_oficina[],MATCH(INDEX(Desviaciones_de_la_oficina[],ROW()-ROW(Desviaciones_de_la_oficina[[#Headers],[Jun]]),1),INDEX(Planificados_de_la_oficina[],,1),0),MATCH(Desviaciones_de_la_oficina[[#Headers],[Jun]],Reales_de_la_oficina[#Headers],0))","v":{"v":0,"d":"0.00 €"}},{"$f":"INDEX(Planificados_de_la_oficina[],MATCH(INDEX(Desviaciones_de_la_oficina[],ROW()-ROW(Desviaciones_de_la_oficina[[#Headers],[Jul]]),1),INDEX(Planificados_de_la_oficina[],,1),0),MATCH(Desviaciones_de_la_oficina[[#Headers],[Jul]],Planificados_de_la_oficina[#Headers],0))-INDEX(Reales_de_la_oficina[],MATCH(INDEX(Desviaciones_de_la_oficina[],ROW()-ROW(Desviaciones_de_la_oficina[[#Headers],[Jul]]),1),INDEX(Planificados_de_la_oficina[],,1),0),MATCH(Desviaciones_de_la_oficina[[#Headers],[Jul]],Reales_de_la_oficina[#Headers],0))","v":{"v":600,"d":"600.00 €"}},{"$f":"INDEX(Planificados_de_la_oficina[],MATCH(INDEX(Desviaciones_de_la_oficina[],ROW()-ROW(Desviaciones_de_la_oficina[[#Headers],[Ago]]),1),INDEX(Planificados_de_la_oficina[],,1),0),MATCH(Desviaciones_de_la_oficina[[#Headers],[Ago]],Planificados_de_la_oficina[#Headers],0))-INDEX(Reales_de_la_oficina[],MATCH(INDEX(Desviaciones_de_la_oficina[],ROW()-ROW(Desviaciones_de_la_oficina[[#Headers],[Ago]]),1),INDEX(Planificados_de_la_oficina[],,1),0),MATCH(Desviaciones_de_la_oficina[[#Headers],[Ago]],Reales_de_la_oficina[#Headers],0))","v":{"v":600,"d":"600.00 €"}},{"$f":"INDEX(Planificados_de_la_oficina[],MATCH(INDEX(Desviaciones_de_la_oficina[],ROW()-ROW(Desviaciones_de_la_oficina[[#Headers],[Sep]]),1),INDEX(Planificados_de_la_oficina[],,1),0),MATCH(Desviaciones_de_la_oficina[[#Headers],[Sep]],Planificados_de_la_oficina[#Headers],0))-INDEX(Reales_de_la_oficina[],MATCH(INDEX(Desviaciones_de_la_oficina[],ROW()-ROW(Desviaciones_de_la_oficina[[#Headers],[Sep]]),1),INDEX(Planificados_de_la_oficina[],,1),0),MATCH(Desviaciones_de_la_oficina[[#Headers],[Sep]],Reales_de_la_oficina[#Headers],0))","v":{"v":600,"d":"600.00 €"}},{"$f":"INDEX(Planificados_de_la_oficina[],MATCH(INDEX(Desviaciones_de_la_oficina[],ROW()-ROW(Desviaciones_de_la_oficina[[#Headers],[Oct]]),1),INDEX(Planificados_de_la_oficina[],,1),0),MATCH(Desviaciones_de_la_oficina[[#Headers],[Oct]],Planificados_de_la_oficina[#Headers],0))-INDEX(Reales_de_la_oficina[],MATCH(INDEX(Desviaciones_de_la_oficina[],ROW()-ROW(Desviaciones_de_la_oficina[[#Headers],[Oct]]),1),INDEX(Planificados_de_la_oficina[],,1),0),MATCH(Desviaciones_de_la_oficina[[#Headers],[Oct]],Reales_de_la_oficina[#Headers],0))","v":{"v":600,"d":"600.00 €"}},{"$f":"INDEX(Planificados_de_la_oficina[],MATCH(INDEX(Desviaciones_de_la_oficina[],ROW()-ROW(Desviaciones_de_la_oficina[[#Headers],[Nov]]),1),INDEX(Planificados_de_la_oficina[],,1),0),MATCH(Desviaciones_de_la_oficina[[#Headers],[Nov]],Planificados_de_la_oficina[#Headers],0))-INDEX(Reales_de_la_oficina[],MATCH(INDEX(Desviaciones_de_la_oficina[],ROW()-ROW(Desviaciones_de_la_oficina[[#Headers],[Nov]]),1),INDEX(Planificados_de_la_oficina[],,1),0),MATCH(Desviaciones_de_la_oficina[[#Headers],[Nov]],Reales_de_la_oficina[#Headers],0))","v":{"v":600,"d":"600.00 €"}},{"$f":"INDEX(Planificados_de_la_oficina[],MATCH(INDEX(Desviaciones_de_la_oficina[],ROW()-ROW(Desviaciones_de_la_oficina[[#Headers],[Dic]]),1),INDEX(Planificados_de_la_oficina[],,1),0),MATCH(Desviaciones_de_la_oficina[[#Headers],[Dic]],Planificados_de_la_oficina[#Headers],0))-INDEX(Reales_de_la_oficina[],MATCH(INDEX(Desviaciones_de_la_oficina[],ROW()-ROW(Desviaciones_de_la_oficina[[#Headers],[Dic]]),1),INDEX(Planificados_de_la_oficina[],,1),0),MATCH(Desviaciones_de_la_oficina[[#Headers],[Dic]],Reales_de_la_oficina[#Headers],0))","v":{"v":600,"d":"600.00 €"}},{"$f":"SUM(Desviaciones_de_la_oficina[[#This Row],[Ene]:[Dic]])","v":{"v":3600,"d":"3,600.00 €"}}]
[null,"Subtotal",{"$f":"SUBTOTAL(109,Desviaciones_de_la_oficina[Ene])","v":{"v":-17,"d":"-17.00 €"}},{"$f":"SUBTOTAL(109,Desviaciones_de_la_oficina[Feb])","v":{"v":72,"d":"72.00 €"}},{"$f":"SUBTOTAL(109,Desviaciones_de_la_oficina[Mar])","v":{"v":78,"d":"78.00 €"}},{"$f":"SUBTOTAL(109,Desviaciones_de_la_oficina[Abr])","v":{"v":-141,"d":"-141.00 €"}},{"$f":"SUBTOTAL(109,Desviaciones_de_la_oficina[May])","v":{"v":-38,"d":"-38.00 €"}},{"$f":"SUBTOTAL(109,Desviaciones_de_la_oficina[Jun])","v":{"v":16,"d":"16.00 €"}},{"$f":"SUBTOTAL(109,Desviaciones_de_la_oficina[Jul])","v":{"v":11470,"d":"11,470.00 €"}},{"$f":"SUBTOTAL(109,Desviaciones_de_la_oficina[Ago])","v":{"v":11470,"d":"11,470.00 €"}},{"$f":"SUBTOTAL(109,Desviaciones_de_la_oficina[Sep])","v":{"v":11470,"d":"11,470.00 €"}},{"$f":"SUBTOTAL(109,Desviaciones_de_la_oficina[Oct])","v":{"v":11470,"d":"11,470.00 €"}},{"$f":"SUBTOTAL(109,Desviaciones_de_la_oficina[Nov])","v":{"v":11770,"d":"11,770.00 €"}},{"$f":"SUBTOTAL(109,Desviaciones_de_la_oficina[Dic])","v":{"v":11770,"d":"11,770.00 €"}},{"$f":"SUBTOTAL(109,Desviaciones_de_la_oficina[AÑO])","v":{"v":69390,"d":"69,390.00 €"}}]
[]
["La desviación en Costos de marketing se calcula automáticamente en la tabla Desviaciones de marketing, empezando por la celda de la derecha. La instrucción siguiente se encuentra en la celda A30.","Costos de marketing","Ene","Feb","Mar","Abr","May","Jun","Jul","Ago","Sep","Oct","Nov","Dic","AÑO"]
[null,"Hospedaje del sitio web",{"$f":"INDEX(Planificados_de_marketing[],MATCH(INDEX(Desviaciones_de_marketing[],ROW()-ROW(Desviaciones_de_marketing[[#Headers],[Ene]]),1),INDEX(Planificados_de_marketing[],,1),0),MATCH(Desviaciones_de_marketing[[#Headers],[Ene]],Planificados_de_marketing[#Headers],0))-INDEX(Reales_de_marketing[],MATCH(INDEX(Desviaciones_de_marketing[],ROW()-ROW(Desviaciones_de_marketing[[#Headers],[Ene]]),1),INDEX(Planificados_de_marketing[],,1),0),MATCH(Desviaciones_de_marketing[[#Headers],[Ene]],Reales_de_marketing[#Headers],0))","v":{"v":0,"d":"0.00 €"}},{"$f":"INDEX(Planificados_de_marketing[],MATCH(INDEX(Desviaciones_de_marketing[],ROW()-ROW(Desviaciones_de_marketing[[#Headers],[Feb]]),1),INDEX(Planificados_de_marketing[],,1),0),MATCH(Desviaciones_de_marketing[[#Headers],[Feb]],Planificados_de_marketing[#Headers],0))-INDEX(Reales_de_marketing[],MATCH(INDEX(Desviaciones_de_marketing[],ROW()-ROW(Desviaciones_de_marketing[[#Headers],[Feb]]),1),INDEX(Planificados_de_marketing[],,1),0),MATCH(Desviaciones_de_marketing[[#Headers],[Feb]],Reales_de_marketing[#Headers],0))","v":{"v":0,"d":"0.00 €"}},{"$f":"INDEX(Planificados_de_marketing[],MATCH(INDEX(Desviaciones_de_marketing[],ROW()-ROW(Desviaciones_de_marketing[[#Headers],[Mar]]),1),INDEX(Planificados_de_marketing[],,1),0),MATCH(Desviaciones_de_marketing[[#Headers],[Mar]],Planificados_de_marketing[#Headers],0))-INDEX(Reales_de_marketing[],MATCH(INDEX(Desviaciones_de_marketing[],ROW()-ROW(Desviaciones_de_marketing[[#Headers],[Mar]]),1),INDEX(Planificados_de_marketing[],,1),0),MATCH(Desviaciones_de_marketing[[#Headers],[Mar]],Reales_de_marketing[#Headers],0))","v":{"v":0,"d":"0.00 €"}},{"$f":"INDEX(Planificados_de_marketing[],MATCH(INDEX(Desviaciones_de_marketing[],ROW()-ROW(Desviaciones_de_marketing[[#Headers],[Abr]]),1),INDEX(Planificados_de_marketing[],,1),0),MATCH(Desviaciones_de_marketing[[#Headers],[Abr]],Planificados_de_marketing[#Headers],0))-INDEX(Reales_de_marketing[],MATCH(INDEX(Desviaciones_de_marketing[],ROW()-ROW(Desviaciones_de_marketing[[#Headers],[Abr]]),1),INDEX(Planificados_de_marketing[],,1),0),MATCH(Desviaciones_de_marketing[[#Headers],[Abr]],Reales_de_marketing[#Headers],0))","v":{"v":0,"d":"0.00 €"}},{"$f":"INDEX(Planificados_de_marketing[],MATCH(INDEX(Desviaciones_de_marketing[],ROW()-ROW(Desviaciones_de_marketing[[#Headers],[May]]),1),INDEX(Planificados_de_marketing[],,1),0),MATCH(Desviaciones_de_marketing[[#Headers],[May]],Planificados_de_marketing[#Headers],0))-INDEX(Reales_de_marketing[],MATCH(INDEX(Desviaciones_de_marketing[],ROW()-ROW(Desviaciones_de_marketing[[#Headers],[May]]),1),INDEX(Planificados_de_marketing[],,1),0),MATCH(Desviaciones_de_marketing[[#Headers],[May]],Reales_de_marketing[#Headers],0))","v":{"v":0,"d":"0.00 €"}},{"$f":"INDEX(Planificados_de_marketing[],MATCH(INDEX(Desviaciones_de_marketing[],ROW()-ROW(Desviaciones_de_marketing[[#Headers],[Jun]]),1),INDEX(Planificados_de_marketing[],,1),0),MATCH(Desviaciones_de_marketing[[#Headers],[Jun]],Planificados_de_marketing[#Headers],0))-INDEX(Reales_de_marketing[],MATCH(INDEX(Desviaciones_de_marketing[],ROW()-ROW(Desviaciones_de_marketing[[#Headers],[Jun]]),1),INDEX(Planificados_de_marketing[],,1),0),MATCH(Desviaciones_de_marketing[[#Headers],[Jun]],Reales_de_marketing[#Headers],0))","v":{"v":0,"d":"0.00 €"}},{"$f":"INDEX(Planificados_de_marketing[],MATCH(INDEX(Desviaciones_de_marketing[],ROW()-ROW(Desviaciones_de_marketing[[#Headers],[Jul]]),1),INDEX(Planificados_de_marketing[],,1),0),MATCH(Desviaciones_de_marketing[[#Headers],[Jul]],Planificados_de_marketing[#Headers],0))-INDEX(Reales_de_marketing[],MATCH(INDEX(Desviaciones_de_marketing[],ROW()-ROW(Desviaciones_de_marketing[[#Headers],[Jul]]),1),INDEX(Planificados_de_marketing[],,1),0),MATCH(Desviaciones_de_marketing[[#Headers],[Jul]],Reales_de_marketing[#Headers],0))","v":{"v":500,"d":"500.00 €"}},{"$f":"INDEX(Planificados_de_marketing[],MATCH(INDEX(Desviaciones_de_marketing[],ROW()-ROW(Desviaciones_de_marketing[[#Headers],[Ago]]),1),INDEX(Planificados_de_marketing[],,1),0),MATCH(Desviaciones_de_marketing[[#Headers],[Ago]],Planificados_de_marketing[#Headers],0))-INDEX(Reales_de_marketing[],MATCH(INDEX(Desviaciones_de_marketing[],ROW()-ROW(Desviaciones_de_marketing[[#Headers],[Ago]]),1),INDEX(Planificados_de_marketing[],,1),0),MATCH(Desviaciones_de_marketing[[#Headers],[Ago]],Reales_de_marketing[#Headers],0))","v":{"v":500,"d":"500.00 €"}},{"$f":"INDEX(Planificados_de_marketing[],MATCH(INDEX(Desviaciones_de_marketing[],ROW()-ROW(Desviaciones_de_marketing[[#Headers],[Sep]]),1),INDEX(Planificados_de_marketing[],,1),0),MATCH(Desviaciones_de_marketing[[#Headers],[Sep]],Planificados_de_marketing[#Headers],0))-INDEX(Reales_de_marketing[],MATCH(INDEX(Desviaciones_de_marketing[],ROW()-ROW(Desviaciones_de_marketing[[#Headers],[Sep]]),1),INDEX(Planificados_de_marketing[],,1),0),MATCH(Desviaciones_de_marketing[[#Headers],[Sep]],Reales_de_marketing[#Headers],0))","v":{"v":500,"d":"500.00 €"}},{"$f":"INDEX(Planificados_de_marketing[],MATCH(INDEX(Desviaciones_de_marketing[],ROW()-ROW(Desviaciones_de_marketing[[#Headers],[Oct]]),1),INDEX(Planificados_de_marketing[],,1),0),MATCH(Desviaciones_de_marketing[[#Headers],[Oct]],Planificados_de_marketing[#Headers],0))-INDEX(Reales_de_marketing[],MATCH(INDEX(Desviaciones_de_marketing[],ROW()-ROW(Desviaciones_de_marketing[[#Headers],[Oct]]),1),INDEX(Planificados_de_marketing[],,1),0),MATCH(Desviaciones_de_marketing[[#Headers],[Oct]],Reales_de_marketing[#Headers],0))","v":{"v":500,"d":"500.00 €"}},{"$f":"INDEX(Planificados_de_marketing[],MATCH(INDEX(Desviaciones_de_marketing[],ROW()-ROW(Desviaciones_de_marketing[[#Headers],[Nov]]),1),INDEX(Planificados_de_marketing[],,1),0),MATCH(Desviaciones_de_marketing[[#Headers],[Nov]],Planificados_de_marketing[#Headers],0))-INDEX(Reales_de_marketing[],MATCH(INDEX(Desviaciones_de_marketing[],ROW()-ROW(Desviaciones_de_marketing[[#Headers],[Nov]]),1),INDEX(Planificados_de_marketing[],,1),0),MATCH(Desviaciones_de_marketing[[#Headers],[Nov]],Reales_de_marketing[#Headers],0))","v":{"v":500,"d":"500.00 €"}},{"$f":"INDEX(Planificados_de_marketing[],MATCH(INDEX(Desviaciones_de_marketing[],ROW()-ROW(Desviaciones_de_marketing[[#Headers],[Dic]]),1),INDEX(Planificados_de_marketing[],,1),0),MATCH(Desviaciones_de_marketing[[#Headers],[Dic]],Planificados_de_marketing[#Headers],0))-INDEX(Reales_de_marketing[],MATCH(INDEX(Desviaciones_de_marketing[],ROW()-ROW(Desviaciones_de_marketing[[#Headers],[Dic]]),1),INDEX(Planificados_de_marketing[],,1),0),MATCH(Desviaciones_de_marketing[[#Headers],[Dic]],Reales_de_marketing[#Headers],0))","v":{"v":500,"d":"500.00 €"}},{"$f":"SUM(Desviaciones_de_marketing[[#This Row],[Ene]:[Dic]])","v":{"v":3000,"d":"3,000.00 €"}}]
[null,"Actualizaciones del sitio web",{"$f":"INDEX(Planificados_de_marketing[],MATCH(INDEX(Desviaciones_de_marketing[],ROW()-ROW(Desviaciones_de_marketing[[#Headers],[Ene]]),1),INDEX(Planificados_de_marketing[],,1),0),MATCH(Desviaciones_de_marketing[[#Headers],[Ene]],Planificados_de_marketing[#Headers],0))-INDEX(Reales_de_marketing[],MATCH(INDEX(Desviaciones_de_marketing[],ROW()-ROW(Desviaciones_de_marketing[[#Headers],[Ene]]),1),INDEX(Planificados_de_marketing[],,1),0),MATCH(Desviaciones_de_marketing[[#Headers],[Ene]],Reales_de_marketing[#Headers],0))","v":{"v":0,"d":"0.00 €"}},{"$f":"INDEX(Planificados_de_marketing[],MATCH(INDEX(Desviaciones_de_marketing[],ROW()-ROW(Desviaciones_de_marketing[[#Headers],[Feb]]),1),INDEX(Planificados_de_marketing[],,1),0),MATCH(Desviaciones_de_marketing[[#Headers],[Feb]],Planificados_de_marketing[#Headers],0))-INDEX(Reales_de_marketing[],MATCH(INDEX(Desviaciones_de_marketing[],ROW()-ROW(Desviaciones_de_marketing[[#Headers],[Feb]]),1),INDEX(Planificados_de_marketing[],,1),0),MATCH(Desviaciones_de_marketing[[#Headers],[Feb]],Reales_de_marketing[#Headers],0))","v":{"v":0,"d":"0.00 €"}},{"$f":"INDEX(Planificados_de_marketing[],MATCH(INDEX(Desviaciones_de_marketing[],ROW()-ROW(Desviaciones_de_marketing[[#Headers],[Mar]]),1),INDEX(Planificados_de_marketing[],,1),0),MATCH(Desviaciones_de_marketing[[#Headers],[Mar]],Planificados_de_marketing[#Headers],0))-INDEX(Reales_de_marketing[],MATCH(INDEX(Desviaciones_de_marketing[],ROW()-ROW(Desviaciones_de_marketing[[#Headers],[Mar]]),1),INDEX(Planificados_de_marketing[],,1),0),MATCH(Desviaciones_de_marketing[[#Headers],[Mar]],Reales_de_marketing[#Headers],0))","v":{"v":0,"d":"0.00 €"}},{"$f":"INDEX(Planificados_de_marketing[],MATCH(INDEX(Desviaciones_de_marketing[],ROW()-ROW(Desviaciones_de_marketing[[#Headers],[Abr]]),1),INDEX(Planificados_de_marketing[],,1),0),MATCH(Desviaciones_de_marketing[[#Headers],[Abr]],Planificados_de_marketing[#Headers],0))-INDEX(Reales_de_marketing[],MATCH(INDEX(Desviaciones_de_marketing[],ROW()-ROW(Desviaciones_de_marketing[[#Headers],[Abr]]),1),INDEX(Planificados_de_marketing[],,1),0),MATCH(Desviaciones_de_marketing[[#Headers],[Abr]],Reales_de_marketing[#Headers],0))","v":{"v":0,"d":"0.00 €"}},{"$f":"INDEX(Planificados_de_marketing[],MATCH(INDEX(Desviaciones_de_marketing[],ROW()-ROW(Desviaciones_de_marketing[[#Headers],[May]]),1),INDEX(Planificados_de_marketing[],,1),0),MATCH(Desviaciones_de_marketing[[#Headers],[May]],Planificados_de_marketing[#Headers],0))-INDEX(Reales_de_marketing[],MATCH(INDEX(Desviaciones_de_marketing[],ROW()-ROW(Desviaciones_de_marketing[[#Headers],[May]]),1),INDEX(Planificados_de_marketing[],,1),0),MATCH(Desviaciones_de_marketing[[#Headers],[May]],Reales_de_marketing[#Headers],0))","v":{"v":0,"d":"0.00 €"}},{"$f":"INDEX(Planificados_de_marketing[],MATCH(INDEX(Desviaciones_de_marketing[],ROW()-ROW(Desviaciones_de_marketing[[#Headers],[Jun]]),1),INDEX(Planificados_de_marketing[],,1),0),MATCH(Desviaciones_de_marketing[[#Headers],[Jun]],Planificados_de_marketing[#Headers],0))-INDEX(Reales_de_marketing[],MATCH(INDEX(Desviaciones_de_marketing[],ROW()-ROW(Desviaciones_de_marketing[[#Headers],[Jun]]),1),INDEX(Planificados_de_marketing[],,1),0),MATCH(Desviaciones_de_marketing[[#Headers],[Jun]],Reales_de_marketing[#Headers],0))","v":{"v":-500,"d":"-500.00 €"}},{"$f":"INDEX(Planificados_de_marketing[],MATCH(INDEX(Desviaciones_de_marketing[],ROW()-ROW(Desviaciones_de_marketing[[#Headers],[Jul]]),1),INDEX(Planificados_de_marketing[],,1),0),MATCH(Desviaciones_de_marketing[[#Headers],[Jul]],Planificados_de_marketing[#Headers],0))-INDEX(Reales_de_marketing[],MATCH(INDEX(Desviaciones_de_marketing[],ROW()-ROW(Desviaciones_de_marketing[[#Headers],[Jul]]),1),INDEX(Planificados_de_marketing[],,1),0),MATCH(Desviaciones_de_marketing[[#Headers],[Jul]],Reales_de_marketing[#Headers],0))","v":{"v":200,"d":"200.00 €"}},{"$f":"INDEX(Planificados_de_marketing[],MATCH(INDEX(Desviaciones_de_marketing[],ROW()-ROW(Desviaciones_de_marketing[[#Headers],[Ago]]),1),INDEX(Planificados_de_marketing[],,1),0),MATCH(Desviaciones_de_marketing[[#Headers],[Ago]],Planificados_de_marketing[#Headers],0))-INDEX(Reales_de_marketing[],MATCH(INDEX(Desviaciones_de_marketing[],ROW()-ROW(Desviaciones_de_marketing[[#Headers],[Ago]]),1),INDEX(Planificados_de_marketing[],,1),0),MATCH(Desviaciones_de_marketing[[#Headers],[Ago]],Reales_de_marketing[#Headers],0))","v":{"v":200,"d":"200.00 €"}},{"$f":"INDEX(Planificados_de_marketing[],MATCH(INDEX(Desviaciones_de_marketing[],ROW()-ROW(Desviaciones_de_marketing[[#Headers],[Sep]]),1),INDEX(Planificados_de_marketing[],,1),0),MATCH(Desviaciones_de_marketing[[#Headers],[Sep]],Planificados_de_marketing[#Headers],0))-INDEX(Reales_de_marketing[],MATCH(INDEX(Desviaciones_de_marketing[],ROW()-ROW(Desviaciones_de_marketing[[#Headers],[Sep]]),1),INDEX(Planificados_de_marketing[],,1),0),MATCH(Desviaciones_de_marketing[[#Headers],[Sep]],Reales_de_marketing[#Headers],0))","v":{"v":200,"d":"200.00 €"}},{"$f":"INDEX(Planificados_de_marketing[],MATCH(INDEX(Desviaciones_de_marketing[],ROW()-ROW(Desviaciones_de_marketing[[#Headers],[Oct]]),1),INDEX(Planificados_de_marketing[],,1),0),MATCH(Desviaciones_de_marketing[[#Headers],[Oct]],Planificados_de_marketing[#Headers],0))-INDEX(Reales_de_marketing[],MATCH(INDEX(Desviaciones_de_marketing[],ROW()-ROW(Desviaciones_de_marketing[[#Headers],[Oct]]),1),INDEX(Planificados_de_marketing[],,1),0),MATCH(Desviaciones_de_marketing[[#Headers],[Oct]],Reales_de_marketing[#Headers],0))","v":{"v":200,"d":"200.00 €"}},{"$f":"INDEX(Planificados_de_marketing[],MATCH(INDEX(Desviaciones_de_marketing[],ROW()-ROW(Desviaciones_de_marketing[[#Headers],[Nov]]),1),INDEX(Planificados_de_marketing[],,1),0),MATCH(Desviaciones_de_marketing[[#Headers],[Nov]],Planificados_de_marketing[#Headers],0))-INDEX(Reales_de_marketing[],MATCH(INDEX(Desviaciones_de_marketing[],ROW()-ROW(Desviaciones_de_marketing[[#Headers],[Nov]]),1),INDEX(Planificados_de_marketing[],,1),0),MATCH(Desviaciones_de_marketing[[#Headers],[Nov]],Reales_de_marketing[#Headers],0))","v":{"v":200,"d":"200.00 €"}},{"$f":"INDEX(Planificados_de_marketing[],MATCH(INDEX(Desviaciones_de_marketing[],ROW()-ROW(Desviaciones_de_marketing[[#Headers],[Dic]]),1),INDEX(Planificados_de_marketing[],,1),0),MATCH(Desviaciones_de_marketing[[#Headers],[Dic]],Planificados_de_marketing[#Headers],0))-INDEX(Reales_de_marketing[],MATCH(INDEX(Desviaciones_de_marketing[],ROW()-ROW(Desviaciones_de_marketing[[#Headers],[Dic]]),1),INDEX(Planificados_de_marketing[],,1),0),MATCH(Desviaciones_de_marketing[[#Headers],[Dic]],Reales_de_marketing[#Headers],0))","v":{"v":1000,"d":"1,000.00 €"}},{"$f":"SUM(Desviaciones_de_marketing[[#This Row],[Ene]:[Dic]])","v":{"v":1500,"d":"1,500.00 €"}}]
[null,"Preparación de material",{"$f":"INDEX(Planificados_de_marketing[],MATCH(INDEX(Desviaciones_de_marketing[],ROW()-ROW(Desviaciones_de_marketing[[#Headers],[Ene]]),1),INDEX(Planificados_de_marketing[],,1),0),MATCH(Desviaciones_de_marketing[[#Headers],[Ene]],Planificados_de_marketing[#Headers],0))-INDEX(Reales_de_marketing[],MATCH(INDEX(Desviaciones_de_marketing[],ROW()-ROW(Desviaciones_de_marketing[[#Headers],[Ene]]),1),INDEX(Planificados_de_marketing[],,1),0),MATCH(Desviaciones_de_marketing[[#Headers],[Ene]],Reales_de_marketing[#Headers],0))","v":{"v":200,"d":"200.00 €"}},{"$f":"INDEX(Planificados_de_marketing[],MATCH(INDEX(Desviaciones_de_marketing[],ROW()-ROW(Desviaciones_de_marketing[[#Headers],[Feb]]),1),INDEX(Planificados_de_marketing[],,1),0),MATCH(Desviaciones_de_marketing[[#Headers],[Feb]],Planificados_de_marketing[#Headers],0))-INDEX(Reales_de_marketing[],MATCH(INDEX(Desviaciones_de_marketing[],ROW()-ROW(Desviaciones_de_marketing[[#Headers],[Feb]]),1),INDEX(Planificados_de_marketing[],,1),0),MATCH(Desviaciones_de_marketing[[#Headers],[Feb]],Reales_de_marketing[#Headers],0))","v":{"v":0,"d":"0.00 €"}},{"$f":"INDEX(Planificados_de_marketing[],MATCH(INDEX(Desviaciones_de_marketing[],ROW()-ROW(Desviaciones_de_marketing[[#Headers],[Mar]]),1),INDEX(Planificados_de_marketing[],,1),0),MATCH(Desviaciones_de_marketing[[#Headers],[Mar]],Planificados_de_marketing[#Headers],0))-INDEX(Reales_de_marketing[],MATCH(INDEX(Desviaciones_de_marketing[],ROW()-ROW(Desviaciones_de_marketing[[#Headers],[Mar]]),1),INDEX(Planificados_de_marketing[],,1),0),MATCH(Desviaciones_de_marketing[[#Headers],[Mar]],Reales_de_marketing[#Headers],0))","v":{"v":0,"d":"0.00 €"}},{"$f":"INDEX(Planificados_de_marketing[],MATCH(INDEX(Desviaciones_de_marketing[],ROW()-ROW(Desviaciones_de_marketing[[#Headers],[Abr]]),1),INDEX(Planificados_de_marketing[],,1),0),MATCH(Desviaciones_de_marketing[[#Headers],[Abr]],Planificados_de_marketing[#Headers],0))-INDEX(Reales_de_marketing[],MATCH(INDEX(Desviaciones_de_marketing[],ROW()-ROW(Desviaciones_de_marketing[[#Headers],[Abr]]),1),INDEX(Planificados_de_marketing[],,1),0),MATCH(Desviaciones_de_marketing[[#Headers],[Abr]],Reales_de_marketing[#Headers],0))","v":{"v":-500,"d":"-500.00 €"}},{"$f":"INDEX(Planificados_de_marketing[],MATCH(INDEX(Desviaciones_de_marketing[],ROW()-ROW(Desviaciones_de_marketing[[#Headers],[May]]),1),INDEX(Planificados_de_marketing[],,1),0),MATCH(Desviaciones_de_marketing[[#Headers],[May]],Planificados_de_marketing[#Headers],0))-INDEX(Reales_de_marketing[],MATCH(INDEX(Desviaciones_de_marketing[],ROW()-ROW(Desviaciones_de_marketing[[#Headers],[May]]),1),INDEX(Planificados_de_marketing[],,1),0),MATCH(Desviaciones_de_marketing[[#Headers],[May]],Reales_de_marketing[#Headers],0))","v":{"v":0,"d":"0.00 €"}},{"$f":"INDEX(Planificados_de_marketing[],MATCH(INDEX(Desviaciones_de_marketing[],ROW()-ROW(Desviaciones_de_marketing[[#Headers],[Jun]]),1),INDEX(Planificados_de_marketing[],,1),0),MATCH(Desviaciones_de_marketing[[#Headers],[Jun]],Planificados_de_marketing[#Headers],0))-INDEX(Reales_de_marketing[],MATCH(INDEX(Desviaciones_de_marketing[],ROW()-ROW(Desviaciones_de_marketing[[#Headers],[Jun]]),1),INDEX(Planificados_de_marketing[],,1),0),MATCH(Desviaciones_de_marketing[[#Headers],[Jun]],Reales_de_marketing[#Headers],0))","v":{"v":0,"d":"0.00 €"}},{"$f":"INDEX(Planificados_de_marketing[],MATCH(INDEX(Desviaciones_de_marketing[],ROW()-ROW(Desviaciones_de_marketing[[#Headers],[Jul]]),1),INDEX(Planificados_de_marketing[],,1),0),MATCH(Desviaciones_de_marketing[[#Headers],[Jul]],Planificados_de_marketing[#Headers],0))-INDEX(Reales_de_marketing[],MATCH(INDEX(Desviaciones_de_marketing[],ROW()-ROW(Desviaciones_de_marketing[[#Headers],[Jul]]),1),INDEX(Planificados_de_marketing[],,1),0),MATCH(Desviaciones_de_marketing[[#Headers],[Jul]],Reales_de_marketing[#Headers],0))","v":{"v":5000,"d":"5,000.00 €"}},{"$f":"INDEX(Planificados_de_marketing[],MATCH(INDEX(Desviaciones_de_marketing[],ROW()-ROW(Desviaciones_de_marketing[[#Headers],[Ago]]),1),INDEX(Planificados_de_marketing[],,1),0),MATCH(Desviaciones_de_marketing[[#Headers],[Ago]],Planificados_de_marketing[#Headers],0))-INDEX(Reales_de_marketing[],MATCH(INDEX(Desviaciones_de_marketing[],ROW()-ROW(Desviaciones_de_marketing[[#Headers],[Ago]]),1),INDEX(Planificados_de_marketing[],,1),0),MATCH(Desviaciones_de_marketing[[#Headers],[Ago]],Reales_de_marketing[#Headers],0))","v":{"v":0,"d":"0.00 €"}},{"$f":"INDEX(Planificados_de_marketing[],MATCH(INDEX(Desviaciones_de_marketing[],ROW()-ROW(Desviaciones_de_marketing[[#Headers],[Sep]]),1),INDEX(Planificados_de_marketing[],,1),0),MATCH(Desviaciones_de_marketing[[#Headers],[Sep]],Planificados_de_marketing[#Headers],0))-INDEX(Reales_de_marketing[],MATCH(INDEX(Desviaciones_de_marketing[],ROW()-ROW(Desviaciones_de_marketing[[#Headers],[Sep]]),1),INDEX(Planificados_de_marketing[],,1),0),MATCH(Desviaciones_de_marketing[[#Headers],[Sep]],Reales_de_marketing[#Headers],0))","v":{"v":0,"d":"0.00 €"}},{"$f":"INDEX(Planificados_de_marketing[],MATCH(INDEX(Desviaciones_de_marketing[],ROW()-ROW(Desviaciones_de_marketing[[#Headers],[Oct]]),1),INDEX(Planificados_de_marketing[],,1),0),MATCH(Desviaciones_de_marketing[[#Headers],[Oct]],Planificados_de_marketing[#Headers],0))-INDEX(Reales_de_marketing[],MATCH(INDEX(Desviaciones_de_marketing[],ROW()-ROW(Desviaciones_de_marketing[[#Headers],[Oct]]),1),INDEX(Planificados_de_marketing[],,1),0),MATCH(Desviaciones_de_marketing[[#Headers],[Oct]],Reales_de_marketing[#Headers],0))","v":{"v":5000,"d":"5,000.00 €"}},{"$f":"INDEX(Planificados_de_marketing[],MATCH(INDEX(Desviaciones_de_marketing[],ROW()-ROW(Desviaciones_de_marketing[[#Headers],[Nov]]),1),INDEX(Planificados_de_marketing[],,1),0),MATCH(Desviaciones_de_marketing[[#Headers],[Nov]],Planificados_de_marketing[#Headers],0))-INDEX(Reales_de_marketing[],MATCH(INDEX(Desviaciones_de_marketing[],ROW()-ROW(Desviaciones_de_marketing[[#Headers],[Nov]]),1),INDEX(Planificados_de_marketing[],,1),0),MATCH(Desviaciones_de_marketing[[#Headers],[Nov]],Reales_de_marketing[#Headers],0))","v":{"v":0,"d":"0.00 €"}},{"$f":"INDEX(Planificados_de_marketing[],MATCH(INDEX(Desviaciones_de_marketing[],ROW()-ROW(Desviaciones_de_marketing[[#Headers],[Dic]]),1),INDEX(Planificados_de_marketing[],,1),0),MATCH(Desviaciones_de_marketing[[#Headers],[Dic]],Planificados_de_marketing[#Headers],0))-INDEX(Reales_de_marketing[],MATCH(INDEX(Desviaciones_de_marketing[],ROW()-ROW(Desviaciones_de_marketing[[#Headers],[Dic]]),1),INDEX(Planificados_de_marketing[],,1),0),MATCH(Desviaciones_de_marketing[[#Headers],[Dic]],Reales_de_marketing[#Headers],0))","v":{"v":0,"d":"0.00 €"}},{"$f":"SUM(Desviaciones_de_marketing[[#This Row],[Ene]:[Dic]])","v":{"v":9700,"d":"9,700.00 €"}}]
[null,"Impresión de material",{"$f":"INDEX(Planificados_de_marketing[],MATCH(INDEX(Desviaciones_de_marketing[],ROW()-ROW(Desviaciones_de_marketing[[#Headers],[Ene]]),1),INDEX(Planificados_de_marketing[],,1),0),MATCH(Desviaciones_de_marketing[[#Headers],[Ene]],Planificados_de_marketing[#Headers],0))-INDEX(Reales_de_marketing[],MATCH(INDEX(Desviaciones_de_marketing[],ROW()-ROW(Desviaciones_de_marketing[[#Headers],[Ene]]),1),INDEX(Planificados_de_marketing[],,1),0),MATCH(Desviaciones_de_marketing[[#Headers],[Ene]],Reales_de_marketing[#Headers],0))","v":{"v":100,"d":"100.00 €"}},{"$f":"INDEX(Planificados_de_marketing[],MATCH(INDEX(Desviaciones_de_marketing[],ROW()-ROW(Desviaciones_de_marketing[[#Headers],[Feb]]),1),INDEX(Planificados_de_marketing[],,1),0),MATCH(Desviaciones_de_marketing[[#Headers],[Feb]],Planificados_de_marketing[#Headers],0))-INDEX(Reales_de_marketing[],MATCH(INDEX(Desviaciones_de_marketing[],ROW()-ROW(Desviaciones_de_marketing[[#Headers],[Feb]]),1),INDEX(Planificados_de_marketing[],,1),0),MATCH(Desviaciones_de_marketing[[#Headers],[Feb]],Reales_de_marketing[#Headers],0))","v":{"v":-300,"d":"-300.00 €"}},{"$f":"INDEX(Planificados_de_marketing[],MATCH(INDEX(Desviaciones_de_marketing[],ROW()-ROW(Desviaciones_de_marketing[[#Headers],[Mar]]),1),INDEX(Planificados_de_marketing[],,1),0),MATCH(Desviaciones_de_marketing[[#Headers],[Mar]],Planificados_de_marketing[#Headers],0))-INDEX(Reales_de_marketing[],MATCH(INDEX(Desviaciones_de_marketing[],ROW()-ROW(Desviaciones_de_marketing[[#Headers],[Mar]]),1),INDEX(Planificados_de_marketing[],,1),0),MATCH(Desviaciones_de_marketing[[#Headers],[Mar]],Reales_de_marketing[#Headers],0))","v":{"v":100,"d":"100.00 €"}},{"$f":"INDEX(Planificados_de_marketing[],MATCH(INDEX(Desviaciones_de_marketing[],ROW()-ROW(Desviaciones_de_marketing[[#Headers],[Abr]]),1),INDEX(Planificados_de_marketing[],,1),0),MATCH(Desviaciones_de_marketing[[#Headers],[Abr]],Planificados_de_marketing[#Headers],0))-INDEX(Reales_de_marketing[],MATCH(INDEX(Desviaciones_de_marketing[],ROW()-ROW(Desviaciones_de_marketing[[#Headers],[Abr]]),1),INDEX(Planificados_de_marketing[],,1),0),MATCH(Desviaciones_de_marketing[[#Headers],[Abr]],Reales_de_marketing[#Headers],0))","v":{"v":100,"d":"100.00 €"}},{"$f":"INDEX(Planificados_de_marketing[],MATCH(INDEX(Desviaciones_de_marketing[],ROW()-ROW(Desviaciones_de_marketing[[#Headers],[May]]),1),INDEX(Planificados_de_marketing[],,1),0),MATCH(Desviaciones_de_marketing[[#Headers],[May]],Planificados_de_marketing[#Headers],0))-INDEX(Reales_de_marketing[],MATCH(INDEX(Desviaciones_de_marketing[],ROW()-ROW(Desviaciones_de_marketing[[#Headers],[May]]),1),INDEX(Planificados_de_marketing[],,1),0),MATCH(Desviaciones_de_marketing[[#Headers],[May]],Reales_de_marketing[#Headers],0))","v":{"v":-400,"d":"-400.00 €"}},{"$f":"INDEX(Planificados_de_marketing[],MATCH(INDEX(Desviaciones_de_marketing[],ROW()-ROW(Desviaciones_de_marketing[[#Headers],[Jun]]),1),INDEX(Planificados_de_marketing[],,1),0),MATCH(Desviaciones_de_marketing[[#Headers],[Jun]],Planificados_de_marketing[#Headers],0))-INDEX(Reales_de_marketing[],MATCH(INDEX(Desviaciones_de_marketing[],ROW()-ROW(Desviaciones_de_marketing[[#Headers],[Jun]]),1),INDEX(Planificados_de_marketing[],,1),0),MATCH(Desviaciones_de_marketing[[#Headers],[Jun]],Reales_de_marketing[#Headers],0))","v":{"v":20,"d":"20.00 €"}},{"$f":"INDEX(Planificados_de_marketing[],MATCH(INDEX(Desviaciones_de_marketing[],ROW()-ROW(Desviaciones_de_marketing[[#Headers],[Jul]]),1),INDEX(Planificados_de_marketing[],,1),0),MATCH(Desviaciones_de_marketing[[#Headers],[Jul]],Planificados_de_marketing[#Headers],0))-INDEX(Reales_de_marketing[],MATCH(INDEX(Desviaciones_de_marketing[],ROW()-ROW(Desviaciones_de_marketing[[#Headers],[Jul]]),1),INDEX(Planificados_de_marketing[],,1),0),MATCH(Desviaciones_de_marketing[[#Headers],[Jul]],Reales_de_marketing[#Headers],0))","v":{"v":200,"d":"200.00 €"}},{"$f":"INDEX(Planificados_de_marketing[],MATCH(INDEX(Desviaciones_de_marketing[],ROW()-ROW(Desviaciones_de_marketing[[#Headers],[Ago]]),1),INDEX(Planificados_de_marketing[],,1),0),MATCH(Desviaciones_de_marketing[[#Headers],[Ago]],Planificados_de_marketing[#Headers],0))-INDEX(Reales_de_marketing[],MATCH(INDEX(Desviaciones_de_marketing[],ROW()-ROW(Desviaciones_de_marketing[[#Headers],[Ago]]),1),INDEX(Planificados_de_marketing[],,1),0),MATCH(Desviaciones_de_marketing[[#Headers],[Ago]],Reales_de_marketing[#Headers],0))","v":{"v":200,"d":"200.00 €"}},{"$f":"INDEX(Planificados_de_marketing[],MATCH(INDEX(Desviaciones_de_marketing[],ROW()-ROW(Desviaciones_de_marketing[[#Headers],[Sep]]),1),INDEX(Planificados_de_marketing[],,1),0),MATCH(Desviaciones_de_marketing[[#Headers],[Sep]],Planificados_de_marketing[#Headers],0))-INDEX(Reales_de_marketing[],MATCH(INDEX(Desviaciones_de_marketing[],ROW()-ROW(Desviaciones_de_marketing[[#Headers],[Sep]]),1),INDEX(Planificados_de_marketing[],,1),0),MATCH(Desviaciones_de_marketing[[#Headers],[Sep]],Reales_de_marketing[#Headers],0))","v":{"v":200,"d":"200.00 €"}},{"$f":"INDEX(Planificados_de_marketing[],MATCH(INDEX(Desviaciones_de_marketing[],ROW()-ROW(Desviaciones_de_marketing[[#Headers],[Oct]]),1),INDEX(Planificados_de_marketing[],,1),0),MATCH(Desviaciones_de_marketing[[#Headers],[Oct]],Planificados_de_marketing[#Headers],0))-INDEX(Reales_de_marketing[],MATCH(INDEX(Desviaciones_de_marketing[],ROW()-ROW(Desviaciones_de_marketing[[#Headers],[Oct]]),1),INDEX(Planificados_de_marketing[],,1),0),MATCH(Desviaciones_de_marketing[[#Headers],[Oct]],Reales_de_marketing[#Headers],0))","v":{"v":200,"d":"200.00 €"}},{"$f":"INDEX(Planificados_de_marketing[],MATCH(INDEX(Desviaciones_de_marketing[],ROW()-ROW(Desviaciones_de_marketing[[#Headers],[Nov]]),1),INDEX(Planificados_de_marketing[],,1),0),MATCH(Desviaciones_de_marketing[[#Headers],[Nov]],Planificados_de_marketing[#Headers],0))-INDEX(Reales_de_marketing[],MATCH(INDEX(Desviaciones_de_marketing[],ROW()-ROW(Desviaciones_de_marketing[[#Headers],[Nov]]),1),INDEX(Planificados_de_marketing[],,1),0),MATCH(Desviaciones_de_marketing[[#Headers],[Nov]],Reales_de_marketing[#Headers],0))","v":{"v":200,"d":"200.00 €"}},{"$f":"INDEX(Planificados_de_marketing[],MATCH(INDEX(Desviaciones_de_marketing[],ROW()-ROW(Desviaciones_de_marketing[[#Headers],[Dic]]),1),INDEX(Planificados_de_marketing[],,1),0),MATCH(Desviaciones_de_marketing[[#Headers],[Dic]],Planificados_de_marketing[#Headers],0))-INDEX(Reales_de_marketing[],MATCH(INDEX(Desviaciones_de_marketing[],ROW()-ROW(Desviaciones_de_marketing[[#Headers],[Dic]]),1),INDEX(Planificados_de_marketing[],,1),0),MATCH(Desviaciones_de_marketing[[#Headers],[Dic]],Reales_de_marketing[#Headers],0))","v":{"v":200,"d":"200.00 €"}},{"$f":"SUM(Desviaciones_de_marketing[[#This Row],[Ene]:[Dic]])","v":{"v":820,"d":"820.00 €"}}]
[null,"Eventos de marketing",{"$f":"INDEX(Planificados_de_marketing[],MATCH(INDEX(Desviaciones_de_marketing[],ROW()-ROW(Desviaciones_de_marketing[[#Headers],[Ene]]),1),INDEX(Planificados_de_marketing[],,1),0),MATCH(Desviaciones_de_marketing[[#Headers],[Ene]],Planificados_de_marketing[#Headers],0))-INDEX(Reales_de_marketing[],MATCH(INDEX(Desviaciones_de_marketing[],ROW()-ROW(Desviaciones_de_marketing[[#Headers],[Ene]]),1),INDEX(Planificados_de_marketing[],,1),0),MATCH(Desviaciones_de_marketing[[#Headers],[Ene]],Reales_de_marketing[#Headers],0))","v":{"v":200,"d":"200.00 €"}},{"$f":"INDEX(Planificados_de_marketing[],MATCH(INDEX(Desviaciones_de_marketing[],ROW()-ROW(Desviaciones_de_marketing[[#Headers],[Feb]]),1),INDEX(Planificados_de_marketing[],,1),0),MATCH(Desviaciones_de_marketing[[#Headers],[Feb]],Planificados_de_marketing[#Headers],0))-INDEX(Reales_de_marketing[],MATCH(INDEX(Desviaciones_de_marketing[],ROW()-ROW(Desviaciones_de_marketing[[#Headers],[Feb]]),1),INDEX(Planificados_de_marketing[],,1),0),MATCH(Desviaciones_de_marketing[[#Headers],[Feb]],Reales_de_marketing[#Headers],0))","v":{"v":-200,"d":"-200.00 €"}},{"$f":"INDEX(Planificados_de_marketing[],MATCH(INDEX(Desviaciones_de_marketing[],ROW()-ROW(Desviaciones_de_marketing[[#Headers],[Mar]]),1),INDEX(Planificados_de_marketing[],,1),0),MATCH(Desviaciones_de_marketing[[#Headers],[Mar]],Planificados_de_marketing[#Headers],0))-INDEX(Reales_de_marketing[],MATCH(INDEX(Desviaciones_de_marketing[],ROW()-ROW(Desviaciones_de_marketing[[#Headers],[Mar]]),1),INDEX(Planificados_de_marketing[],,1),0),MATCH(Desviaciones_de_marketing[[#Headers],[Mar]],Reales_de_marketing[#Headers],0))","v":{"v":-200,"d":"-200.00 €"}},{"$f":"INDEX(Planificados_de_marketing[],MATCH(INDEX(Desviaciones_de_marketing[],ROW()-ROW(Desviaciones_de_marketing[[#Headers],[Abr]]),1),INDEX(Planificados_de_marketing[],,1),0),MATCH(Desviaciones_de_marketing[[#Headers],[Abr]],Planificados_de_marketing[#Headers],0))-INDEX(Reales_de_marketing[],MATCH(INDEX(Desviaciones_de_marketing[],ROW()-ROW(Desviaciones_de_marketing[[#Headers],[Abr]]),1),INDEX(Planificados_de_marketing[],,1),0),MATCH(Desviaciones_de_marketing[[#Headers],[Abr]],Reales_de_marketing[#Headers],0))","v":{"v":300,"d":"300.00 €"}},{"$f":"INDEX(Planificados_de_marketing[],MATCH(INDEX(Desviaciones_de_marketing[],ROW()-ROW(Desviaciones_de_marketing[[#Headers],[May]]),1),INDEX(Planificados_de_marketing[],,1),0),MATCH(Desviaciones_de_marketing[[#Headers],[May]],Planificados_de_marketing[#Headers],0))-INDEX(Reales_de_marketing[],MATCH(INDEX(Desviaciones_de_marketing[],ROW()-ROW(Desviaciones_de_marketing[[#Headers],[May]]),1),INDEX(Planificados_de_marketing[],,1),0),MATCH(Desviaciones_de_marketing[[#Headers],[May]],Reales_de_marketing[#Headers],0))","v":{"v":500,"d":"500.00 €"}},{"$f":"INDEX(Planificados_de_marketing[],MATCH(INDEX(Desviaciones_de_marketing[],ROW()-ROW(Desviaciones_de_marketing[[#Headers],[Jun]]),1),INDEX(Planificados_de_marketing[],,1),0),MATCH(Desviaciones_de_marketing[[#Headers],[Jun]],Planificados_de_marketing[#Headers],0))-INDEX(Reales_de_marketing[],MATCH(INDEX(Desviaciones_de_marketing[],ROW()-ROW(Desviaciones_de_marketing[[#Headers],[Jun]]),1),INDEX(Planificados_de_marketing[],,1),0),MATCH(Desviaciones_de_marketing[[#Headers],[Jun]],Reales_de_marketing[#Headers],0))","v":{"v":-300,"d":"-300.00 €"}},{"$f":"INDEX(Planificados_de_marketing[],MATCH(INDEX(Desviaciones_de_marketing[],ROW()-ROW(Desviaciones_de_marketing[[#Headers],[Jul]]),1),INDEX(Planificados_de_marketing[],,1),0),MATCH(Desviaciones_de_marketing[[#Headers],[Jul]],Planificados_de_marketing[#Headers],0))-INDEX(Reales_de_marketing[],MATCH(INDEX(Desviaciones_de_marketing[],ROW()-ROW(Desviaciones_de_marketing[[#Headers],[Jul]]),1),INDEX(Planificados_de_marketing[],,1),0),MATCH(Desviaciones_de_marketing[[#Headers],[Jul]],Reales_de_marketing[#Headers],0))","v":{"v":2000,"d":"2,000.00 €"}},{"$f":"INDEX(Planificados_de_marketing[],MATCH(INDEX(Desviaciones_de_marketing[],ROW()-ROW(Desviaciones_de_marketing[[#Headers],[Ago]]),1),INDEX(Planificados_de_marketing[],,1),0),MATCH(Desviaciones_de_marketing[[#Headers],[Ago]],Planificados_de_marketing[#Headers],0))-INDEX(Reales_de_marketing[],MATCH(INDEX(Desviaciones_de_marketing[],ROW()-ROW(Desviaciones_de_marketing[[#Headers],[Ago]]),1),INDEX(Planificados_de_marketing[],,1),0),MATCH(Desviaciones_de_marketing[[#Headers],[Ago]],Reales_de_marketing[#Headers],0))","v":{"v":5000,"d":"5,000.00 €"}},{"$f":"INDEX(Planificados_de_marketing[],MATCH(INDEX(Desviaciones_de_marketing[],ROW()-ROW(Desviaciones_de_marketing[[#Headers],[Sep]]),1),INDEX(Planificados_de_marketing[],,1),0),MATCH(Desviaciones_de_marketing[[#Headers],[Sep]],Planificados_de_marketing[#Headers],0))-INDEX(Reales_de_marketing[],MATCH(INDEX(Desviaciones_de_marketing[],ROW()-ROW(Desviaciones_de_marketing[[#Headers],[Sep]]),1),INDEX(Planificados_de_marketing[],,1),0),MATCH(Desviaciones_de_marketing[[#Headers],[Sep]],Reales_de_marketing[#Headers],0))","v":{"v":2000,"d":"2,000.00 €"}},{"$f":"INDEX(Planificados_de_marketing[],MATCH(INDEX(Desviaciones_de_marketing[],ROW()-ROW(Desviaciones_de_marketing[[#Headers],[Oct]]),1),INDEX(Planificados_de_marketing[],,1),0),MATCH(Desviaciones_de_marketing[[#Headers],[Oct]],Planificados_de_marketing[#Headers],0))-INDEX(Reales_de_marketing[],MATCH(INDEX(Desviaciones_de_marketing[],ROW()-ROW(Desviaciones_de_marketing[[#Headers],[Oct]]),1),INDEX(Planificados_de_marketing[],,1),0),MATCH(Desviaciones_de_marketing[[#Headers],[Oct]],Reales_de_marketing[#Headers],0))","v":{"v":2000,"d":"2,000.00 €"}},{"$f":"INDEX(Planificados_de_marketing[],MATCH(INDEX(Desviaciones_de_marketing[],ROW()-ROW(Desviaciones_de_marketing[[#Headers],[Nov]]),1),INDEX(Planificados_de_marketing[],,1),0),MATCH(Desviaciones_de_marketing[[#Headers],[Nov]],Planificados_de_marketing[#Headers],0))-INDEX(Reales_de_marketing[],MATCH(INDEX(Desviaciones_de_marketing[],ROW()-ROW(Desviaciones_de_marketing[[#Headers],[Nov]]),1),INDEX(Planificados_de_marketing[],,1),0),MATCH(Desviaciones_de_marketing[[#Headers],[Nov]],Reales_de_marketing[#Headers],0))","v":{"v":2000,"d":"2,000.00 €"}},{"$f":"INDEX(Planificados_de_marketing[],MATCH(INDEX(Desviaciones_de_marketing[],ROW()-ROW(Desviaciones_de_marketing[[#Headers],[Dic]]),1),INDEX(Planificados_de_marketing[],,1),0),MATCH(Desviaciones_de_marketing[[#Headers],[Dic]],Planificados_de_marketing[#Headers],0))-INDEX(Reales_de_marketing[],MATCH(INDEX(Desviaciones_de_marketing[],ROW()-ROW(Desviaciones_de_marketing[[#Headers],[Dic]]),1),INDEX(Planificados_de_marketing[],,1),0),MATCH(Desviaciones_de_marketing[[#Headers],[Dic]],Reales_de_marketing[#Headers],0))","v":{"v":5000,"d":"5,000.00 €"}},{"$f":"SUM(Desviaciones_de_marketing[[#This Row],[Ene]:[Dic]])","v":{"v":18300,"d":"18,300.00 €"}}]
[null,"Gastos varios",{"$f":"INDEX(Planificados_de_marketing[],MATCH(INDEX(Desviaciones_de_marketing[],ROW()-ROW(Desviaciones_de_marketing[[#Headers],[Ene]]),1),INDEX(Planificados_de_marketing[],,1),0),MATCH(Desviaciones_de_marketing[[#Headers],[Ene]],Planificados_de_marketing[#Headers],0))-INDEX(Reales_de_marketing[],MATCH(INDEX(Desviaciones_de_marketing[],ROW()-ROW(Desviaciones_de_marketing[[#Headers],[Ene]]),1),INDEX(Planificados_de_marketing[],,1),0),MATCH(Desviaciones_de_marketing[[#Headers],[Ene]],Reales_de_marketing[#Headers],0))","v":{"v":55,"d":"55.00 €"}},{"$f":"INDEX(Planificados_de_marketing[],MATCH(INDEX(Desviaciones_de_marketing[],ROW()-ROW(Desviaciones_de_marketing[[#Headers],[Feb]]),1),INDEX(Planificados_de_marketing[],,1),0),MATCH(Desviaciones_de_marketing[[#Headers],[Feb]],Planificados_de_marketing[#Headers],0))-INDEX(Reales_de_marketing[],MATCH(INDEX(Desviaciones_de_marketing[],ROW()-ROW(Desviaciones_de_marketing[[#Headers],[Feb]]),1),INDEX(Planificados_de_marketing[],,1),0),MATCH(Desviaciones_de_marketing[[#Headers],[Feb]],Reales_de_marketing[#Headers],0))","v":{"v":44,"d":"44.00 €"}},{"$f":"INDEX(Planificados_de_marketing[],MATCH(INDEX(Desviaciones_de_marketing[],ROW()-ROW(Desviaciones_de_marketing[[#Headers],[Mar]]),1),INDEX(Planificados_de_marketing[],,1),0),MATCH(Desviaciones_de_marketing[[#Headers],[Mar]],Planificados_de_marketing[#Headers],0))-INDEX(Reales_de_marketing[],MATCH(INDEX(Desviaciones_de_marketing[],ROW()-ROW(Desviaciones_de_marketing[[#Headers],[Mar]]),1),INDEX(Planificados_de_marketing[],,1),0),MATCH(Desviaciones_de_marketing[[#Headers],[Mar]],Reales_de_marketing[#Headers],0))","v":{"v":77,"d":"77.00 €"}},{"$f":"INDEX(Planificados_de_marketing[],MATCH(INDEX(Desviaciones_de_marketing[],ROW()-ROW(Desviaciones_de_marketing[[#Headers],[Abr]]),1),INDEX(Planificados_de_marketing[],,1),0),MATCH(Desviaciones_de_marketing[[#Headers],[Abr]],Planificados_de_marketing[#Headers],0))-INDEX(Reales_de_marketing[],MATCH(INDEX(Desviaciones_de_marketing[],ROW()-ROW(Desviaciones_de_marketing[[#Headers],[Abr]]),1),INDEX(Planificados_de_marketing[],,1),0),MATCH(Desviaciones_de_marketing[[#Headers],[Abr]],Reales_de_marketing[#Headers],0))","v":{"v":-23,"d":"-23.00 €"}},{"$f":"INDEX(Planificados_de_marketing[],MATCH(INDEX(Desviaciones_de_marketing[],ROW()-ROW(Desviaciones_de_marketing[[#Headers],[May]]),1),INDEX(Planificados_de_marketing[],,1),0),MATCH(Desviaciones_de_marketing[[#Headers],[May]],Planificados_de_marketing[#Headers],0))-INDEX(Reales_de_marketing[],MATCH(INDEX(Desviaciones_de_marketing[],ROW()-ROW(Desviaciones_de_marketing[[#Headers],[May]]),1),INDEX(Planificados_de_marketing[],,1),0),MATCH(Desviaciones_de_marketing[[#Headers],[May]],Reales_de_marketing[#Headers],0))","v":{"v":13,"d":"13.00 €"}},{"$f":"INDEX(Planificados_de_marketing[],MATCH(INDEX(Desviaciones_de_marketing[],ROW()-ROW(Desviaciones_de_marketing[[#Headers],[Jun]]),1),INDEX(Planificados_de_marketing[],,1),0),MATCH(Desviaciones_de_marketing[[#Headers],[Jun]],Planificados_de_marketing[#Headers],0))-INDEX(Reales_de_marketing[],MATCH(INDEX(Desviaciones_de_marketing[],ROW()-ROW(Desviaciones_de_marketing[[#Headers],[Jun]]),1),INDEX(Planificados_de_marketing[],,1),0),MATCH(Desviaciones_de_marketing[[#Headers],[Jun]],Reales_de_marketing[#Headers],0))","v":{"v":-45,"d":"-45.00 €"}},{"$f":"INDEX(Planificados_de_marketing[],MATCH(INDEX(Desviaciones_de_marketing[],ROW()-ROW(Desviaciones_de_marketing[[#Headers],[Jul]]),1),INDEX(Planificados_de_marketing[],,1),0),MATCH(Desviaciones_de_marketing[[#Headers],[Jul]],Planificados_de_marketing[#Headers],0))-INDEX(Reales_de_marketing[],MATCH(INDEX(Desviaciones_de_marketing[],ROW()-ROW(Desviaciones_de_marketing[[#Headers],[Jul]]),1),INDEX(Planificados_de_marketing[],,1),0),MATCH(Desviaciones_de_marketing[[#Headers],[Jul]],Reales_de_marketing[#Headers],0))","v":{"v":200,"d":"200.00 €"}},{"$f":"INDEX(Planificados_de_marketing[],MATCH(INDEX(Desviaciones_de_marketing[],ROW()-ROW(Desviaciones_de_marketing[[#Headers],[Ago]]),1),INDEX(Planificados_de_marketing[],,1),0),MATCH(Desviaciones_de_marketing[[#Headers],[Ago]],Planificados_de_marketing[#Headers],0))-INDEX(Reales_de_marketing[],MATCH(INDEX(Desviaciones_de_marketing[],ROW()-ROW(Desviaciones_de_marketing[[#Headers],[Ago]]),1),INDEX(Planificados_de_marketing[],,1),0),MATCH(Desviaciones_de_marketing[[#Headers],[Ago]],Reales_de_marketing[#Headers],0))","v":{"v":200,"d":"200.00 €"}},{"$f":"INDEX(Planificados_de_marketing[],MATCH(INDEX(Desviaciones_de_marketing[],ROW()-ROW(Desviaciones_de_marketing[[#Headers],[Sep]]),1),INDEX(Planificados_de_marketing[],,1),0),MATCH(Desviaciones_de_marketing[[#Headers],[Sep]],Planificados_de_marketing[#Headers],0))-INDEX(Reales_de_marketing[],MATCH(INDEX(Desviaciones_de_marketing[],ROW()-ROW(Desviaciones_de_marketing[[#Headers],[Sep]]),1),INDEX(Planificados_de_marketing[],,1),0),MATCH(Desviaciones_de_marketing[[#Headers],[Sep]],Reales_de_marketing[#Headers],0))","v":{"v":200,"d":"200.00 €"}},{"$f":"INDEX(Planificados_de_marketing[],MATCH(INDEX(Desviaciones_de_marketing[],ROW()-ROW(Desviaciones_de_marketing[[#Headers],[Oct]]),1),INDEX(Planificados_de_marketing[],,1),0),MATCH(Desviaciones_de_marketing[[#Headers],[Oct]],Planificados_de_marketing[#Headers],0))-INDEX(Reales_de_marketing[],MATCH(INDEX(Desviaciones_de_marketing[],ROW()-ROW(Desviaciones_de_marketing[[#Headers],[Oct]]),1),INDEX(Planificados_de_marketing[],,1),0),MATCH(Desviaciones_de_marketing[[#Headers],[Oct]],Reales_de_marketing[#Headers],0))","v":{"v":200,"d":"200.00 €"}},{"$f":"INDEX(Planificados_de_marketing[],MATCH(INDEX(Desviaciones_de_marketing[],ROW()-ROW(Desviaciones_de_marketing[[#Headers],[Nov]]),1),INDEX(Planificados_de_marketing[],,1),0),MATCH(Desviaciones_de_marketing[[#Headers],[Nov]],Planificados_de_marketing[#Headers],0))-INDEX(Reales_de_marketing[],MATCH(INDEX(Desviaciones_de_marketing[],ROW()-ROW(Desviaciones_de_marketing[[#Headers],[Nov]]),1),INDEX(Planificados_de_marketing[],,1),0),MATCH(Desviaciones_de_marketing[[#Headers],[Nov]],Reales_de_marketing[#Headers],0))","v":{"v":200,"d":"200.00 €"}},{"$f":"INDEX(Planificados_de_marketing[],MATCH(INDEX(Desviaciones_de_marketing[],ROW()-ROW(Desviaciones_de_marketing[[#Headers],[Dic]]),1),INDEX(Planificados_de_marketing[],,1),0),MATCH(Desviaciones_de_marketing[[#Headers],[Dic]],Planificados_de_marketing[#Headers],0))-INDEX(Reales_de_marketing[],MATCH(INDEX(Desviaciones_de_marketing[],ROW()-ROW(Desviaciones_de_marketing[[#Headers],[Dic]]),1),INDEX(Planificados_de_marketing[],,1),0),MATCH(Desviaciones_de_marketing[[#Headers],[Dic]],Reales_de_marketing[#Headers],0))","v":{"v":200,"d":"200.00 €"}},{"$f":"SUM(Desviaciones_de_marketing[[#This Row],[Ene]:[Dic]])","v":{"v":1321,"d":"1,321.00 €"}}]
[null,"Subtotal",{"$f":"SUBTOTAL(109,Desviaciones_de_marketing[Ene])","v":{"v":555,"d":"555.00 €"}},{"$f":"SUBTOTAL(109,Desviaciones_de_marketing[Feb])","v":{"v":-456,"d":"-456.00 €"}},{"$f":"SUBTOTAL(109,Desviaciones_de_marketing[Mar])","v":{"v":-23,"d":"-23.00 €"}},{"$f":"SUBTOTAL(109,Desviaciones_de_marketing[Abr])","v":{"v":-123,"d":"-123.00 €"}},{"$f":"SUBTOTAL(109,Desviaciones_de_marketing[May])","v":{"v":113,"d":"113.00 €"}},{"$f":"SUBTOTAL(109,Desviaciones_de_marketing[Jun])","v":{"v":-825,"d":"-825.00 €"}},{"$f":"SUBTOTAL(109,Desviaciones_de_marketing[Jul])","v":{"v":8100,"d":"8,100.00 €"}},{"$f":"SUBTOTAL(109,Desviaciones_de_marketing[Ago])","v":{"v":6100,"d":"6,100.00 €"}},{"$f":"SUBTOTAL(109,Desviaciones_de_marketing[Sep])","v":{"v":3100,"d":"3,100.00 €"}},{"$f":"SUBTOTAL(109,Desviaciones_de_marketing[Oct])","v":{"v":8100,"d":"8,100.00 €"}},{"$f":"SUBTOTAL(109,Desviaciones_de_marketing[Nov])","v":{"v":3100,"d":"3,100.00 €"}},{"$f":"SUBTOTAL(109,Desviaciones_de_marketing[Dic])","v":{"v":6900,"d":"6,900.00 €"}},{"$f":"SUBTOTAL(109,Desviaciones_de_marketing[AÑO])","v":{"v":34641,"d":"34,641.00 €"}}]
[]
["La desviación en Costos de aprendizaje y viajes se calcula automáticamente en la tabla Desviaciones de aprendizaje y viajes, empezando por la celda de la derecha. La instrucción siguiente se encuentra en la celda A35.","Aprendizaje y viajes","Ene","Feb","Mar","Abr","May","Jun","Jul","Ago","Sep","Oct","Nov","Dic","AÑO"]
[null,"Cursos de aprendizaje",{"$f":"INDEX(Planificados_de_aprendizaje_y_viajes[],MATCH(INDEX(Desviaciones_de_aprendizaje_y_viajes[],ROW()-ROW(Desviaciones_de_aprendizaje_y_viajes[[#Headers],[Ene]]),1),INDEX(Planificados_de_aprendizaje_y_viajes[],,1),0),MATCH(Desviaciones_de_aprendizaje_y_viajes[[#Headers],[Ene]],Planificados_de_aprendizaje_y_viajes[#Headers],0))-INDEX(Reales_de_aprendizaje_y_viajes[],MATCH(INDEX(Desviaciones_de_aprendizaje_y_viajes[],ROW()-ROW(Desviaciones_de_aprendizaje_y_viajes[[#Headers],[Ene]]),1),INDEX(Planificados_de_aprendizaje_y_viajes[],,1),0),MATCH(Desviaciones_de_aprendizaje_y_viajes[[#Headers],[Ene]],Reales_de_aprendizaje_y_viajes[#Headers],0))","v":{"v":400,"d":"400.00 €"}},{"$f":"INDEX(Planificados_de_aprendizaje_y_viajes[],MATCH(INDEX(Desviaciones_de_aprendizaje_y_viajes[],ROW()-ROW(Desviaciones_de_aprendizaje_y_viajes[[#Headers],[Feb]]),1),INDEX(Planificados_de_aprendizaje_y_viajes[],,1),0),MATCH(Desviaciones_de_aprendizaje_y_viajes[[#Headers],[Feb]],Planificados_de_aprendizaje_y_viajes[#Headers],0))-INDEX(Reales_de_aprendizaje_y_viajes[],MATCH(INDEX(Desviaciones_de_aprendizaje_y_viajes[],ROW()-ROW(Desviaciones_de_aprendizaje_y_viajes[[#Headers],[Feb]]),1),INDEX(Planificados_de_aprendizaje_y_viajes[],,1),0),MATCH(Desviaciones_de_aprendizaje_y_viajes[[#Headers],[Feb]],Reales_de_aprendizaje_y_viajes[#Headers],0))","v":{"v":-400,"d":"-400.00 €"}},{"$f":"INDEX(Planificados_de_aprendizaje_y_viajes[],MATCH(INDEX(Desviaciones_de_aprendizaje_y_viajes[],ROW()-ROW(Desviaciones_de_aprendizaje_y_viajes[[#Headers],[Mar]]),1),INDEX(Planificados_de_aprendizaje_y_viajes[],,1),0),MATCH(Desviaciones_de_aprendizaje_y_viajes[[#Headers],[Mar]],Planificados_de_aprendizaje_y_viajes[#Headers],0))-INDEX(Reales_de_aprendizaje_y_viajes[],MATCH(INDEX(Desviaciones_de_aprendizaje_y_viajes[],ROW()-ROW(Desviaciones_de_aprendizaje_y_viajes[[#Headers],[Mar]]),1),INDEX(Planificados_de_aprendizaje_y_viajes[],,1),0),MATCH(Desviaciones_de_aprendizaje_y_viajes[[#Headers],[Mar]],Reales_de_aprendizaje_y_viajes[#Headers],0))","v":{"v":600,"d":"600.00 €"}},{"$f":"INDEX(Planificados_de_aprendizaje_y_viajes[],MATCH(INDEX(Desviaciones_de_aprendizaje_y_viajes[],ROW()-ROW(Desviaciones_de_aprendizaje_y_viajes[[#Headers],[Abr]]),1),INDEX(Planificados_de_aprendizaje_y_viajes[],,1),0),MATCH(Desviaciones_de_aprendizaje_y_viajes[[#Headers],[Abr]],Planificados_de_aprendizaje_y_viajes[#Headers],0))-INDEX(Reales_de_aprendizaje_y_viajes[],MATCH(INDEX(Desviaciones_de_aprendizaje_y_viajes[],ROW()-ROW(Desviaciones_de_aprendizaje_y_viajes[[#Headers],[Abr]]),1),INDEX(Planificados_de_aprendizaje_y_viajes[],,1),0),MATCH(Desviaciones_de_aprendizaje_y_viajes[[#Headers],[Abr]],Reales_de_aprendizaje_y_viajes[#Headers],0))","v":{"v":400,"d":"400.00 €"}},{"$f":"INDEX(Planificados_de_aprendizaje_y_viajes[],MATCH(INDEX(Desviaciones_de_aprendizaje_y_viajes[],ROW()-ROW(Desviaciones_de_aprendizaje_y_viajes[[#Headers],[May]]),1),INDEX(Planificados_de_aprendizaje_y_viajes[],,1),0),MATCH(Desviaciones_de_aprendizaje_y_viajes[[#Headers],[May]],Planificados_de_aprendizaje_y_viajes[#Headers],0))-INDEX(Reales_de_aprendizaje_y_viajes[],MATCH(INDEX(Desviaciones_de_aprendizaje_y_viajes[],ROW()-ROW(Desviaciones_de_aprendizaje_y_viajes[[#Headers],[May]]),1),INDEX(Planificados_de_aprendizaje_y_viajes[],,1),0),MATCH(Desviaciones_de_aprendizaje_y_viajes[[#Headers],[May]],Reales_de_aprendizaje_y_viajes[#Headers],0))","v":{"v":800,"d":"800.00 €"}},{"$f":"INDEX(Planificados_de_aprendizaje_y_viajes[],MATCH(INDEX(Desviaciones_de_aprendizaje_y_viajes[],ROW()-ROW(Desviaciones_de_aprendizaje_y_viajes[[#Headers],[Jun]]),1),INDEX(Planificados_de_aprendizaje_y_viajes[],,1),0),MATCH(Desviaciones_de_aprendizaje_y_viajes[[#Headers],[Jun]],Planificados_de_aprendizaje_y_viajes[#Headers],0))-INDEX(Reales_de_aprendizaje_y_viajes[],MATCH(INDEX(Desviaciones_de_aprendizaje_y_viajes[],ROW()-ROW(Desviaciones_de_aprendizaje_y_viajes[[#Headers],[Jun]]),1),INDEX(Planificados_de_aprendizaje_y_viajes[],,1),0),MATCH(Desviaciones_de_aprendizaje_y_viajes[[#Headers],[Jun]],Reales_de_aprendizaje_y_viajes[#Headers],0))","v":{"v":-800,"d":"-800.00 €"}},{"$f":"INDEX(Planificados_de_aprendizaje_y_viajes[],MATCH(INDEX(Desviaciones_de_aprendizaje_y_viajes[],ROW()-ROW(Desviaciones_de_aprendizaje_y_viajes[[#Headers],[Jul]]),1),INDEX(Planificados_de_aprendizaje_y_viajes[],,1),0),MATCH(Desviaciones_de_aprendizaje_y_viajes[[#Headers],[Jul]],Planificados_de_aprendizaje_y_viajes[#Headers],0))-INDEX(Reales_de_aprendizaje_y_viajes[],MATCH(INDEX(Desviaciones_de_aprendizaje_y_viajes[],ROW()-ROW(Desviaciones_de_aprendizaje_y_viajes[[#Headers],[Jul]]),1),INDEX(Planificados_de_aprendizaje_y_viajes[],,1),0),MATCH(Desviaciones_de_aprendizaje_y_viajes[[#Headers],[Jul]],Reales_de_aprendizaje_y_viajes[#Headers],0))","v":{"v":2000,"d":"2,000.00 €"}},{"$f":"INDEX(Planificados_de_aprendizaje_y_viajes[],MATCH(INDEX(Desviaciones_de_aprendizaje_y_viajes[],ROW()-ROW(Desviaciones_de_aprendizaje_y_viajes[[#Headers],[Ago]]),1),INDEX(Planificados_de_aprendizaje_y_viajes[],,1),0),MATCH(Desviaciones_de_aprendizaje_y_viajes[[#Headers],[Ago]],Planificados_de_aprendizaje_y_viajes[#Headers],0))-INDEX(Reales_de_aprendizaje_y_viajes[],MATCH(INDEX(Desviaciones_de_aprendizaje_y_viajes[],ROW()-ROW(Desviaciones_de_aprendizaje_y_viajes[[#Headers],[Ago]]),1),INDEX(Planificados_de_aprendizaje_y_viajes[],,1),0),MATCH(Desviaciones_de_aprendizaje_y_viajes[[#Headers],[Ago]],Reales_de_aprendizaje_y_viajes[#Headers],0))","v":{"v":2000,"d":"2,000.00 €"}},{"$f":"INDEX(Planificados_de_aprendizaje_y_viajes[],MATCH(INDEX(Desviaciones_de_aprendizaje_y_viajes[],ROW()-ROW(Desviaciones_de_aprendizaje_y_viajes[[#Headers],[Sep]]),1),INDEX(Planificados_de_aprendizaje_y_viajes[],,1),0),MATCH(Desviaciones_de_aprendizaje_y_viajes[[#Headers],[Sep]],Planificados_de_aprendizaje_y_viajes[#Headers],0))-INDEX(Reales_de_aprendizaje_y_viajes[],MATCH(INDEX(Desviaciones_de_aprendizaje_y_viajes[],ROW()-ROW(Desviaciones_de_aprendizaje_y_viajes[[#Headers],[Sep]]),1),INDEX(Planificados_de_aprendizaje_y_viajes[],,1),0),MATCH(Desviaciones_de_aprendizaje_y_viajes[[#Headers],[Sep]],Reales_de_aprendizaje_y_viajes[#Headers],0))","v":{"v":2000,"d":"2,000.00 €"}},{"$f":"INDEX(Planificados_de_aprendizaje_y_viajes[],MATCH(INDEX(Desviaciones_de_aprendizaje_y_viajes[],ROW()-ROW(Desviaciones_de_aprendizaje_y_viajes[[#Headers],[Oct]]),1),INDEX(Planificados_de_aprendizaje_y_viajes[],,1),0),MATCH(Desviaciones_de_aprendizaje_y_viajes[[#Headers],[Oct]],Planificados_de_aprendizaje_y_viajes[#Headers],0))-INDEX(Reales_de_aprendizaje_y_viajes[],MATCH(INDEX(Desviaciones_de_aprendizaje_y_viajes[],ROW()-ROW(Desviaciones_de_aprendizaje_y_viajes[[#Headers],[Oct]]),1),INDEX(Planificados_de_aprendizaje_y_viajes[],,1),0),MATCH(Desviaciones_de_aprendizaje_y_viajes[[#Headers],[Oct]],Reales_de_aprendizaje_y_viajes[#Headers],0))","v":{"v":2000,"d":"2,000.00 €"}},{"$f":"INDEX(Planificados_de_aprendizaje_y_viajes[],MATCH(INDEX(Desviaciones_de_aprendizaje_y_viajes[],ROW()-ROW(Desviaciones_de_aprendizaje_y_viajes[[#Headers],[Nov]]),1),INDEX(Planificados_de_aprendizaje_y_viajes[],,1),0),MATCH(Desviaciones_de_aprendizaje_y_viajes[[#Headers],[Nov]],Planificados_de_aprendizaje_y_viajes[#Headers],0))-INDEX(Reales_de_aprendizaje_y_viajes[],MATCH(INDEX(Desviaciones_de_aprendizaje_y_viajes[],ROW()-ROW(Desviaciones_de_aprendizaje_y_viajes[[#Headers],[Nov]]),1),INDEX(Planificados_de_aprendizaje_y_viajes[],,1),0),MATCH(Desviaciones_de_aprendizaje_y_viajes[[#Headers],[Nov]],Reales_de_aprendizaje_y_viajes[#Headers],0))","v":{"v":2000,"d":"2,000.00 €"}},{"$f":"INDEX(Planificados_de_aprendizaje_y_viajes[],MATCH(INDEX(Desviaciones_de_aprendizaje_y_viajes[],ROW()-ROW(Desviaciones_de_aprendizaje_y_viajes[[#Headers],[Dic]]),1),INDEX(Planificados_de_aprendizaje_y_viajes[],,1),0),MATCH(Desviaciones_de_aprendizaje_y_viajes[[#Headers],[Dic]],Planificados_de_aprendizaje_y_viajes[#Headers],0))-INDEX(Reales_de_aprendizaje_y_viajes[],MATCH(INDEX(Desviaciones_de_aprendizaje_y_viajes[],ROW()-ROW(Desviaciones_de_aprendizaje_y_viajes[[#Headers],[Dic]]),1),INDEX(Planificados_de_aprendizaje_y_viajes[],,1),0),MATCH(Desviaciones_de_aprendizaje_y_viajes[[#Headers],[Dic]],Reales_de_aprendizaje_y_viajes[#Headers],0))","v":{"v":2000,"d":"2,000.00 €"}},{"$f":"SUM(Desviaciones_de_aprendizaje_y_viajes[[#This Row],[Ene]:[Dic]])","v":{"v":13000,"d":"13,000.00 €"}}]
[null,"Costos de viajes de aprendizaje",{"$f":"INDEX(Planificados_de_aprendizaje_y_viajes[],MATCH(INDEX(Desviaciones_de_aprendizaje_y_viajes[],ROW()-ROW(Desviaciones_de_aprendizaje_y_viajes[[#Headers],[Ene]]),1),INDEX(Planificados_de_aprendizaje_y_viajes[],,1),0),MATCH(Desviaciones_de_aprendizaje_y_viajes[[#Headers],[Ene]],Planificados_de_aprendizaje_y_viajes[#Headers],0))-INDEX(Reales_de_aprendizaje_y_viajes[],MATCH(INDEX(Desviaciones_de_aprendizaje_y_viajes[],ROW()-ROW(Desviaciones_de_aprendizaje_y_viajes[[#Headers],[Ene]]),1),INDEX(Planificados_de_aprendizaje_y_viajes[],,1),0),MATCH(Desviaciones_de_aprendizaje_y_viajes[[#Headers],[Ene]],Reales_de_aprendizaje_y_viajes[#Headers],0))","v":{"v":800,"d":"800.00 €"}},{"$f":"INDEX(Planificados_de_aprendizaje_y_viajes[],MATCH(INDEX(Desviaciones_de_aprendizaje_y_viajes[],ROW()-ROW(Desviaciones_de_aprendizaje_y_viajes[[#Headers],[Feb]]),1),INDEX(Planificados_de_aprendizaje_y_viajes[],,1),0),MATCH(Desviaciones_de_aprendizaje_y_viajes[[#Headers],[Feb]],Planificados_de_aprendizaje_y_viajes[#Headers],0))-INDEX(Reales_de_aprendizaje_y_viajes[],MATCH(INDEX(Desviaciones_de_aprendizaje_y_viajes[],ROW()-ROW(Desviaciones_de_aprendizaje_y_viajes[[#Headers],[Feb]]),1),INDEX(Planificados_de_aprendizaje_y_viajes[],,1),0),MATCH(Desviaciones_de_aprendizaje_y_viajes[[#Headers],[Feb]],Reales_de_aprendizaje_y_viajes[#Headers],0))","v":{"v":-200,"d":"-200.00 €"}},{"$f":"INDEX(Planificados_de_aprendizaje_y_viajes[],MATCH(INDEX(Desviaciones_de_aprendizaje_y_viajes[],ROW()-ROW(Desviaciones_de_aprendizaje_y_viajes[[#Headers],[Mar]]),1),INDEX(Planificados_de_aprendizaje_y_viajes[],,1),0),MATCH(Desviaciones_de_aprendizaje_y_viajes[[#Headers],[Mar]],Planificados_de_aprendizaje_y_viajes[#Headers],0))-INDEX(Reales_de_aprendizaje_y_viajes[],MATCH(INDEX(Desviaciones_de_aprendizaje_y_viajes[],ROW()-ROW(Desviaciones_de_aprendizaje_y_viajes[[#Headers],[Mar]]),1),INDEX(Planificados_de_aprendizaje_y_viajes[],,1),0),MATCH(Desviaciones_de_aprendizaje_y_viajes[[#Headers],[Mar]],Reales_de_aprendizaje_y_viajes[#Headers],0))","v":{"v":600,"d":"600.00 €"}},{"$f":"INDEX(Planificados_de_aprendizaje_y_viajes[],MATCH(INDEX(Desviaciones_de_aprendizaje_y_viajes[],ROW()-ROW(Desviaciones_de_aprendizaje_y_viajes[[#Headers],[Abr]]),1),INDEX(Planificados_de_aprendizaje_y_viajes[],,1),0),MATCH(Desviaciones_de_aprendizaje_y_viajes[[#Headers],[Abr]],Planificados_de_aprendizaje_y_viajes[#Headers],0))-INDEX(Reales_de_aprendizaje_y_viajes[],MATCH(INDEX(Desviaciones_de_aprendizaje_y_viajes[],ROW()-ROW(Desviaciones_de_aprendizaje_y_viajes[[#Headers],[Abr]]),1),INDEX(Planificados_de_aprendizaje_y_viajes[],,1),0),MATCH(Desviaciones_de_aprendizaje_y_viajes[[#Headers],[Abr]],Reales_de_aprendizaje_y_viajes[#Headers],0))","v":{"v":800,"d":"800.00 €"}},{"$f":"INDEX(Planificados_de_aprendizaje_y_viajes[],MATCH(INDEX(Desviaciones_de_aprendizaje_y_viajes[],ROW()-ROW(Desviaciones_de_aprendizaje_y_viajes[[#Headers],[May]]),1),INDEX(Planificados_de_aprendizaje_y_viajes[],,1),0),MATCH(Desviaciones_de_aprendizaje_y_viajes[[#Headers],[May]],Planificados_de_aprendizaje_y_viajes[#Headers],0))-INDEX(Reales_de_aprendizaje_y_viajes[],MATCH(INDEX(Desviaciones_de_aprendizaje_y_viajes[],ROW()-ROW(Desviaciones_de_aprendizaje_y_viajes[[#Headers],[May]]),1),INDEX(Planificados_de_aprendizaje_y_viajes[],,1),0),MATCH(Desviaciones_de_aprendizaje_y_viajes[[#Headers],[May]],Reales_de_aprendizaje_y_viajes[#Headers],0))","v":{"v":1200,"d":"1,200.00 €"}},{"$f":"INDEX(Planificados_de_aprendizaje_y_viajes[],MATCH(INDEX(Desviaciones_de_aprendizaje_y_viajes[],ROW()-ROW(Desviaciones_de_aprendizaje_y_viajes[[#Headers],[Jun]]),1),INDEX(Planificados_de_aprendizaje_y_viajes[],,1),0),MATCH(Desviaciones_de_aprendizaje_y_viajes[[#Headers],[Jun]],Planificados_de_aprendizaje_y_viajes[#Headers],0))-INDEX(Reales_de_aprendizaje_y_viajes[],MATCH(INDEX(Desviaciones_de_aprendizaje_y_viajes[],ROW()-ROW(Desviaciones_de_aprendizaje_y_viajes[[#Headers],[Jun]]),1),INDEX(Planificados_de_aprendizaje_y_viajes[],,1),0),MATCH(Desviaciones_de_aprendizaje_y_viajes[[#Headers],[Jun]],Reales_de_aprendizaje_y_viajes[#Headers],0))","v":{"v":-1500,"d":"-1,500.00 €"}},{"$f":"INDEX(Planificados_de_aprendizaje_y_viajes[],MATCH(INDEX(Desviaciones_de_aprendizaje_y_viajes[],ROW()-ROW(Desviaciones_de_aprendizaje_y_viajes[[#Headers],[Jul]]),1),INDEX(Planificados_de_aprendizaje_y_viajes[],,1),0),MATCH(Desviaciones_de_aprendizaje_y_viajes[[#Headers],[Jul]],Planificados_de_aprendizaje_y_viajes[#Headers],0))-INDEX(Reales_de_aprendizaje_y_viajes[],MATCH(INDEX(Desviaciones_de_aprendizaje_y_viajes[],ROW()-ROW(Desviaciones_de_aprendizaje_y_viajes[[#Headers],[Jul]]),1),INDEX(Planificados_de_aprendizaje_y_viajes[],,1),0),MATCH(Desviaciones_de_aprendizaje_y_viajes[[#Headers],[Jul]],Reales_de_aprendizaje_y_viajes[#Headers],0))","v":{"v":2000,"d":"2,000.00 €"}},{"$f":"INDEX(Planificados_de_aprendizaje_y_viajes[],MATCH(INDEX(Desviaciones_de_aprendizaje_y_viajes[],ROW()-ROW(Desviaciones_de_aprendizaje_y_viajes[[#Headers],[Ago]]),1),INDEX(Planificados_de_aprendizaje_y_viajes[],,1),0),MATCH(Desviaciones_de_aprendizaje_y_viajes[[#Headers],[Ago]],Planificados_de_aprendizaje_y_viajes[#Headers],0))-INDEX(Reales_de_aprendizaje_y_viajes[],MATCH(INDEX(Desviaciones_de_aprendizaje_y_viajes[],ROW()-ROW(Desviaciones_de_aprendizaje_y_viajes[[#Headers],[Ago]]),1),INDEX(Planificados_de_aprendizaje_y_viajes[],,1),0),MATCH(Desviaciones_de_aprendizaje_y_viajes[[#Headers],[Ago]],Reales_de_aprendizaje_y_viajes[#Headers],0))","v":{"v":2000,"d":"2,000.00 €"}},{"$f":"INDEX(Planificados_de_aprendizaje_y_viajes[],MATCH(INDEX(Desviaciones_de_aprendizaje_y_viajes[],ROW()-ROW(Desviaciones_de_aprendizaje_y_viajes[[#Headers],[Sep]]),1),INDEX(Planificados_de_aprendizaje_y_viajes[],,1),0),MATCH(Desviaciones_de_aprendizaje_y_viajes[[#Headers],[Sep]],Planificados_de_aprendizaje_y_viajes[#Headers],0))-INDEX(Reales_de_aprendizaje_y_viajes[],MATCH(INDEX(Desviaciones_de_aprendizaje_y_viajes[],ROW()-ROW(Desviaciones_de_aprendizaje_y_viajes[[#Headers],[Sep]]),1),INDEX(Planificados_de_aprendizaje_y_viajes[],,1),0),MATCH(Desviaciones_de_aprendizaje_y_viajes[[#Headers],[Sep]],Reales_de_aprendizaje_y_viajes[#Headers],0))","v":{"v":2000,"d":"2,000.00 €"}},{"$f":"INDEX(Planificados_de_aprendizaje_y_viajes[],MATCH(INDEX(Desviaciones_de_aprendizaje_y_viajes[],ROW()-ROW(Desviaciones_de_aprendizaje_y_viajes[[#Headers],[Oct]]),1),INDEX(Planificados_de_aprendizaje_y_viajes[],,1),0),MATCH(Desviaciones_de_aprendizaje_y_viajes[[#Headers],[Oct]],Planificados_de_aprendizaje_y_viajes[#Headers],0))-INDEX(Reales_de_aprendizaje_y_viajes[],MATCH(INDEX(Desviaciones_de_aprendizaje_y_viajes[],ROW()-ROW(Desviaciones_de_aprendizaje_y_viajes[[#Headers],[Oct]]),1),INDEX(Planificados_de_aprendizaje_y_viajes[],,1),0),MATCH(Desviaciones_de_aprendizaje_y_viajes[[#Headers],[Oct]],Reales_de_aprendizaje_y_viajes[#Headers],0))","v":{"v":2000,"d":"2,000.00 €"}},{"$f":"INDEX(Planificados_de_aprendizaje_y_viajes[],MATCH(INDEX(Desviaciones_de_aprendizaje_y_viajes[],ROW()-ROW(Desviaciones_de_aprendizaje_y_viajes[[#Headers],[Nov]]),1),INDEX(Planificados_de_aprendizaje_y_viajes[],,1),0),MATCH(Desviaciones_de_aprendizaje_y_viajes[[#Headers],[Nov]],Planificados_de_aprendizaje_y_viajes[#Headers],0))-INDEX(Reales_de_aprendizaje_y_viajes[],MATCH(INDEX(Desviaciones_de_aprendizaje_y_viajes[],ROW()-ROW(Desviaciones_de_aprendizaje_y_viajes[[#Headers],[Nov]]),1),INDEX(Planificados_de_aprendizaje_y_viajes[],,1),0),MATCH(Desviaciones_de_aprendizaje_y_viajes[[#Headers],[Nov]],Reales_de_aprendizaje_y_viajes[#Headers],0))","v":{"v":2000,"d":"2,000.00 €"}},{"$f":"INDEX(Planificados_de_aprendizaje_y_viajes[],MATCH(INDEX(Desviaciones_de_aprendizaje_y_viajes[],ROW()-ROW(Desviaciones_de_aprendizaje_y_viajes[[#Headers],[Dic]]),1),INDEX(Planificados_de_aprendizaje_y_viajes[],,1),0),MATCH(Desviaciones_de_aprendizaje_y_viajes[[#Headers],[Dic]],Planificados_de_aprendizaje_y_viajes[#Headers],0))-INDEX(Reales_de_aprendizaje_y_viajes[],MATCH(INDEX(Desviaciones_de_aprendizaje_y_viajes[],ROW()-ROW(Desviaciones_de_aprendizaje_y_viajes[[#Headers],[Dic]]),1),INDEX(Planificados_de_aprendizaje_y_viajes[],,1),0),MATCH(Desviaciones_de_aprendizaje_y_viajes[[#Headers],[Dic]],Reales_de_aprendizaje_y_viajes[#Headers],0))","v":{"v":2000,"d":"2,000.00 €"}},{"$f":"SUM(Desviaciones_de_aprendizaje_y_viajes[[#This Row],[Ene]:[Dic]])","v":{"v":13700,"d":"13,700.00 €"}}]
[null,"Subtotal",{"$f":"SUBTOTAL(109,Desviaciones_de_aprendizaje_y_viajes[Ene])","v":{"v":1200,"d":"1,200.00 €"}},{"$f":"SUBTOTAL(109,Desviaciones_de_aprendizaje_y_viajes[Feb])","v":{"v":-600,"d":"-600.00 €"}},{"$f":"SUBTOTAL(109,Desviaciones_de_aprendizaje_y_viajes[Mar])","v":{"v":1200,"d":"1,200.00 €"}},{"$f":"SUBTOTAL(109,Desviaciones_de_aprendizaje_y_viajes[Abr])","v":{"v":1200,"d":"1,200.00 €"}},{"$f":"SUBTOTAL(109,Desviaciones_de_aprendizaje_y_viajes[May])","v":{"v":2000,"d":"2,000.00 €"}},{"$f":"SUBTOTAL(109,Desviaciones_de_aprendizaje_y_viajes[Jun])","v":{"v":-2300,"d":"-2,300.00 €"}},{"$f":"SUBTOTAL(109,Desviaciones_de_aprendizaje_y_viajes[Jul])","v":{"v":4000,"d":"4,000.00 €"}},{"$f":"SUBTOTAL(109,Desviaciones_de_aprendizaje_y_viajes[Ago])","v":{"v":4000,"d":"4,000.00 €"}},{"$f":"SUBTOTAL(109,Desviaciones_de_aprendizaje_y_viajes[Sep])","v":{"v":4000,"d":"4,000.00 €"}},{"$f":"SUBTOTAL(109,Desviaciones_de_aprendizaje_y_viajes[Oct])","v":{"v":4000,"d":"4,000.00 €"}},{"$f":"SUBTOTAL(109,Desviaciones_de_aprendizaje_y_viajes[Nov])","v":{"v":4000,"d":"4,000.00 €"}},{"$f":"SUBTOTAL(109,Desviaciones_de_aprendizaje_y_viajes[Dic])","v":{"v":4000,"d":"4,000.00 €"}},{"$f":"SUBTOTAL(109,Desviaciones_de_aprendizaje_y_viajes[AÑO])","v":{"v":26700,"d":"26,700.00 €"}}]
[]
["Las desviaciones de gastos se calculan automáticamente en la tabla Desviación total, empezando por la celda de la derecha.","TOTALES","Ene","Feb","Mar","Abr","May","Jun","Jul","Ago","Sep","Oct","Nov","Dic","Año"]
[null,"Gastos reales mensuales",{"$f":"Desviaciones_de_aprendizaje_y_viajes[[#Totals],[Ene]]+Desviaciones_de_marketing[[#Totals],[Ene]]+Desviaciones_de_la_oficina[[#Totals],[Ene]]+Desviaciones_por_empleado[[#Totals],[Ene]]","v":{"v":1738,"d":"1,738.00 €"}},{"$f":"Desviaciones_de_aprendizaje_y_viajes[[#Totals],[Feb]]+Desviaciones_de_marketing[[#Totals],[Feb]]+Desviaciones_de_la_oficina[[#Totals],[Feb]]+Desviaciones_por_empleado[[#Totals],[Feb]]","v":{"v":-984,"d":"-984.00 €"}},{"$f":"Desviaciones_de_aprendizaje_y_viajes[[#Totals],[Mar]]+Desviaciones_de_marketing[[#Totals],[Mar]]+Desviaciones_de_la_oficina[[#Totals],[Mar]]+Desviaciones_por_empleado[[#Totals],[Mar]]","v":{"v":1255,"d":"1,255.00 €"}},{"$f":"Desviaciones_de_aprendizaje_y_viajes[[#Totals],[Abr]]+Desviaciones_de_marketing[[#Totals],[Abr]]+Desviaciones_de_la_oficina[[#Totals],[Abr]]+Desviaciones_por_empleado[[#Totals],[Abr]]","v":{"v":301,"d":"301.00 €"}},{"$f":"Desviaciones_de_aprendizaje_y_viajes[[#Totals],[May]]+Desviaciones_de_marketing[[#Totals],[May]]+Desviaciones_de_la_oficina[[#Totals],[May]]+Desviaciones_por_empleado[[#Totals],[May]]","v":{"v":1440,"d":"1,440.00 €"}},{"$f":"Desviaciones_de_aprendizaje_y_viajes[[#Totals],[Jun]]+Desviaciones_de_marketing[[#Totals],[Jun]]+Desviaciones_de_la_oficina[[#Totals],[Jun]]+Desviaciones_por_empleado[[#Totals],[Jun]]","v":{"v":-3744,"d":"-3,744.00 €"}},{"$f":"Desviaciones_de_aprendizaje_y_viajes[[#Totals],[Jul]]+Desviaciones_de_marketing[[#Totals],[Jul]]+Desviaciones_de_la_oficina[[#Totals],[Jul]]+Desviaciones_por_empleado[[#Totals],[Jul]]","v":{"v":134695,"d":"134,695.00 €"}},{"$f":"Desviaciones_de_aprendizaje_y_viajes[[#Totals],[Ago]]+Desviaciones_de_marketing[[#Totals],[Ago]]+Desviaciones_de_la_oficina[[#Totals],[Ago]]+Desviaciones_por_empleado[[#Totals],[Ago]]","v":{"v":138918,"d":"138,918.00 €"}},{"$f":"Desviaciones_de_aprendizaje_y_viajes[[#Totals],[Sep]]+Desviaciones_de_marketing[[#Totals],[Sep]]+Desviaciones_de_la_oficina[[#Totals],[Sep]]+Desviaciones_por_empleado[[#Totals],[Sep]]","v":{"v":135918,"d":"135,918.00 €"}},{"$f":"Desviaciones_de_aprendizaje_y_viajes[[#Totals],[Oct]]+Desviaciones_de_marketing[[#Totals],[Oct]]+Desviaciones_de_la_oficina[[#Totals],[Oct]]+Desviaciones_por_empleado[[#Totals],[Oct]]","v":{"v":140918,"d":"140,918.00 €"}},{"$f":"Desviaciones_de_aprendizaje_y_viajes[[#Totals],[Nov]]+Desviaciones_de_marketing[[#Totals],[Nov]]+Desviaciones_de_la_oficina[[#Totals],[Nov]]+Desviaciones_por_empleado[[#Totals],[Nov]]","v":{"v":136218,"d":"136,218.00 €"}},{"$f":"Desviaciones_de_aprendizaje_y_viajes[[#Totals],[Dic]]+Desviaciones_de_marketing[[#Totals],[Dic]]+Desviaciones_de_la_oficina[[#Totals],[Dic]]+Desviaciones_por_empleado[[#Totals],[Dic]]","v":{"v":140018,"d":"140,018.00 €"}},{"$f":"Desviaciones_de_aprendizaje_y_viajes[[#Totals],[AÑO]]+Desviaciones_de_marketing[[#Totals],[AÑO]]+Desviaciones_de_la_oficina[[#Totals],[AÑO]]+Desviaciones_por_empleado[[#Totals],[AÑO]]","v":{"v":826691,"d":"826,691.00 €"}}]
[null,"Gastos reales TOTALES",{"$f":"SUM($C$36:C36)","v":{"v":1738,"d":"1,738.00 €"}},{"$f":"SUM($C$36:D36)","v":{"v":754,"d":"754.00 €"}},{"$f":"SUM($C$36:E36)","v":{"v":2009,"d":"2,009.00 €"}},{"$f":"SUM($C$36:F36)","v":{"v":2310,"d":"2,310.00 €"}},{"$f":"SUM($C$36:G36)","v":{"v":3750,"d":"3,750.00 €"}},{"$f":"SUM($C$36:H36)","v":{"v":6,"d":"6.00 €"}},{"$f":"SUM($C$36:I36)","v":{"v":134701,"d":"134,701.00 €"}},{"$f":"SUM($C$36:J36)","v":{"v":273619,"d":"273,619.00 €"}},{"$f":"SUM($C$36:K36)","v":{"v":409537,"d":"409,537.00 €"}},{"$f":"SUM($C$36:L36)","v":{"v":550455,"d":"550,455.00 €"}},{"$f":"SUM($C$36:M36)","v":{"v":686673,"d":"686,673.00 €"}},{"$f":"SUM($C$36:N36)","v":{"v":826691,"d":"826,691.00 €"}}]

{"sheet":"ANÁLISIS DE GASTOS","index":4,"n_rows":14,"n_cols":16,"rows_kept":14,"merged":[[1,1,2,3],[1,5,1,6],[2,4,2,6],[11,1,11,2],[11,3,11,5],[13,1,36,5]]}
["Los gastos planificados y reales anuales, las desviaciones de gastos y el porcentaje de desviación se actualizan automáticamente en cada categoría de gastos de esta hoja de cálculo. Encontrará instrucciones útiles sobre cómo usar esta hoja de cálculo en las celdas de esta columna. Presione la flecha abajo para empezar. ",{"$nulls":5}," ",{"$nulls":8}," "]
["El nombre de la empresa se actualiza automáticamente en celda de la derecha. Agregue el logotipo en la celda F2.",{"$f":"'GASTOS PLANIFICADOS'!B2:D3","v":"Nombre de la empresa"},{"$nulls":3},"El marcador de posición del logotipo se encuentra en esta celda."]
["El título de esta hoja de cálculo está en la celda E3. La instrucción siguiente se encuentra en la celda A5.",{"$nulls":3},{"$f":"titulo_hoja_calculo","v":"Estimaciones detalladas de gastos"}]
[]
["Los gastos planificados, los gastos reales, la desviación de gastos y el porcentaje de desviación se calculan automáticamente en la tabla Análisis, empezando por la celda de la derecha. La instrucción siguiente se encuentra en la celda A12.","Categoría de gastos","Gastos planificados","Gastos reales","Desviaciones de gastos","Porcentaje de desviación"]
[null,"Costos por empleado",{"$f":"Planificados_por_empleado[[#Totals],[AÑO]]","v":{"v":1355090,"d":"1,355,090.00 €"}},{"$f":"Reales_por_empleado[[#Totals],[AÑO]]","v":{"v":659130,"d":"659,130.00 €"}},{"$f":"C6-D6","v":{"v":695960,"d":"695,960.00 €"}},{"$f":"E6/C6","v":{"v":0.5135895032802249,"d":"51%"}}]
[null,{"$f":"'GASTOS PLANIFICADOS'!B10","v":"Costos de la oficina"},{"$f":"Planificados_de_la_oficina[[#Totals],[AÑO]]","v":{"v":138740,"d":"138,740.00 €"}},{"$f":"Reales_de_la_oficina[[#Totals],[AÑO]]","v":{"v":69350,"d":"69,350.00 €"}},{"$f":"C7-D7","v":{"v":69390,"d":"69,390.00 €"}},{"$f":"E7/C7","v":{"v":0.5001441545336601,"d":"50%"}}]
[null,{"$f":"'GASTOS PLANIFICADOS'!B21","v":"Costos de marketing"},{"$f":"Planificados_de_marketing[[#Totals],[AÑO]]","v":{"v":67800,"d":"67,800.00 €"}},{"$f":"Reales_de_marketing[[#Totals],[AÑO]]","v":{"v":33159,"d":"33,159.00 €"}},{"$f":"C8-D8","v":{"v":34641,"d":"34,641.00 €"}},{"$f":"E8/C8","v":{"v":0.510929203539823,"d":"51%"}}]
[null,{"$f":"'GASTOS PLANIFICADOS'!B30","v":"Aprendizaje y viajes"},{"$f":"Planificados_de_aprendizaje_y_viajes[[#Totals],[AÑO]]","v":{"v":48000,"d":"48,000.00 €"}},{"$f":"Reales_de_aprendizaje_y_viajes[[#Totals],[AÑO]]","v":{"v":21300,"d":"21,300.00 €"}},{"$f":"C9-D9","v":{"v":26700,"d":"26,700.00 €"}},{"$f":"E9/C9","v":{"v":0.55625,"d":"56%"}}]
[null,{"$f":"'GASTOS PLANIFICADOS'!B35","v":"TOTALES"},{"$f":"'GASTOS PLANIFICADOS'!O36","v":{"v":1609630,"d":"1,609,630.00 €"}},{"$f":"'GASTOS REALES'!O36","v":{"v":782939,"d":"782,939.00 €"}},{"$f":"C10-D10","v":{"v":826691,"d":"826,691.00 €"}},{"$f":"E10/C10","v":{"v":0.5135907009685455,"d":"51%"}}]
[]
["El gráfico circular Gastos planificados se encuentra en la celda de la derecha y el gráfico circular Gastos reales, en la celda D12. La instrucción siguiente se encuentra en la celda A14.","El gráfico circular en el que se muestran los gastos planificados en diferentes categorías se encuentra en esta celda.",null,"El gráfico circular en el que se muestran los gastos reales realizados en diferentes categorías se encuentra en esta celda."]
[]
["El gráfico en el que se muestran los gastos planificado, los real y la desviación en Gastos mensuales se encuentra en la celda de la derecha."]